Creditor Name,Voucher Number,Payment Date,Goods Amount,CIPFA Subjective,CIPFA Sub group,Directorate,Section,
15th Brighton Scout Group,03934212,25/08/2010,"6,000.00",Capital Grants,,Chilren & Young People's Trust,Area Integrated Working,
2Simple Software Ltd,03924455,04/08/2010,"1,051.50",Supplies and Services,Miscellaneous Expenses,Chilren & Young People's Trust,Learning Schools & Skills,
3663 BFS Group Ltd,03928642,06/08/2010,682.56,Supplies and Services,Catering,Section 75 South Downs Health,Contrib to S31 Partnership,
3663 BFS Group Ltd,03930986,11/08/2010,513.52,Supplies and Services,Catering,Section 75 South Downs Health,Contrib to S31 Partnership,
3663 BFS Group Ltd,03959352,18/08/2010,667.93,Supplies and Services,Catering,Chilren & Young People's Trust,Area Integrated Working,
3663 BFS Group Ltd,03978841,25/08/2010,537.55,Supplies and Services,Catering,"Housing, Culture & Capital",Royal Pavilion & Museums,
3D Displays Ltd,03949359,18/08/2010,"1,711.50",Supplies and Services,Equipment Furniture and Materials,"Housing, Culture & Capital",Libraries & Information Servic,
64 Church Road Limited,0038433,06/08/2010,715.00,Premises Related,Rents Payable,"Housing, Culture & Capital",Housing Strategy,
64 Church Road Limited,0038434,06/08/2010,715.00,Premises Related,Rents Payable,"Housing, Culture & Capital",Housing Strategy,
64 Church Road Limited,0038995,27/08/2010,550.00,Premises Related,Rents Payable,"Housing, Culture & Capital",Housing Strategy,
A & A Construction Group Ltd,03921225,13/08/2010,"1,210.65",New Construction and Conversion,,Finance & Resources,Property & Design,
Abbey Care Group Ltd-Saxon Court,CF01423171,13/08/2010,-71.15,Customer and Client Receipts,Fees and Charges,Section 75 Adult Social Care,Contrib to S31 Partnership,
Abbey Care Group Ltd-Saxon Court,CF01423171,13/08/2010,765.44,Third Party Payments,Other Establishments,Section 75 Adult Social Care,Contrib to S31 Partnership,
Abbey Care Group Ltd-Saxon Court,CF01423172,13/08/2010,-71.15,Customer and Client Receipts,Fees and Charges,Section 75 Adult Social Care,Contrib to S31 Partnership,
Abbey Care Group Ltd-Saxon Court,CF01423172,13/08/2010,765.44,Third Party Payments,Other Establishments,Section 75 Adult Social Care,Contrib to S31 Partnership,
Abbey Care Group Ltd-Saxon Court,CF01423173,13/08/2010,-71.15,Customer and Client Receipts,Fees and Charges,Section 75 Adult Social Care,Contrib to S31 Partnership,
Abbey Care Group Ltd-Saxon Court,CF01423173,13/08/2010,765.44,Third Party Payments,Other Establishments,Section 75 Adult Social Care,Contrib to S31 Partnership,
Abbey Care Group Ltd-Saxon Court,CF01423174,13/08/2010,-71.15,Customer and Client Receipts,Fees and Charges,Section 75 Adult Social Care,Contrib to S31 Partnership,
Abbey Care Group Ltd-Saxon Court,CF01423174,13/08/2010,765.44,Third Party Payments,Other Establishments,Section 75 Adult Social Care,Contrib to S31 Partnership,
Abbey Care Group Ltd-Saxon Court,CF01423175,13/08/2010,-71.15,Customer and Client Receipts,Fees and Charges,Section 75 Adult Social Care,Contrib to S31 Partnership,
Abbey Care Group Ltd-Saxon Court,CF01423175,13/08/2010,808.71,Third Party Payments,Other Establishments,Section 75 Adult Social Care,Contrib to S31 Partnership,
Abbey Care Group Ltd-Saxon Court,CF01423176,13/08/2010,-71.15,Customer and Client Receipts,Fees and Charges,Section 75 Adult Social Care,Contrib to S31 Partnership,
Abbey Care Group Ltd-Saxon Court,CF01423176,13/08/2010,808.71,Third Party Payments,Other Establishments,Section 75 Adult Social Care,Contrib to S31 Partnership,
Abbey Care Group Ltd-Saxon Court,CF01423177,13/08/2010,-71.15,Customer and Client Receipts,Fees and Charges,Section 75 Adult Social Care,Contrib to S31 Partnership,
Abbey Care Group Ltd-Saxon Court,CF01423177,13/08/2010,808.71,Third Party Payments,Other Establishments,Section 75 Adult Social Care,Contrib to S31 Partnership,
Abbey Care Group Ltd-Saxon Court,CF01423178,13/08/2010,-71.15,Customer and Client Receipts,Fees and Charges,Section 75 Adult Social Care,Contrib to S31 Partnership,
Abbey Care Group Ltd-Saxon Court,CF01423178,13/08/2010,808.71,Third Party Payments,Other Establishments,Section 75 Adult Social Care,Contrib to S31 Partnership,
 AB Cameras Ltd t/a Keyhole Security,03957215,18/08/2010,880.00,Supplies and Services,Equipment Furniture and Materials,Environment,Waste,
Abi House,CF01438906,25/08/2010,-96.10,Customer and Client Receipts,Fees and Charges,Adult Social Care,Adult Social Care,
Abi House,CF01438906,25/08/2010,"1,519.30",Third Party Payments,Other Establishments,Adult Social Care,Adult Social Care,
Abi House,CF01438907,25/08/2010,-96.10,Customer and Client Receipts,Fees and Charges,Adult Social Care,Adult Social Care,
Abi House,CF01438907,25/08/2010,"1,519.30",Third Party Payments,Other Establishments,Adult Social Care,Adult Social Care,
Abi House,CF01438908,25/08/2010,-96.10,Customer and Client Receipts,Fees and Charges,Adult Social Care,Adult Social Care,
Abi House,CF01438908,25/08/2010,"1,519.30",Third Party Payments,Other Establishments,Adult Social Care,Adult Social Care,
Abi House,CF01438909,25/08/2010,-96.10,Customer and Client Receipts,Fees and Charges,Adult Social Care,Adult Social Care,
Abi House,CF01438909,25/08/2010,"1,519.30",Third Party Payments,Other Establishments,Adult Social Care,Adult Social Care,
Abi House,CF01438910,25/08/2010,-96.10,Customer and Client Receipts,Fees and Charges,Adult Social Care,Adult Social Care,
Abi House,CF01438910,25/08/2010,"1,519.30",Third Party Payments,Other Establishments,Adult Social Care,Adult Social Care,
Access Intelligence Media and Comms Ltd,03969805,25/08/2010,"8,000.00",Supplies and Services,Miscellaneous Expenses,Strategy & Governance,Communications,
A C Electrics,03947267,12/08/2010,"3,448.63",Capital Grants,,"Housing, Culture & Capital",Housing Strategy,
Ace Travel Ltd,03932120,11/08/2010,"1,988.96",Transport Related,Other Transport Costs,Chilren & Young People's Trust,Learning Schools & Skills,
Ace Travel Ltd,03932146,11/08/2010,"1,369.80",Transport Related,Other Transport Costs,Chilren & Young People's Trust,Learning Schools & Skills,
Ace Travel Ltd,03932159,11/08/2010,"1,905.00",Transport Related,Other Transport Costs,Chilren & Young People's Trust,Learning Schools & Skills,
Ace Travel Ltd,03932162,11/08/2010,"5,444.14",Transport Related,Other Transport Costs,Chilren & Young People's Trust,Learning Schools & Skills,
ACPH Ltd T/a Hopscotch Nursery,UL01417688,04/08/2010,"2,775.00",Supplies and Services,Grants and Subscriptions,Chilren & Young People's Trust,Area Integrated Working,
ACPH Ltd T/a Hopscotch Nursery,UL01417689,04/08/2010,"2,838.00",Supplies and Services,Grants and Subscriptions,Chilren & Young People's Trust,Area Integrated Working,
ACPH Ltd T/a Hopscotch Nursery,UL01417690,04/08/2010,"5,444.00",Supplies and Services,Grants and Subscriptions,Chilren & Young People's Trust,Area Integrated Working,
ACPH Ltd T/a Hopscotch Nursery,UL01437309,20/08/2010,"1,677.00",Third Party Payments,Other Establishments,Chilren & Young People's Trust,Learning Schools & Skills,
ACPH Ltd T/a Hopscotch Nursery,UL01437310,20/08/2010,"1,658.00",Third Party Payments,Other Establishments,Chilren & Young People's Trust,Learning Schools & Skills,
ACPH Ltd T/a Hopscotch Nursery,UL01437311,20/08/2010,"2,395.00",Third Party Payments,Other Establishments,Chilren & Young People's Trust,Learning Schools & Skills,
Action for Blind People,03964198,20/08/2010,"4,801.50",Third Party Payments,Other Establishments,Adult Social Care,Adult Social Care,
Action for Blind People,03964208,20/08/2010,"4,801.50",Third Party Payments,Other Establishments,Adult Social Care,Adult Social Care,
Actors of Dionysus,03925522,06/08/2010,500.00,Supplies and Services,Grants and Subscriptions,Strategy & Governance,Communities & Equality,
Actors of Dionysus,03956834,18/08/2010,"1,000.00",Supplies and Services,Grants and Subscriptions,Strategy & Governance,Communities & Equality,
Payment to Individual,CF01435803,20/08/2010,979.20,Third Party Payments,Other Establishments,Section 75 Adult Social Care,Contrib to S31 Partnership,
Payment to Individual,CF01435804,20/08/2010,979.20,Third Party Payments,Other Establishments,Section 75 Adult Social Care,Contrib to S31 Partnership,
Payment to Individual,CF01435805,20/08/2010,979.20,Third Party Payments,Other Establishments,Section 75 Adult Social Care,Contrib to S31 Partnership,
Payment to Individual,CF01435806,20/08/2010,979.20,Third Party Payments,Other Establishments,Section 75 Adult Social Care,Contrib to S31 Partnership,
Payment to Individual,CF01435811,20/08/2010,556.80,Third Party Payments,Other Establishments,Section 75 Adult Social Care,Contrib to S31 Partnership,
Payment to Individual,CF01435812,20/08/2010,556.80,Third Party Payments,Other Establishments,Section 75 Adult Social Care,Contrib to S31 Partnership,
Payment to Individual,CF01435813,20/08/2010,556.80,Third Party Payments,Other Establishments,Section 75 Adult Social Care,Contrib to S31 Partnership,
Payment to Individual,CF01435814,20/08/2010,556.80,Third Party Payments,Other Establishments,Section 75 Adult Social Care,Contrib to S31 Partnership,
ADC Environmental Services Ltd,03923838,04/08/2010,750.00,Premises Related,Repair Maint and Alterations,Finance & Resources,Property & Design,
ADC Environmental Services Ltd,03923867,04/08/2010,650.00,Premises Related,Repair Maint and Alterations,Finance & Resources,Property & Design,
ADC Environmental Services Ltd,03966390,20/08/2010,"1,990.00",Premises Related,Repair Maint and Alterations,Finance & Resources,Property & Design,
ADC Environmental Services Ltd,03966413,20/08/2010,650.00,Premises Related,Repair Maint and Alterations,Finance & Resources,Property & Design,
ADC Environmental Services Ltd,03966439,20/08/2010,750.00,Premises Related,Repair Maint and Alterations,Finance & Resources,Property & Design,
Adelaide Nursing Home,CF01433180,20/08/2010,-125.55,Customer and Client Receipts,Fees and Charges,Adult Social Care,Adult Social Care,
Adelaide Nursing Home,CF01433180,20/08/2010,644.40,Third Party Payments,Other Establishments,Adult Social Care,Adult Social Care,
Adelaide Nursing Home,CF01433181,20/08/2010,-125.55,Customer and Client Receipts,Fees and Charges,Adult Social Care,Adult Social Care,
Adelaide Nursing Home,CF01433181,20/08/2010,644.40,Third Party Payments,Other Establishments,Adult Social Care,Adult Social Care,
Adelaide Nursing Home,CF01433182,20/08/2010,-125.55,Customer and Client Receipts,Fees and Charges,Adult Social Care,Adult Social Care,
Adelaide Nursing Home,CF01433182,20/08/2010,644.40,Third Party Payments,Other Establishments,Adult Social Care,Adult Social Care,
Adelaide Nursing Home,CF01433183,20/08/2010,-125.55,Customer and Client Receipts,Fees and Charges,Adult Social Care,Adult Social Care,
Adelaide Nursing Home,CF01433183,20/08/2010,644.40,Third Party Payments,Other Establishments,Adult Social Care,Adult Social Care,
Adelaide Nursing Home,CF01433184,20/08/2010,546.30,Third Party Payments,Other Establishments,Adult Social Care,Adult Social Care,
Adelaide Nursing Home,CF01433185,20/08/2010,546.30,Third Party Payments,Other Establishments,Adult Social Care,Adult Social Care,
Adelaide Nursing Home,CF01433186,20/08/2010,546.30,Third Party Payments,Other Establishments,Adult Social Care,Adult Social Care,
Adelaide Nursing Home,CF01433187,20/08/2010,546.30,Third Party Payments,Other Establishments,Adult Social Care,Adult Social Care,
Adelaide Nursing Home,CF01433188,20/08/2010,546.30,Third Party Payments,Other Establishments,Adult Social Care,Adult Social Care,
Adelaide Nursing Home,CF01433189,20/08/2010,546.30,Third Party Payments,Other Establishments,Adult Social Care,Adult Social Care,
Adelaide Nursing Home,CF01433190,20/08/2010,546.30,Third Party Payments,Other Establishments,Adult Social Care,Adult Social Care,
Adelaide Nursing Home,CF01433191,20/08/2010,546.30,Third Party Payments,Other Establishments,Adult Social Care,Adult Social Care,
Adelaide Nursing Home,CF01433200,20/08/2010,539.40,Third Party Payments,Other Establishments,Adult Social Care,Adult Social Care,
Adelaide Nursing Home,CF01433201,20/08/2010,539.40,Third Party Payments,Other Establishments,Adult Social Care,Adult Social Care,
Adelaide Nursing Home,CF01433202,20/08/2010,539.40,Third Party Payments,Other Establishments,Adult Social Care,Adult Social Care,
Adelaide Nursing Home,CF01433203,20/08/2010,539.40,Third Party Payments,Other Establishments,Adult Social Care,Adult Social Care,
Adelaide Nursing Home,CF01433208,20/08/2010,551.30,Third Party Payments,Other Establishments,Adult Social Care,Adult Social Care,
Adelaide Nursing Home,CF01433209,20/08/2010,551.30,Third Party Payments,Other Establishments,Adult Social Care,Adult Social Care,
Adelaide Nursing Home,CF01433210,20/08/2010,551.30,Third Party Payments,Other Establishments,Adult Social Care,Adult Social Care,
Adelaide Nursing Home,CF01433211,20/08/2010,551.30,Third Party Payments,Other Establishments,Adult Social Care,Adult Social Care,
Adelphi Court Services Limited,0039028,27/08/2010,"9,603.00",Premises Related,Rents Payable,"Housing, Culture & Capital",Housing Strategy,
Brook Data Consulting,03934173,11/08/2010,"1,518.35",Supplies and Services,Grants and Subscriptions,Chilren & Young People's Trust,Area Integrated Working,
ADT Fire & Security Plc,03932434,11/08/2010,722.23,New Construction and Conversion,,"Housing, Culture & Capital",Royal Pavilion & Museums,
ADT Fire & Security Plc,03943203,13/08/2010,557.22,Supplies and Services,Equipment Furniture and Materials,Adult Social Care,Housing Management,
Advanced Connections Ltd,03910870,06/08/2010,"1,190.00",Plant Machinery and Equipment,,Chilren & Young People's Trust,Director Childrens Services,
Advanced Connections Ltd,03937523,27/08/2010,"3,538.00",Plant Machinery and Equipment,,Chilren & Young People's Trust,Director Childrens Services,
Advanced Connections Ltd,03939194,20/08/2010,"18,621.00",Plant Machinery and Equipment,,Chilren & Young People's Trust,Director Childrens Services,
Advanced Connections Ltd,03940895,27/08/2010,"15,116.00",Plant Machinery and Equipment,,Chilren & Young People's Trust,Director Childrens Services,
Advanced Connections Ltd,03951444,27/08/2010,"1,460.00",Plant Machinery and Equipment,,Chilren & Young People's Trust,Director Childrens Services,
Advanced Connections Ltd,03967726,25/08/2010,"1,020.00",Plant Machinery and Equipment,,Chilren & Young People's Trust,Director Childrens Services,
Adventure Unlimited,03919664,04/08/2010,653.36,Supplies and Services,Miscellaneous Expenses,"Housing, Culture & Capital",Culture & Economy,
Adventure Unlimited,03921322,04/08/2010,750.00,Capital Grants,,Chilren & Young People's Trust,Area Integrated Working,
Adventure Unlimited,03921429,04/08/2010,"1,500.00",Supplies and Services,Contributions to Provisions,Chilren & Young People's Trust,Area Integrated Working,
Adventure Unlimited,03921432,04/08/2010,"1,500.00",Supplies and Services,Contributions to Provisions,Chilren & Young People's Trust,Area Integrated Working,
Adventure Unlimited,03933365,11/08/2010,"1,026.00",Supplies and Services,Miscellaneous Expenses,Chilren & Young People's Trust,Area Integrated Working,
Adventure Unlimited,03982769,27/08/2010,"1,000.00",Supplies and Services,Grants and Subscriptions,Chilren & Young People's Trust,Area Integrated Working,
Beachside Rest Home,CF01361956,20/08/2010,"1,872.00",Third Party Payments,Other Establishments,Section 75 Sussex Partnership,Contrib to S31 Partnership,
Beachside Rest Home,CF01375645,20/08/2010,575.00,Third Party Payments,Other Establishments,Section 75 Sussex Partnership,Contrib to S31 Partnership,
Beachside Rest Home,CF01375646,20/08/2010,575.00,Third Party Payments,Other Establishments,Section 75 Sussex Partnership,Contrib to S31 Partnership,
Beachside Rest Home,CF01375647,20/08/2010,575.00,Third Party Payments,Other Establishments,Section 75 Sussex Partnership,Contrib to S31 Partnership,
Beachside Rest Home,CF01375648,20/08/2010,575.00,Third Party Payments,Other Establishments,Section 75 Sussex Partnership,Contrib to S31 Partnership,
Beachside Rest Home,CF01411523,20/08/2010,575.00,Third Party Payments,Other Establishments,Section 75 Sussex Partnership,Contrib to S31 Partnership,
Beachside Rest Home,CF01411524,20/08/2010,575.00,Third Party Payments,Other Establishments,Section 75 Sussex Partnership,Contrib to S31 Partnership,
Beachside Rest Home,CF01411525,20/08/2010,575.00,Third Party Payments,Other Establishments,Section 75 Sussex Partnership,Contrib to S31 Partnership,
Beachside Rest Home,CF01411526,20/08/2010,575.00,Third Party Payments,Other Establishments,Section 75 Sussex Partnership,Contrib to S31 Partnership,
Beachside Rest Home,CF01431436,20/08/2010,575.00,Third Party Payments,Other Establishments,Section 75 Sussex Partnership,Contrib to S31 Partnership,
Beachside Rest Home,CF01431437,20/08/2010,575.00,Third Party Payments,Other Establishments,Section 75 Sussex Partnership,Contrib to S31 Partnership,
Beachside Rest Home,CF01431438,20/08/2010,575.00,Third Party Payments,Other Establishments,Section 75 Sussex Partnership,Contrib to S31 Partnership,
Beachside Rest Home,CF01431439,20/08/2010,575.00,Third Party Payments,Other Establishments,Section 75 Sussex Partnership,Contrib to S31 Partnership,
A & F Pilbeam Ltd,03939123,11/08/2010,"49,707.72",New Construction and Conversion,,Chilren & Young People's Trust,Area Integrated Working,
A & F Pilbeam Ltd,03967784,20/08/2010,"7,168.50",New Construction and Conversion,,Chilren & Young People's Trust,Director Childrens Services,
A & F Pilbeam Ltd,03969465,25/08/2010,"2,125.00",Premises Related,Repair Maint and Alterations,Finance & Resources,Property & Design,
Agincare UK Ltd,CF01427934,13/08/2010,-68.00,Customer and Client Receipts,Fees and Charges,Adult Social Care,Adult Social Care,
Agincare UK Ltd,CF01427934,13/08/2010,750.19,Third Party Payments,Other Establishments,Adult Social Care,Adult Social Care,
Agincare UK Ltd,CF01427935,13/08/2010,-68.00,Customer and Client Receipts,Fees and Charges,Adult Social Care,Adult Social Care,
Agincare UK Ltd,CF01427935,13/08/2010,750.19,Third Party Payments,Other Establishments,Adult Social Care,Adult Social Care,
Agincare UK Ltd,CF01428248,13/08/2010,-68.00,Customer and Client Receipts,Fees and Charges,Adult Social Care,Adult Social Care,
Agincare UK Ltd,CF01428248,13/08/2010,750.19,Third Party Payments,Other Establishments,Adult Social Care,Adult Social Care,
Agincare UK Ltd,CF01428249,13/08/2010,-68.00,Customer and Client Receipts,Fees and Charges,Adult Social Care,Adult Social Care,
Agincare UK Ltd,CF01428249,13/08/2010,750.19,Third Party Payments,Other Establishments,Adult Social Care,Adult Social Care,
Agincare UK Ltd,CF01428342,13/08/2010,-75.00,Customer and Client Receipts,Fees and Charges,Adult Social Care,Adult Social Care,
Agincare UK Ltd,CF01428342,13/08/2010,678.23,Third Party Payments,Other Establishments,Adult Social Care,Adult Social Care,
A G M Floors Ltd,03931516,11/08/2010,"8,150.00",Premises Related,Repair Maint and Alterations,"Housing, Culture & Capital",Tourism & Venues,
A G M Floors Ltd,03969151,25/08/2010,"8,150.00",Premises Related,Repair Maint and Alterations,"Housing, Culture & Capital",Tourism & Venues,
Ahmad Tea Ltd,03965304,20/08/2010,516.00,Supplies and Services,Goods for Resale,"Housing, Culture & Capital",Royal Pavilion & Museums,
Payment to Individual,0038847,25/08/2010,700.00,Premises Related,Rents Payable,"Housing, Culture & Capital",Housing Strategy,
a.i.d Training & Operations Ltd,03928655,06/08/2010,650.00,Indirect Employees,Training,Strategy & Governance,Human Resources,
a.i.d Training & Operations Ltd,03928804,06/08/2010,"1,100.00",Third Party Payments,Other Establishments,Chilren & Young People's Trust,Learning Schools & Skills,
a.i.d Training & Operations Ltd,03931244,06/08/2010,685.00,Indirect Employees,Training,Strategy & Governance,Human Resources,
Airconaire Ltd,03960985,20/08/2010,"2,795.96",Premises Related,Repair Maint and Alterations,Adult Social Care,Housing Management,
Aitch Care Homes (London) Ltd,CF01418253,04/08/2010,-84.80,Customer and Client Receipts,Fees and Charges,Section 75 Adult Social Care,Contrib to S31 Partnership,
Aitch Care Homes (London) Ltd,CF01418253,04/08/2010,"1,100.00",Third Party Payments,Other Establishments,Section 75 Adult Social Care,Contrib to S31 Partnership,
Aitch Care Homes (London) Ltd,CF01418254,04/08/2010,-84.80,Customer and Client Receipts,Fees and Charges,Section 75 Adult Social Care,Contrib to S31 Partnership,
Aitch Care Homes (London) Ltd,CF01418254,04/08/2010,"1,100.00",Third Party Payments,Other Establishments,Section 75 Adult Social Care,Contrib to S31 Partnership,
Aitch Care Homes (London) Ltd,CF01418255,04/08/2010,-84.80,Customer and Client Receipts,Fees and Charges,Section 75 Adult Social Care,Contrib to S31 Partnership,
Aitch Care Homes (London) Ltd,CF01418255,04/08/2010,"1,100.00",Third Party Payments,Other Establishments,Section 75 Adult Social Care,Contrib to S31 Partnership,
Aitch Care Homes (London) Ltd,CF01418256,04/08/2010,-84.80,Customer and Client Receipts,Fees and Charges,Section 75 Adult Social Care,Contrib to S31 Partnership,
Aitch Care Homes (London) Ltd,CF01418256,04/08/2010,"1,100.00",Third Party Payments,Other Establishments,Section 75 Adult Social Care,Contrib to S31 Partnership,
Aitch Care Homes (London) Ltd,CF01423229,11/08/2010,-71.15,Customer and Client Receipts,Fees and Charges,Section 75 Adult Social Care,Contrib to S31 Partnership,
Aitch Care Homes (London) Ltd,CF01423229,11/08/2010,"1,289.50",Third Party Payments,Other Establishments,Section 75 Adult Social Care,Contrib to S31 Partnership,
Aitch Care Homes (London) Ltd,CF01423230,11/08/2010,-71.15,Customer and Client Receipts,Fees and Charges,Section 75 Adult Social Care,Contrib to S31 Partnership,
Aitch Care Homes (London) Ltd,CF01423230,11/08/2010,"1,289.50",Third Party Payments,Other Establishments,Section 75 Adult Social Care,Contrib to S31 Partnership,
Aitch Care Homes (London) Ltd,CF01423231,11/08/2010,-71.15,Customer and Client Receipts,Fees and Charges,Section 75 Adult Social Care,Contrib to S31 Partnership,
Aitch Care Homes (London) Ltd,CF01423231,11/08/2010,"1,289.50",Third Party Payments,Other Establishments,Section 75 Adult Social Care,Contrib to S31 Partnership,
Aitch Care Homes (London) Ltd,CF01423232,11/08/2010,-71.15,Customer and Client Receipts,Fees and Charges,Section 75 Adult Social Care,Contrib to S31 Partnership,
Aitch Care Homes (London) Ltd,CF01423232,11/08/2010,"1,289.50",Third Party Payments,Other Establishments,Section 75 Adult Social Care,Contrib to S31 Partnership,
Aitch Care Homes (London) Ltd,CF01423264,11/08/2010,-84.10,Customer and Client Receipts,Fees and Charges,Section 75 Adult Social Care,Contrib to S31 Partnership,
Aitch Care Homes (London) Ltd,CF01423264,11/08/2010,"1,572.00",Third Party Payments,Other Establishments,Section 75 Adult Social Care,Contrib to S31 Partnership,
Aitch Care Homes (London) Ltd,CF01423265,11/08/2010,-84.10,Customer and Client Receipts,Fees and Charges,Section 75 Adult Social Care,Contrib to S31 Partnership,
Aitch Care Homes (London) Ltd,CF01423265,11/08/2010,"1,572.00",Third Party Payments,Other Establishments,Section 75 Adult Social Care,Contrib to S31 Partnership,
Aitch Care Homes (London) Ltd,CF01423266,11/08/2010,-84.10,Customer and Client Receipts,Fees and Charges,Section 75 Adult Social Care,Contrib to S31 Partnership,
Aitch Care Homes (London) Ltd,CF01423266,11/08/2010,"1,572.00",Third Party Payments,Other Establishments,Section 75 Adult Social Care,Contrib to S31 Partnership,
Aitch Care Homes (London) Ltd,CF01423267,11/08/2010,-84.10,Customer and Client Receipts,Fees and Charges,Section 75 Adult Social Care,Contrib to S31 Partnership,
Aitch Care Homes (London) Ltd,CF01423267,11/08/2010,"1,572.00",Third Party Payments,Other Establishments,Section 75 Adult Social Care,Contrib to S31 Partnership,
Aitch Care Homes (London) Ltd,CF01423268,11/08/2010,-84.80,Customer and Client Receipts,Fees and Charges,Section 75 Adult Social Care,Contrib to S31 Partnership,
Aitch Care Homes (London) Ltd,CF01423268,11/08/2010,"1,523.50",Third Party Payments,Other Establishments,Section 75 Adult Social Care,Contrib to S31 Partnership,
Aitch Care Homes (London) Ltd,CF01423269,11/08/2010,-84.80,Customer and Client Receipts,Fees and Charges,Section 75 Adult Social Care,Contrib to S31 Partnership,
Aitch Care Homes (London) Ltd,CF01423269,11/08/2010,"1,523.50",Third Party Payments,Other Establishments,Section 75 Adult Social Care,Contrib to S31 Partnership,
Aitch Care Homes (London) Ltd,CF01423270,11/08/2010,-84.80,Customer and Client Receipts,Fees and Charges,Section 75 Adult Social Care,Contrib to S31 Partnership,
Aitch Care Homes (London) Ltd,CF01423270,11/08/2010,"1,523.50",Third Party Payments,Other Establishments,Section 75 Adult Social Care,Contrib to S31 Partnership,
Aitch Care Homes (London) Ltd,CF01423271,11/08/2010,-84.80,Customer and Client Receipts,Fees and Charges,Section 75 Adult Social Care,Contrib to S31 Partnership,
Aitch Care Homes (London) Ltd,CF01423271,11/08/2010,"1,523.50",Third Party Payments,Other Establishments,Section 75 Adult Social Care,Contrib to S31 Partnership,
Aitch Care Homes (London) Ltd,CF01423277,11/08/2010,-84.10,Customer and Client Receipts,Fees and Charges,Section 75 Adult Social Care,Contrib to S31 Partnership,
Aitch Care Homes (London) Ltd,CF01423277,11/08/2010,"1,347.00",Third Party Payments,Other Establishments,Section 75 Adult Social Care,Contrib to S31 Partnership,
Aitch Care Homes (London) Ltd,CF01423278,11/08/2010,-84.10,Customer and Client Receipts,Fees and Charges,Section 75 Adult Social Care,Contrib to S31 Partnership,
Aitch Care Homes (London) Ltd,CF01423278,11/08/2010,"1,347.00",Third Party Payments,Other Establishments,Section 75 Adult Social Care,Contrib to S31 Partnership,
Aitch Care Homes (London) Ltd,CF01423279,11/08/2010,-84.10,Customer and Client Receipts,Fees and Charges,Section 75 Adult Social Care,Contrib to S31 Partnership,
Aitch Care Homes (London) Ltd,CF01423279,11/08/2010,"1,347.00",Third Party Payments,Other Establishments,Section 75 Adult Social Care,Contrib to S31 Partnership,
Aitch Care Homes (London) Ltd,CF01423280,11/08/2010,-84.10,Customer and Client Receipts,Fees and Charges,Section 75 Adult Social Care,Contrib to S31 Partnership,
Aitch Care Homes (London) Ltd,CF01423280,11/08/2010,"1,347.00",Third Party Payments,Other Establishments,Section 75 Adult Social Care,Contrib to S31 Partnership,
Aitch Care Homes (London) Ltd,CF01423289,11/08/2010,-57.55,Customer and Client Receipts,Fees and Charges,Section 75 Adult Social Care,Contrib to S31 Partnership,
Aitch Care Homes (London) Ltd,CF01423289,11/08/2010,"1,285.00",Third Party Payments,Other Establishments,Section 75 Adult Social Care,Contrib to S31 Partnership,
Aitch Care Homes (London) Ltd,CF01423290,11/08/2010,-57.55,Customer and Client Receipts,Fees and Charges,Section 75 Adult Social Care,Contrib to S31 Partnership,
Aitch Care Homes (London) Ltd,CF01423290,11/08/2010,"1,285.00",Third Party Payments,Other Establishments,Section 75 Adult Social Care,Contrib to S31 Partnership,
Aitch Care Homes (London) Ltd,CF01423291,11/08/2010,-57.55,Customer and Client Receipts,Fees and Charges,Section 75 Adult Social Care,Contrib to S31 Partnership,
Aitch Care Homes (London) Ltd,CF01423291,11/08/2010,"1,285.00",Third Party Payments,Other Establishments,Section 75 Adult Social Care,Contrib to S31 Partnership,
Aitch Care Homes (London) Ltd,CF01423292,11/08/2010,-57.55,Customer and Client Receipts,Fees and Charges,Section 75 Adult Social Care,Contrib to S31 Partnership,
Aitch Care Homes (London) Ltd,CF01423292,11/08/2010,"1,285.00",Third Party Payments,Other Establishments,Section 75 Adult Social Care,Contrib to S31 Partnership,
Aitch Care Homes (London) Ltd,CF01423293,11/08/2010,-71.15,Customer and Client Receipts,Fees and Charges,Section 75 Adult Social Care,Contrib to S31 Partnership,
Aitch Care Homes (London) Ltd,CF01423293,11/08/2010,"1,676.00",Third Party Payments,Other Establishments,Section 75 Adult Social Care,Contrib to S31 Partnership,
Aitch Care Homes (London) Ltd,CF01423294,11/08/2010,-71.15,Customer and Client Receipts,Fees and Charges,Section 75 Adult Social Care,Contrib to S31 Partnership,
Aitch Care Homes (London) Ltd,CF01423294,11/08/2010,"1,676.00",Third Party Payments,Other Establishments,Section 75 Adult Social Care,Contrib to S31 Partnership,
Aitch Care Homes (London) Ltd,CF01423295,11/08/2010,-71.15,Customer and Client Receipts,Fees and Charges,Section 75 Adult Social Care,Contrib to S31 Partnership,
Aitch Care Homes (London) Ltd,CF01423295,11/08/2010,"1,676.00",Third Party Payments,Other Establishments,Section 75 Adult Social Care,Contrib to S31 Partnership,
Aitch Care Homes (London) Ltd,CF01423296,11/08/2010,-71.15,Customer and Client Receipts,Fees and Charges,Section 75 Adult Social Care,Contrib to S31 Partnership,
Aitch Care Homes (London) Ltd,CF01423296,11/08/2010,"1,676.00",Third Party Payments,Other Establishments,Section 75 Adult Social Care,Contrib to S31 Partnership,
Aitch Care Homes (London) Ltd,CF01423297,11/08/2010,-57.55,Customer and Client Receipts,Fees and Charges,Section 75 Adult Social Care,Contrib to S31 Partnership,
Aitch Care Homes (London) Ltd,CF01423297,11/08/2010,"1,169.50",Third Party Payments,Other Establishments,Section 75 Adult Social Care,Contrib to S31 Partnership,
Aitch Care Homes (London) Ltd,CF01423298,11/08/2010,-57.55,Customer and Client Receipts,Fees and Charges,Section 75 Adult Social Care,Contrib to S31 Partnership,
Aitch Care Homes (London) Ltd,CF01423298,11/08/2010,"1,169.50",Third Party Payments,Other Establishments,Section 75 Adult Social Care,Contrib to S31 Partnership,
Aitch Care Homes (London) Ltd,CF01423299,11/08/2010,-57.55,Customer and Client Receipts,Fees and Charges,Section 75 Adult Social Care,Contrib to S31 Partnership,
Aitch Care Homes (London) Ltd,CF01423299,11/08/2010,"1,169.50",Third Party Payments,Other Establishments,Section 75 Adult Social Care,Contrib to S31 Partnership,
Aitch Care Homes (London) Ltd,CF01423300,11/08/2010,-57.55,Customer and Client Receipts,Fees and Charges,Section 75 Adult Social Care,Contrib to S31 Partnership,
Aitch Care Homes (London) Ltd,CF01423300,11/08/2010,"1,169.50",Third Party Payments,Other Establishments,Section 75 Adult Social Care,Contrib to S31 Partnership,
Aitch Care Homes (London) Ltd,CF01423301,11/08/2010,-84.10,Customer and Client Receipts,Fees and Charges,Section 75 Adult Social Care,Contrib to S31 Partnership,
Aitch Care Homes (London) Ltd,CF01423301,11/08/2010,"1,571.00",Third Party Payments,Other Establishments,Section 75 Adult Social Care,Contrib to S31 Partnership,
Aitch Care Homes (London) Ltd,CF01423302,11/08/2010,-84.10,Customer and Client Receipts,Fees and Charges,Section 75 Adult Social Care,Contrib to S31 Partnership,
Aitch Care Homes (London) Ltd,CF01423302,11/08/2010,"1,571.00",Third Party Payments,Other Establishments,Section 75 Adult Social Care,Contrib to S31 Partnership,
Aitch Care Homes (London) Ltd,CF01423303,11/08/2010,-84.10,Customer and Client Receipts,Fees and Charges,Section 75 Adult Social Care,Contrib to S31 Partnership,
Aitch Care Homes (London) Ltd,CF01423303,11/08/2010,"1,571.00",Third Party Payments,Other Establishments,Section 75 Adult Social Care,Contrib to S31 Partnership,
Aitch Care Homes (London) Ltd,CF01423304,11/08/2010,-84.10,Customer and Client Receipts,Fees and Charges,Section 75 Adult Social Care,Contrib to S31 Partnership,
Aitch Care Homes (London) Ltd,CF01423304,11/08/2010,"1,571.00",Third Party Payments,Other Establishments,Section 75 Adult Social Care,Contrib to S31 Partnership,
AJA Registrars Ltd,03982552,27/08/2010,"3,600.00",Supplies and Services,Services,"Housing, Culture & Capital",Tourism & Venues,
Aldred Associates Limited,03981061,27/08/2010,649.44,Supplies and Services,Equipment Furniture and Materials,Environment,Quality of Life & Green Spaces,
Aldred Associates Limited,03981087,27/08/2010,"1,000.00",Third Party Payments,Private Contractors,Environment,Quality of Life & Green Spaces,
Alexander Advertising(International)Ltd,03946310,13/08/2010,"1,682.04",Supplies and Services,Miscellaneous Expenses,Environment,City Planning,
Alexander Advertising(International)Ltd,03947212,18/08/2010,"2,750.14",Supplies and Services,Print Stationery & General Office Expenses,Environment,Public Safety,
Alexander Advertising(International)Ltd,03948774,18/08/2010,"1,906.31",Supplies and Services,Miscellaneous Expenses,Environment,City Planning,
Alexander Advertising(International)Ltd,03948787,18/08/2010,"1,682.04",Supplies and Services,Miscellaneous Expenses,Environment,City Planning,
Alexander Advertising(International)Ltd,03948800,18/08/2010,"1,906.31",Supplies and Services,Miscellaneous Expenses,Environment,City Planning,
Alexander Advertising(International)Ltd,03949760,18/08/2010,"1,906.31",Supplies and Services,Miscellaneous Expenses,Environment,City Planning,
Alexander Advertising(International)Ltd,03952537,18/08/2010,"1,906.31",Supplies and Services,Miscellaneous Expenses,Environment,City Planning,
Payment to Individual,0038425,06/08/2010,775.00,Premises Related,Rents Payable,"Housing, Culture & Capital",Housing Strategy,
Alfa Electric Ltd,03955767,18/08/2010,"3,238.77",Premises Related,Repair Maint and Alterations,Finance & Resources,Property & Design,
Alfa Electric Ltd,03956203,18/08/2010,"4,473.80",Premises Related,Repair Maint and Alterations,Finance & Resources,Property & Design,
Alfa Electric Ltd,03964923,20/08/2010,"5,014.77",New Construction and Conversion,,Finance & Resources,Property & Design,
Payment to Individual,0038988,27/08/2010,875.00,Premises Related,Rents Payable,"Housing, Culture & Capital",Housing Strategy,
Payment to Individual,0038989,27/08/2010,875.00,Premises Related,Rents Payable,"Housing, Culture & Capital",Housing Strategy,
A-List Properties Limited,0038606,13/08/2010,850.00,Premises Related,Rents Payable,"Housing, Culture & Capital",Housing Strategy,
Allied Estates (South Eastern) Ltd,0038554,13/08/2010,600.00,Premises Related,Rents Payable,"Housing, Culture & Capital",Housing Strategy,
Allied Estates (South Eastern) Ltd,0038654,18/08/2010,619.00,Premises Related,Rents Payable,"Housing, Culture & Capital",Housing Strategy,
Allied Healthcare Brighton Domicillary,CF01428141,13/08/2010,515.55,Third Party Payments,Other Establishments,Adult Social Care,Adult Social Care,
Allied Health Professionals,03965045,20/08/2010,"2,696.71",Direct Employees,Salaries,Finance & Resources,Customer Services,
Allied Health Professionals,03965061,20/08/2010,"3,071.40",Direct Employees,Salaries,Finance & Resources,Customer Services,
Allsop Residential Investment Management (ARIM),0038590,13/08/2010,715.00,Premises Related,Rents Payable,"Housing, Culture & Capital",Housing Strategy,
Allsops CTF Ltd,03972481,25/08/2010,"1,850.00",Supplies and Services,Equipment Furniture and Materials,Finance & Resources,Customer Services,
Allsorts Youth Project,03983027,27/08/2010,"2,600.00",Supplies and Services,Grants and Subscriptions,Chilren & Young People's Trust,Area Integrated Working,
Allsorts Youth Project,03983043,27/08/2010,"3,000.00",Supplies and Services,Grants and Subscriptions,Chilren & Young People's Trust,Area Integrated Working,
Altodigital UK Ltd,03927342,13/08/2010,597.71,Premises Related,Rents Payable,Chilren & Young People's Trust,Area Integrated Working,
Payment to Individual,03935651,05/08/2010,600.00,Indirect Employees,Miscellaneous Employee Costs,Strategy & Governance,Human Resources,
Amenity Landscaping Ltd,03969025,25/08/2010,"1,059.00",Third Party Payments,Private Contractors,Environment,Quality of Life & Green Spaces,
Amey Mechanical & Electrical Services Ltd,03883761,04/08/2010,539.27,Premises Related,Repair Maint and Alterations,Finance & Resources,Property & Design,
Amey OW Limited,03892480,06/08/2010,"3,393.80",Supplies and Services,Services,Environment,Sustainable Transport&Planning,
Amey OW Limited,03958078,20/08/2010,"25,919.34",New Construction and Conversion,,Environment,Sustainable Transport&Planning,
Amigos Pre-School Playgroup,03927177,06/08/2010,897.25,Supplies and Services,Miscellaneous Expenses,Chilren & Young People's Trust,Area Integrated Working,
Amigos Pre-School Playgroup,UL01417691,04/08/2010,"1,415.00",Supplies and Services,Grants and Subscriptions,Chilren & Young People's Trust,Area Integrated Working,
Amigos Pre-School Playgroup,UL01437312,20/08/2010,970.00,Third Party Payments,Other Establishments,Chilren & Young People's Trust,Learning Schools & Skills,
AM Security Ltd t/a AM Fire & Security Group,03947652,27/08/2010,"4,035.00",Supplies and Services,Services,Environment,Waste,
AM Security Ltd t/a AM Fire & Security Group,03964868,27/08/2010,"1,130.00",Premises Related,Repair Maint and Alterations,Environment,Waste,
AM Security Ltd t/a AM Fire & Security Group,03977800,25/08/2010,"1,786.00",Premises Related,Repair Maint and Alterations,Finance & Resources,Property & Design,
Amstech Contracts Ltd,03936838,11/08/2010,935.00,Premises Related,Repair Maint and Alterations,Finance & Resources,Property & Design,
Amstech Contracts Ltd,03950322,18/08/2010,757.00,New Construction and Conversion,,Chilren & Young People's Trust,Area Integrated Working,
Amstech Contracts Ltd,03950348,18/08/2010,680.00,New Construction and Conversion,,Chilren & Young People's Trust,Area Integrated Working,
Amstech Contracts Ltd,03953523,18/08/2010,"3,134.00",New Construction and Conversion,,Chilren & Young People's Trust,Director Childrens Services,
Amstech Contracts Ltd,03958421,18/08/2010,"1,528.00",New Construction and Conversion,,Chilren & Young People's Trust,Director Childrens Services,
Amstech Contracts Ltd,03981553,27/08/2010,755.00,New Construction and Conversion,,Chilren & Young People's Trust,Director Childrens Services,
Anchor Trust,03944008,13/08/2010,769.50,Capital Grants,,"Housing, Culture & Capital",Housing Strategy,
Anchor Trust,03944011,13/08/2010,915.60,Capital Grants,,"Housing, Culture & Capital",Housing Strategy,
Anchor Trust,03944095,13/08/2010,556.14,Capital Grants,,"Housing, Culture & Capital",Housing Strategy,
Anchor Trust,03944134,13/08/2010,"1,051.05",Capital Grants,,"Housing, Culture & Capital",Housing Strategy,
Anchor Trust,03963830,20/08/2010,"3,476.55",Capital Grants,,"Housing, Culture & Capital",Housing Strategy,
Anchor Trust,03963908,20/08/2010,709.80,Capital Grants,,"Housing, Culture & Capital",Housing Strategy,
Anchor Trust,CS01425261,11/08/2010,"2,451.54",Transfer Payments,Supporting People,"Housing, Culture & Capital",Housing Strategy,
Anchor Trust,CS01425262,11/08/2010,"2,451.54",Transfer Payments,Supporting People,"Housing, Culture & Capital",Housing Strategy,
Anchor Trust,CS01425263,11/08/2010,"2,451.54",Transfer Payments,Supporting People,"Housing, Culture & Capital",Housing Strategy,
Anchor Trust,CS01425264,11/08/2010,"2,451.54",Transfer Payments,Supporting People,"Housing, Culture & Capital",Housing Strategy,
Anchor Trust Homes (Partridge House),CF01426163,13/08/2010,544.97,Customer and Client Receipts,Fees and Charges,Section 75 Sussex Partnership,Contrib to S31 Partnership,
Anchor Trust Homes (Partridge House),CF01426164,13/08/2010,635.80,Customer and Client Receipts,Fees and Charges,Section 75 Sussex Partnership,Contrib to S31 Partnership,
Anchor Trust Homes (Partridge House),CF01432403,20/08/2010,"28,553.20",Third Party Payments,Other Establishments,Section 75 Sussex Partnership,Contrib to S31 Partnership,
Anchor Trust Homes (Partridge House),CF01432404,20/08/2010,"28,553.20",Third Party Payments,Other Establishments,Section 75 Sussex Partnership,Contrib to S31 Partnership,
Anchor Trust Homes (Partridge House),CF01432405,20/08/2010,"28,553.20",Third Party Payments,Other Establishments,Section 75 Sussex Partnership,Contrib to S31 Partnership,
Anchor Trust Homes (Partridge House),CF01432406,20/08/2010,"28,553.20",Third Party Payments,Other Establishments,Section 75 Sussex Partnership,Contrib to S31 Partnership,
Anchor Trust Homes (Sycamore Court),CF01432957,20/08/2010,"4,172.40",Third Party Payments,Other Establishments,Adult Social Care,Adult Social Care,
Anchor Trust Homes (Sycamore Court),CF01432958,20/08/2010,"4,172.40",Third Party Payments,Other Establishments,Adult Social Care,Adult Social Care,
Anchor Trust Homes (Sycamore Court),CF01432959,20/08/2010,"4,172.40",Third Party Payments,Other Establishments,Adult Social Care,Adult Social Care,
Anchor Trust Homes (Sycamore Court),CF01432960,20/08/2010,"4,172.40",Third Party Payments,Other Establishments,Adult Social Care,Adult Social Care,
Anchor Trust Homes (Sycamore Court),CF01433052,20/08/2010,"21,420.80",Third Party Payments,Other Establishments,Adult Social Care,Adult Social Care,
Anchor Trust Homes (Sycamore Court),CF01433053,20/08/2010,"21,420.80",Third Party Payments,Other Establishments,Adult Social Care,Adult Social Care,
Anchor Trust Homes (Sycamore Court),CF01433054,20/08/2010,"21,420.80",Third Party Payments,Other Establishments,Adult Social Care,Adult Social Care,
Anchor Trust Homes (Sycamore Court),CF01433055,20/08/2010,"21,420.80",Third Party Payments,Other Establishments,Adult Social Care,Adult Social Care,
Anderida Adolescent Care Ltd,CF01421397,11/08/2010,"4,915.58",Third Party Payments,Other Establishments,Chilren & Young People's Trust,Commissioning & Governance,
Anderida Adolescent Care Ltd,CF01421398,11/08/2010,"4,435.58",Third Party Payments,Other Establishments,Chilren & Young People's Trust,Commissioning & Governance,
Anderida Adolescent Care Ltd,CF01421399,11/08/2010,"4,435.58",Third Party Payments,Other Establishments,Chilren & Young People's Trust,Commissioning & Governance,
Anderida Adolescent Care Ltd,CF01421400,11/08/2010,"4,435.58",Third Party Payments,Other Establishments,Chilren & Young People's Trust,Commissioning & Governance,
Anderson Acoustics Limited,03929447,06/08/2010,"2,270.00",New Construction and Conversion,,Finance & Resources,Property & Design,
Anderson Acoustics Limited,03967056,20/08/2010,"2,850.00",New Construction and Conversion,,Chilren & Young People's Trust,Director Childrens Services,
Payment to Individual,0038836,20/08/2010,850.00,Premises Related,Rents Payable,"Housing, Culture & Capital",Housing Strategy,
Payment to Individual,CF01435273,20/08/2010,-273.37,Customer and Client Receipts,Fees and Charges,Section 75 Adult Social Care,Contrib to S31 Partnership,
Payment to Individual,CF01435273,20/08/2010,814.92,Third Party Payments,Other Establishments,Section 75 Adult Social Care,Contrib to S31 Partnership,
Payment to Individual,CF01435274,20/08/2010,-273.37,Customer and Client Receipts,Fees and Charges,Section 75 Adult Social Care,Contrib to S31 Partnership,
Payment to Individual,CF01435274,20/08/2010,814.92,Third Party Payments,Other Establishments,Section 75 Adult Social Care,Contrib to S31 Partnership,
Payment to Individual,CF01435275,20/08/2010,-273.37,Customer and Client Receipts,Fees and Charges,Section 75 Adult Social Care,Contrib to S31 Partnership,
Payment to Individual,CF01435275,20/08/2010,814.92,Third Party Payments,Other Establishments,Section 75 Adult Social Care,Contrib to S31 Partnership,
Payment to Individual,CF01435276,20/08/2010,-273.37,Customer and Client Receipts,Fees and Charges,Section 75 Adult Social Care,Contrib to S31 Partnership,
Payment to Individual,CF01435276,20/08/2010,814.92,Third Party Payments,Other Establishments,Section 75 Adult Social Care,Contrib to S31 Partnership,
Payment to Individual,0038597,13/08/2010,550.00,Premises Related,Rents Payable,"Housing, Culture & Capital",Housing Strategy,
Payment to Individual,03989335,26/08/2010,"6,187.50",Indirect Employees,Miscellaneous Employee Costs,Strategy & Governance,Human Resources,
Angmering Day Nurseries Ltd,UL01417781,04/08/2010,"1,548.00",Supplies and Services,Grants and Subscriptions,Chilren & Young People's Trust,Area Integrated Working,
Angmering Day Nurseries Ltd,UL01437402,20/08/2010,790.00,Third Party Payments,Other Establishments,Chilren & Young People's Trust,Learning Schools & Skills,
Payment to Individual,0038832,20/08/2010,700.00,Premises Related,Rents Payable,"Housing, Culture & Capital",Housing Strategy,
Payment to Individual,0038340,04/08/2010,740.00,Premises Related,Rents Payable,"Housing, Culture & Capital",Housing Strategy,
Payment to Individual,0038757,20/08/2010,685.00,Premises Related,Rents Payable,"Housing, Culture & Capital",Housing Strategy,
Payment to Individual,0038881,25/08/2010,750.00,Premises Related,Rents Payable,"Housing, Culture & Capital",Housing Strategy,
Apogee Corporation Limited,03923155,13/08/2010,24.75,Premises Related,Repair Maint and Alterations,"Housing, Culture & Capital",Culture & Economy,
Apogee Corporation Limited,03923155,13/08/2010,"1,431.29",Supplies and Services,Equipment Furniture and Materials,"Housing, Culture & Capital",Culture & Economy,
Applegate Properties Ltd,0038470,11/08/2010,765.00,Premises Related,Rents Payable,"Housing, Culture & Capital",Housing Strategy,
Applegate Properties Ltd,0038589,13/08/2010,"1,200.00",Premises Related,Rents Payable,"Housing, Culture & Capital",Housing Strategy,
APT Skidata Ltd,03916023,04/08/2010,554.50,Supplies and Services,Equipment Furniture and Materials,Environment,Sustainable Transport&Planning,
APT Skidata Ltd,03921209,04/08/2010,982.94,Supplies and Services,Equipment Furniture and Materials,Environment,Sustainable Transport&Planning,
Aqua Seniors,03922567,04/08/2010,"2,500.00",Supplies and Services,Grants and Subscriptions,Strategy & Governance,Communities & Equality,
Arcool Ltd,03964855,20/08/2010,587.50,Supplies and Services,Equipment Furniture and Materials,Chilren & Young People's Trust,Learning Schools & Skills,
Arena Event Services Group Ltd t/a WDT London,03918526,04/08/2010,"1,173.37",Supplies and Services,Equipment Furniture and Materials,"Housing, Culture & Capital",Tourism & Venues,
Arena Events Serv Grp Ltd t/a Arena Seating,03918267,04/08/2010,"11,627.00",Supplies and Services,Equipment Furniture and Materials,"Housing, Culture & Capital",Tourism & Venues,
Arena Events Serv Grp Ltd t/a Arena Seating,03918283,04/08/2010,"11,627.00",Supplies and Services,Equipment Furniture and Materials,"Housing, Culture & Capital",Tourism & Venues,
Arena Events Serv Grp Ltd t/a Arena Seating,03940950,11/08/2010,"15,412.00",Supplies and Services,Equipment Furniture and Materials,"Housing, Culture & Capital",Tourism & Venues,
Argos BS Corporate Link - USE 82879,03937853,20/08/2010,697.70,Transfer Payments,Other Transfer Payments,Chilren & Young People's Trust,Area Integrated Working,
Ark Housing Consultancy LLP,03975093,25/08/2010,"15,400.00",Supplies and Services,Services,Adult Social Care,Housing Management,
Arrow Geophysics Ltd,03942673,13/08/2010,875.00,Third Party Payments,Private Contractors,Environment,Quality of Life & Green Spaces,
Artagent Ltd T/A David Taylor Training,03915626,04/08/2010,504.00,Indirect Employees,Training,Strategy & Governance,Human Resources,
Arundel Domiciliary Care Services,CF01431133,18/08/2010,"1,100.00",Third Party Payments,Other Establishments,Section 75 Adult Social Care,Contrib to S31 Partnership,
Arundel Domiciliary Care Services,CF01431134,18/08/2010,"1,100.00",Third Party Payments,Other Establishments,Section 75 Adult Social Care,Contrib to S31 Partnership,
Arundel Domiciliary Care Services,CF01431135,18/08/2010,"1,100.00",Third Party Payments,Other Establishments,Section 75 Adult Social Care,Contrib to S31 Partnership,
Arundel Domiciliary Care Services,CF01431136,18/08/2010,900.00,Third Party Payments,Other Establishments,Section 75 Adult Social Care,Contrib to S31 Partnership,
Arundel Domiciliary Care Services,CF01431137,18/08/2010,634.68,Third Party Payments,Other Establishments,Section 75 Adult Social Care,Contrib to S31 Partnership,
Arundel Domiciliary Care Services,CF01431138,18/08/2010,635.44,Third Party Payments,Other Establishments,Section 75 Adult Social Care,Contrib to S31 Partnership,
Arundel Domiciliary Care Services,CF01431139,18/08/2010,635.44,Third Party Payments,Other Establishments,Section 75 Adult Social Care,Contrib to S31 Partnership,
Arundel Domiciliary Care Services,CF01431140,18/08/2010,635.44,Third Party Payments,Other Establishments,Section 75 Adult Social Care,Contrib to S31 Partnership,
ARVAL PHH,03926712,06/08/2010,756.50,Transport Related,Direct Transport Costs,Adult Social Care,Housing Management,
ARVAL PHH,03941056,11/08/2010,"2,177.79",Transport Related,Direct Transport Costs,Environment,Quality of Life & Green Spaces,
ARVAL PHH,03979992,27/08/2010,712.39,Transport Related,Direct Transport Costs,Adult Social Care,Housing Management,
Ascendit Lifts Ltd,03943779,13/08/2010,"2,115.00",Capital Grants,,"Housing, Culture & Capital",Housing Strategy,
Ascendit Lifts Ltd,03946983,18/08/2010,"6,324.00",New Construction and Conversion,,"Housing, Culture & Capital",Housing Management,
Ascendit Lifts Ltd,03963539,20/08/2010,"2,445.00",Capital Grants,,"Housing, Culture & Capital",Housing Strategy,
Ascendit Lifts Ltd,03963584,20/08/2010,"5,052.00",Capital Grants,,"Housing, Culture & Capital",Housing Strategy,
ASD Unique Services Ltd,CF01440357,25/08/2010,-71.15,Customer and Client Receipts,Fees and Charges,Section 75 Adult Social Care,Contrib to S31 Partnership,
ASD Unique Services Ltd,CF01440357,25/08/2010,"1,121.55",Third Party Payments,Other Establishments,Section 75 Adult Social Care,Contrib to S31 Partnership,
ASD Unique Services Ltd,CF01440358,25/08/2010,-71.15,Customer and Client Receipts,Fees and Charges,Section 75 Adult Social Care,Contrib to S31 Partnership,
ASD Unique Services Ltd,CF01440358,25/08/2010,"1,121.55",Third Party Payments,Other Establishments,Section 75 Adult Social Care,Contrib to S31 Partnership,
ASD Unique Services Ltd,CF01440359,25/08/2010,-71.15,Customer and Client Receipts,Fees and Charges,Section 75 Adult Social Care,Contrib to S31 Partnership,
ASD Unique Services Ltd,CF01440359,25/08/2010,"1,121.55",Third Party Payments,Other Establishments,Section 75 Adult Social Care,Contrib to S31 Partnership,
ASD Unique Services Ltd,CF01440360,25/08/2010,-71.15,Customer and Client Receipts,Fees and Charges,Section 75 Adult Social Care,Contrib to S31 Partnership,
ASD Unique Services Ltd,CF01440360,25/08/2010,"1,121.55",Third Party Payments,Other Establishments,Section 75 Adult Social Care,Contrib to S31 Partnership,
Ashdown NH - Newcare Homes Ltd,CF01431235,20/08/2010,644.40,Third Party Payments,Other Establishments,Adult Social Care,Adult Social Care,
Ashdown NH - Newcare Homes Ltd,CF01431236,20/08/2010,644.40,Third Party Payments,Other Establishments,Adult Social Care,Adult Social Care,
Ashdown NH - Newcare Homes Ltd,CF01431237,20/08/2010,644.40,Third Party Payments,Other Establishments,Adult Social Care,Adult Social Care,
Ashdown NH - Newcare Homes Ltd,CF01431238,20/08/2010,644.40,Third Party Payments,Other Establishments,Adult Social Care,Adult Social Care,
Ashdown NH - Newcare Homes Ltd,CF01431239,20/08/2010,-124.05,Customer and Client Receipts,Fees and Charges,Section 75 Sussex Partnership,Contrib to S31 Partnership,
Ashdown NH - Newcare Homes Ltd,CF01431239,20/08/2010,629.40,Third Party Payments,Other Establishments,Section 75 Sussex Partnership,Contrib to S31 Partnership,
Ashdown NH - Newcare Homes Ltd,CF01431240,20/08/2010,-124.05,Customer and Client Receipts,Fees and Charges,Section 75 Sussex Partnership,Contrib to S31 Partnership,
Ashdown NH - Newcare Homes Ltd,CF01431240,20/08/2010,629.40,Third Party Payments,Other Establishments,Section 75 Sussex Partnership,Contrib to S31 Partnership,
Ashdown NH - Newcare Homes Ltd,CF01431241,20/08/2010,-124.05,Customer and Client Receipts,Fees and Charges,Section 75 Sussex Partnership,Contrib to S31 Partnership,
Ashdown NH - Newcare Homes Ltd,CF01431241,20/08/2010,629.40,Third Party Payments,Other Establishments,Section 75 Sussex Partnership,Contrib to S31 Partnership,
Ashdown NH - Newcare Homes Ltd,CF01431242,20/08/2010,-124.05,Customer and Client Receipts,Fees and Charges,Section 75 Sussex Partnership,Contrib to S31 Partnership,
Ashdown NH - Newcare Homes Ltd,CF01431242,20/08/2010,629.40,Third Party Payments,Other Establishments,Section 75 Sussex Partnership,Contrib to S31 Partnership,
Ashdown NH - Newcare Homes Ltd,CF01431243,20/08/2010,668.40,Third Party Payments,Other Establishments,Section 75 Sussex Partnership,Contrib to S31 Partnership,
Ashdown NH - Newcare Homes Ltd,CF01431244,20/08/2010,668.40,Third Party Payments,Other Establishments,Section 75 Sussex Partnership,Contrib to S31 Partnership,
Ashdown NH - Newcare Homes Ltd,CF01431245,20/08/2010,668.40,Third Party Payments,Other Establishments,Section 75 Sussex Partnership,Contrib to S31 Partnership,
Ashdown NH - Newcare Homes Ltd,CF01431246,20/08/2010,668.40,Third Party Payments,Other Establishments,Section 75 Sussex Partnership,Contrib to S31 Partnership,
Ashdown NH - Newcare Homes Ltd,CF01431247,20/08/2010,617.40,Third Party Payments,Other Establishments,Adult Social Care,Adult Social Care,
Ashdown NH - Newcare Homes Ltd,CF01431248,20/08/2010,617.40,Third Party Payments,Other Establishments,Adult Social Care,Adult Social Care,
Ashdown NH - Newcare Homes Ltd,CF01431249,20/08/2010,617.40,Third Party Payments,Other Establishments,Adult Social Care,Adult Social Care,
Ashdown NH - Newcare Homes Ltd,CF01431250,20/08/2010,617.40,Third Party Payments,Other Establishments,Adult Social Care,Adult Social Care,
Ashdown NH - Newcare Homes Ltd,CF01431251,20/08/2010,553.20,Third Party Payments,Other Establishments,Adult Social Care,Adult Social Care,
Ashdown NH - Newcare Homes Ltd,CF01431252,20/08/2010,553.20,Third Party Payments,Other Establishments,Adult Social Care,Adult Social Care,
Ashdown NH - Newcare Homes Ltd,CF01431253,20/08/2010,553.20,Third Party Payments,Other Establishments,Adult Social Care,Adult Social Care,
Ashdown NH - Newcare Homes Ltd,CF01431254,20/08/2010,553.20,Third Party Payments,Other Establishments,Adult Social Care,Adult Social Care,
Ashdown NH - Newcare Homes Ltd,CF01431255,20/08/2010,553.20,Third Party Payments,Other Establishments,Section 75 Sussex Partnership,Contrib to S31 Partnership,
Ashdown NH - Newcare Homes Ltd,CF01431256,20/08/2010,553.20,Third Party Payments,Other Establishments,Section 75 Sussex Partnership,Contrib to S31 Partnership,
Ashdown NH - Newcare Homes Ltd,CF01431257,20/08/2010,553.20,Third Party Payments,Other Establishments,Section 75 Sussex Partnership,Contrib to S31 Partnership,
Ashdown NH - Newcare Homes Ltd,CF01431258,20/08/2010,553.20,Third Party Payments,Other Establishments,Section 75 Sussex Partnership,Contrib to S31 Partnership,
Payment to Individual,0038996,27/08/2010,925.00,Premises Related,Rents Payable,"Housing, Culture & Capital",Housing Strategy,
Ashton House,CF01439673,25/08/2010,-110.30,Customer and Client Receipts,Fees and Charges,Section 75 Sussex Partnership,Contrib to S31 Partnership,
Ashton House,CF01439673,25/08/2010,748.40,Third Party Payments,Other Establishments,Section 75 Sussex Partnership,Contrib to S31 Partnership,
Ashton House,CF01439674,25/08/2010,-110.30,Customer and Client Receipts,Fees and Charges,Section 75 Sussex Partnership,Contrib to S31 Partnership,
Ashton House,CF01439674,25/08/2010,748.40,Third Party Payments,Other Establishments,Section 75 Sussex Partnership,Contrib to S31 Partnership,
Ashton House,CF01439675,25/08/2010,-110.30,Customer and Client Receipts,Fees and Charges,Section 75 Sussex Partnership,Contrib to S31 Partnership,
Ashton House,CF01439675,25/08/2010,748.40,Third Party Payments,Other Establishments,Section 75 Sussex Partnership,Contrib to S31 Partnership,
Ashton House,CF01439676,25/08/2010,-110.30,Customer and Client Receipts,Fees and Charges,Section 75 Sussex Partnership,Contrib to S31 Partnership,
Ashton House,CF01439676,25/08/2010,748.40,Third Party Payments,Other Establishments,Section 75 Sussex Partnership,Contrib to S31 Partnership,
Ashton House,CF01439677,25/08/2010,-121.09,Customer and Client Receipts,Fees and Charges,Section 75 Sussex Partnership,Contrib to S31 Partnership,
Ashton House,CF01439677,25/08/2010,748.40,Third Party Payments,Other Establishments,Section 75 Sussex Partnership,Contrib to S31 Partnership,
Ashton House,CF01439678,25/08/2010,-121.09,Customer and Client Receipts,Fees and Charges,Section 75 Sussex Partnership,Contrib to S31 Partnership,
Ashton House,CF01439678,25/08/2010,748.40,Third Party Payments,Other Establishments,Section 75 Sussex Partnership,Contrib to S31 Partnership,
Ashton House,CF01439679,25/08/2010,-121.09,Customer and Client Receipts,Fees and Charges,Section 75 Sussex Partnership,Contrib to S31 Partnership,
Ashton House,CF01439679,25/08/2010,748.40,Third Party Payments,Other Establishments,Section 75 Sussex Partnership,Contrib to S31 Partnership,
Ashton House,CF01439680,25/08/2010,-121.09,Customer and Client Receipts,Fees and Charges,Section 75 Sussex Partnership,Contrib to S31 Partnership,
Ashton House,CF01439680,25/08/2010,748.40,Third Party Payments,Other Establishments,Section 75 Sussex Partnership,Contrib to S31 Partnership,
Ashton House,CF01439689,25/08/2010,-136.48,Customer and Client Receipts,Fees and Charges,Section 75 Sussex Partnership,Contrib to S31 Partnership,
Ashton House,CF01439689,25/08/2010,802.40,Third Party Payments,Other Establishments,Section 75 Sussex Partnership,Contrib to S31 Partnership,
Ashton House,CF01439690,25/08/2010,-136.48,Customer and Client Receipts,Fees and Charges,Section 75 Sussex Partnership,Contrib to S31 Partnership,
Ashton House,CF01439690,25/08/2010,802.40,Third Party Payments,Other Establishments,Section 75 Sussex Partnership,Contrib to S31 Partnership,
Ashton House,CF01439691,25/08/2010,-136.48,Customer and Client Receipts,Fees and Charges,Section 75 Sussex Partnership,Contrib to S31 Partnership,
Ashton House,CF01439691,25/08/2010,802.40,Third Party Payments,Other Establishments,Section 75 Sussex Partnership,Contrib to S31 Partnership,
Ashton House,CF01439692,25/08/2010,-136.48,Customer and Client Receipts,Fees and Charges,Section 75 Sussex Partnership,Contrib to S31 Partnership,
Ashton House,CF01439692,25/08/2010,802.40,Third Party Payments,Other Establishments,Section 75 Sussex Partnership,Contrib to S31 Partnership,
Ashton House,CF01439693,25/08/2010,626.40,Third Party Payments,Other Establishments,Section 75 Sussex Partnership,Contrib to S31 Partnership,
Ashton House,CF01439694,25/08/2010,626.40,Third Party Payments,Other Establishments,Section 75 Sussex Partnership,Contrib to S31 Partnership,
Ashton House,CF01439695,25/08/2010,626.40,Third Party Payments,Other Establishments,Section 75 Sussex Partnership,Contrib to S31 Partnership,
Ashton House,CF01439696,25/08/2010,626.40,Third Party Payments,Other Establishments,Section 75 Sussex Partnership,Contrib to S31 Partnership,
Ashwood Medico-Legal Practice,03918597,04/08/2010,534.62,Supplies and Services,Services,Chilren & Young People's Trust,Area Integrated Working,
Aspen Arboricultural Ltd,03920682,04/08/2010,"1,050.00",Third Party Payments,Private Contractors,Environment,Quality of Life & Green Spaces,
Aspen Arboricultural Ltd,03933789,11/08/2010,700.00,Third Party Payments,Private Contractors,Environment,Quality of Life & Green Spaces,
Asphaleia Ltd,CF01438536,25/08/2010,958.26,Third Party Payments,Other Establishments,Chilren & Young People's Trust,Commissioning & Governance,
Asphaleia Ltd,CF01438537,25/08/2010,670.72,Third Party Payments,Other Establishments,Chilren & Young People's Trust,Commissioning & Governance,
Asphaleia Ltd,CF01438538,25/08/2010,670.72,Third Party Payments,Other Establishments,Chilren & Young People's Trust,Commissioning & Governance,
Asphaleia Ltd,CF01438539,25/08/2010,670.72,Third Party Payments,Other Establishments,Chilren & Young People's Trust,Commissioning & Governance,
Aspirations Active,03933446,11/08/2010,709.83,Third Party Payments,Other Establishments,Section 75 Adult Social Care,Contrib to S31 Partnership,
Aspirations Active,03956452,18/08/2010,"2,218.48",Third Party Payments,Other Establishments,Section 75 Adult Social Care,Contrib to S31 Partnership,
Aspirations Active,03956494,18/08/2010,"2,218.48",Third Party Payments,Other Establishments,Section 75 Adult Social Care,Contrib to S31 Partnership,
Aspirations Active,CF01419059,04/08/2010,538.15,Third Party Payments,Other Establishments,Section 75 Adult Social Care,Contrib to S31 Partnership,
Aspirations Active,CF01419060,04/08/2010,538.15,Third Party Payments,Other Establishments,Section 75 Adult Social Care,Contrib to S31 Partnership,
Aspirations Active,CF01419061,04/08/2010,538.15,Third Party Payments,Other Establishments,Section 75 Adult Social Care,Contrib to S31 Partnership,
Aspirations Active,CF01419062,04/08/2010,538.15,Third Party Payments,Other Establishments,Section 75 Adult Social Care,Contrib to S31 Partnership,
Aspirations Active,CF01419079,04/08/2010,559.90,Third Party Payments,Other Establishments,Section 75 Adult Social Care,Contrib to S31 Partnership,
Aspirations Active,CF01419080,04/08/2010,559.90,Third Party Payments,Other Establishments,Section 75 Adult Social Care,Contrib to S31 Partnership,
Aspirations Active,CF01419081,04/08/2010,559.90,Third Party Payments,Other Establishments,Section 75 Adult Social Care,Contrib to S31 Partnership,
Aspirations Active,CF01419082,04/08/2010,559.90,Third Party Payments,Other Establishments,Section 75 Adult Social Care,Contrib to S31 Partnership,
Aspirations Active,CF01419094,04/08/2010,582.60,Third Party Payments,Other Establishments,Section 75 Adult Social Care,Contrib to S31 Partnership,
Aspirations Active,CF01419095,04/08/2010,582.60,Third Party Payments,Other Establishments,Section 75 Adult Social Care,Contrib to S31 Partnership,
Aspirations Active,CF01419096,04/08/2010,582.60,Third Party Payments,Other Establishments,Section 75 Adult Social Care,Contrib to S31 Partnership,
Aspirations Active,CF01419097,04/08/2010,582.60,Third Party Payments,Other Establishments,Section 75 Adult Social Care,Contrib to S31 Partnership,
Aspirations Active,CF01419099,04/08/2010,548.90,Third Party Payments,Other Establishments,Section 75 Adult Social Care,Contrib to S31 Partnership,
Aspirations Active,CF01419100,04/08/2010,548.90,Third Party Payments,Other Establishments,Section 75 Adult Social Care,Contrib to S31 Partnership,
Aspirations Active,CF01419101,04/08/2010,548.90,Third Party Payments,Other Establishments,Section 75 Adult Social Care,Contrib to S31 Partnership,
Aspirations Active,CF01419102,04/08/2010,548.90,Third Party Payments,Other Establishments,Section 75 Adult Social Care,Contrib to S31 Partnership,
Asset Advantage Limited,03930106,06/08/2010,800.00,Capital Financing Costs,Capital Financing Costs,Finance & Resources,Financing Costs,
Associated Taxis Southwick T/A Taxilink,03942013,13/08/2010,"2,788.00",Transport Related,Other Transport Costs,Chilren & Young People's Trust,Learning Schools & Skills,
Association of Directors of Children Services Ltd,03949443,27/08/2010,800.00,Supplies and Services,Expenses,Chilren & Young People's Trust,Director Childrens Services,
A TAD Ltd t/a Carewatch (Brighton & Hove),CF01417321,04/08/2010,635.80,Third Party Payments,Other Establishments,Adult Social Care,Adult Social Care,
A TAD Ltd t/a Carewatch (Brighton & Hove),CF01417322,04/08/2010,637.84,Third Party Payments,Other Establishments,Adult Social Care,Adult Social Care,
A TAD Ltd t/a Carewatch (Brighton & Hove),CF01417477,04/08/2010,842.80,Third Party Payments,Other Establishments,Section 75 Sussex Partnership,Contrib to S31 Partnership,
A TAD Ltd t/a Carewatch (Brighton & Hove),CF01417478,04/08/2010,587.40,Third Party Payments,Other Establishments,Section 75 Sussex Partnership,Contrib to S31 Partnership,
A TAD Ltd t/a Carewatch (Brighton & Hove),CF01417533,04/08/2010,597.20,Third Party Payments,Other Establishments,Adult Social Care,Adult Social Care,
A TAD Ltd t/a Carewatch (Brighton & Hove),CF01417534,04/08/2010,842.80,Third Party Payments,Other Establishments,Adult Social Care,Adult Social Care,
A TAD Ltd t/a Carewatch (Brighton & Hove),CF01417624,04/08/2010,-26.00,Customer and Client Receipts,Fees and Charges,Adult Social Care,Adult Social Care,
A TAD Ltd t/a Carewatch (Brighton & Hove),CF01417624,04/08/2010,637.84,Third Party Payments,Other Establishments,Adult Social Care,Adult Social Care,
A TAD Ltd t/a Carewatch (Brighton & Hove),CF01417672,04/08/2010,759.00,Third Party Payments,Other Establishments,Adult Social Care,Adult Social Care,
A TAD Ltd t/a Carewatch (Brighton & Hove),CF01429692,18/08/2010,637.84,Third Party Payments,Other Establishments,Adult Social Care,Adult Social Care,
A TAD Ltd t/a Carewatch (Brighton & Hove),CF01429693,18/08/2010,575.56,Third Party Payments,Other Establishments,Adult Social Care,Adult Social Care,
A TAD Ltd t/a Carewatch (Brighton & Hove),CF01429720,18/08/2010,539.59,Third Party Payments,Other Establishments,Adult Social Care,Adult Social Care,
A TAD Ltd t/a Carewatch (Brighton & Hove),CF01429721,18/08/2010,515.73,Third Party Payments,Other Establishments,Adult Social Care,Adult Social Care,
A TAD Ltd t/a Carewatch (Brighton & Hove),CF01429739,18/08/2010,"1,025.64",Third Party Payments,Other Establishments,Section 75 Adult Social Care,Contrib to S31 Partnership,
A TAD Ltd t/a Carewatch (Brighton & Hove),CF01429740,18/08/2010,936.84,Third Party Payments,Other Establishments,Section 75 Adult Social Care,Contrib to S31 Partnership,
A TAD Ltd t/a Carewatch (Brighton & Hove),CF01429761,18/08/2010,637.84,Third Party Payments,Other Establishments,Adult Social Care,Adult Social Care,
A TAD Ltd t/a Carewatch (Brighton & Hove),CF01429762,18/08/2010,534.71,Third Party Payments,Other Establishments,Adult Social Care,Adult Social Care,
A TAD Ltd t/a Carewatch (Brighton & Hove),CF01430454,18/08/2010,789.19,Third Party Payments,Other Establishments,Adult Social Care,Adult Social Care,
A TAD Ltd t/a Carewatch (Brighton & Hove),CF01430481,18/08/2010,-26.00,Customer and Client Receipts,Fees and Charges,Adult Social Care,Adult Social Care,
A TAD Ltd t/a Carewatch (Brighton & Hove),CF01430481,18/08/2010,637.84,Third Party Payments,Other Establishments,Adult Social Care,Adult Social Care,
A TAD Ltd t/a Carewatch (Brighton & Hove),CF01430500,18/08/2010,759.00,Third Party Payments,Other Establishments,Adult Social Care,Adult Social Care,
A TAD Ltd t/a Carewatch (Brighton & Hove),CF01430545,18/08/2010,842.80,Third Party Payments,Other Establishments,Adult Social Care,Adult Social Care,
A TAD Ltd t/a Carewatch (Brighton & Hove),CF01430546,18/08/2010,597.20,Third Party Payments,Other Establishments,Adult Social Care,Adult Social Care,
A TAD Ltd t/a Carewatch (Brighton & Hove),CF01430594,18/08/2010,842.80,Third Party Payments,Other Establishments,Section 75 Sussex Partnership,Contrib to S31 Partnership,
A TAD Ltd t/a Carewatch (Brighton & Hove),CF01430595,18/08/2010,782.32,Third Party Payments,Other Establishments,Section 75 Sussex Partnership,Contrib to S31 Partnership,
A TAD Ltd t/a Carewatch (Brighton & Hove),CF01440926,27/08/2010,789.19,Third Party Payments,Other Establishments,Adult Social Care,Adult Social Care,
A TAD Ltd t/a Carewatch (Brighton & Hove),CF01440968,27/08/2010,566.01,Third Party Payments,Other Establishments,Adult Social Care,Adult Social Care,
A TAD Ltd t/a Carewatch (Brighton & Hove),CF01440969,27/08/2010,520.57,Third Party Payments,Other Establishments,Adult Social Care,Adult Social Care,
A TAD Ltd t/a Carewatch (Brighton & Hove),CF01440978,27/08/2010,-26.00,Customer and Client Receipts,Fees and Charges,Adult Social Care,Adult Social Care,
A TAD Ltd t/a Carewatch (Brighton & Hove),CF01440978,27/08/2010,637.84,Third Party Payments,Other Establishments,Adult Social Care,Adult Social Care,
A TAD Ltd t/a Carewatch (Brighton & Hove),CF01440994,27/08/2010,695.93,Third Party Payments,Other Establishments,Adult Social Care,Adult Social Care,
A TAD Ltd t/a Carewatch (Brighton & Hove),CF01440995,27/08/2010,759.00,Third Party Payments,Other Establishments,Adult Social Care,Adult Social Care,
A TAD Ltd t/a Carewatch (Brighton & Hove),CF01442522,27/08/2010,"1,087.80",Third Party Payments,Other Establishments,Section 75 Adult Social Care,Contrib to S31 Partnership,
A TAD Ltd t/a Carewatch (Brighton & Hove),CF01442523,27/08/2010,"1,025.64",Third Party Payments,Other Establishments,Section 75 Adult Social Care,Contrib to S31 Partnership,
A TAD Ltd t/a Carewatch (Brighton & Hove),CF01442528,27/08/2010,-30.00,Customer and Client Receipts,Fees and Charges,Adult Social Care,Adult Social Care,
A TAD Ltd t/a Carewatch (Brighton & Hove),CF01442528,27/08/2010,554.56,Third Party Payments,Other Establishments,Adult Social Care,Adult Social Care,
A TAD Ltd t/a Carewatch (Brighton & Hove),CF01442529,27/08/2010,-30.00,Customer and Client Receipts,Fees and Charges,Adult Social Care,Adult Social Care,
A TAD Ltd t/a Carewatch (Brighton & Hove),CF01442529,27/08/2010,554.56,Third Party Payments,Other Establishments,Adult Social Care,Adult Social Care,
A TAD Ltd t/a Carewatch (Brighton & Hove),CF01442531,27/08/2010,-30.00,Customer and Client Receipts,Fees and Charges,Adult Social Care,Adult Social Care,
A TAD Ltd t/a Carewatch (Brighton & Hove),CF01442531,27/08/2010,744.60,Third Party Payments,Other Establishments,Adult Social Care,Adult Social Care,
A TAD Ltd t/a Carewatch (Brighton & Hove),CF01442533,27/08/2010,-30.00,Customer and Client Receipts,Fees and Charges,Adult Social Care,Adult Social Care,
A TAD Ltd t/a Carewatch (Brighton & Hove),CF01442533,27/08/2010,637.84,Third Party Payments,Other Establishments,Adult Social Care,Adult Social Care,
A TAD Ltd t/a Carewatch (Brighton & Hove),CF01442534,27/08/2010,-30.00,Customer and Client Receipts,Fees and Charges,Adult Social Care,Adult Social Care,
A TAD Ltd t/a Carewatch (Brighton & Hove),CF01442534,27/08/2010,610.72,Third Party Payments,Other Establishments,Adult Social Care,Adult Social Care,
A TAD Ltd t/a Carewatch (Brighton & Hove),CF01442610,27/08/2010,637.84,Third Party Payments,Other Establishments,Adult Social Care,Adult Social Care,
A TAD Ltd t/a Carewatch (Brighton & Hove),CF01442649,27/08/2010,539.59,Third Party Payments,Other Establishments,Adult Social Care,Adult Social Care,
A TAD Ltd t/a Carewatch (Brighton & Hove),CF01442671,27/08/2010,"1,025.64",Third Party Payments,Other Establishments,Section 75 Adult Social Care,Contrib to S31 Partnership,
A TAD Ltd t/a Carewatch (Brighton & Hove),CF01442672,27/08/2010,999.00,Third Party Payments,Other Establishments,Section 75 Adult Social Care,Contrib to S31 Partnership,
A TAD Ltd t/a Carewatch (Brighton & Hove),CF01442709,27/08/2010,-30.00,Customer and Client Receipts,Fees and Charges,Adult Social Care,Adult Social Care,
A TAD Ltd t/a Carewatch (Brighton & Hove),CF01442709,27/08/2010,637.84,Third Party Payments,Other Establishments,Adult Social Care,Adult Social Care,
A TAD Ltd t/a Carewatch (Brighton & Hove),CF01443151,27/08/2010,837.20,Third Party Payments,Other Establishments,Adult Social Care,Adult Social Care,
A TAD Ltd t/a Carewatch (Brighton & Hove),CF01443152,27/08/2010,842.80,Third Party Payments,Other Establishments,Adult Social Care,Adult Social Care,
A TAD Ltd t/a Carewatch (Brighton & Hove),CF01443197,27/08/2010,521.32,Third Party Payments,Other Establishments,Section 75 Sussex Partnership,Contrib to S31 Partnership,
A TAD Ltd t/a Carewatch (Brighton & Hove),CF01443198,27/08/2010,842.80,Third Party Payments,Other Establishments,Section 75 Sussex Partnership,Contrib to S31 Partnership,
Atlantic Shopping,03942246,13/08/2010,"1,840.00",Supplies and Services,Equipment Furniture and Materials,"Housing, Culture & Capital",Tourism & Venues,
ATS Euromaster Ltd,03979167,27/08/2010,832.73,Transport Related,Contract Hire and Operating Leases,Environment,Waste,
ATS Euromaster Ltd,03979167,27/08/2010,"1,742.25",Transport Related,Direct Transport Costs,Environment,Quality of Life & Green Spaces,
ATS Euromaster Ltd,03979167,27/08/2010,"3,931.73",Transport Related,Direct Transport Costs,Environment,Waste,
Audioactive 2,03923618,04/08/2010,"18,829.00",Capital Grants,,Chilren & Young People's Trust,Area Integrated Working,
Audioactive 2,03982714,27/08/2010,"4,500.00",Supplies and Services,Grants and Subscriptions,Chilren & Young People's Trust,Area Integrated Working,
Audit Commission,03908808,04/08/2010,"23,239.70",Supplies and Services,Services,Finance & Resources,Financial Services,
Audit Commission,03972931,25/08/2010,"32,734.00",Supplies and Services,Services,Finance & Resources,Financial Services,
A-UKPay Ltd,03905995,06/08/2010,510.00,Supplies and Services,Print Stationery & General Office Expenses,Adult Social Care,Housing Management,
Austins Cradles Ltd,03926725,06/08/2010,500.00,Premises Related,Repair Maint and Alterations,Finance & Resources,Property & Design,
Aviation Projects Ltd,03970409,25/08/2010,"1,875.00",Supplies and Services,Services,Finance & Resources,ICT,
AVK/SEG (UK) Ltd,03964965,20/08/2010,"4,620.00",Premises Related,Repair Maint and Alterations,Finance & Resources,Property & Design,
Avon Estates (London) Ltd,0038555,13/08/2010,500.00,Premises Related,Rents Payable,"Housing, Culture & Capital",Housing Strategy,
AWCFA Limited,03946734,18/08/2010,"2,405.00",Supplies and Services,Services,Finance & Resources,ICT,
Aziz Associates,03983315,27/08/2010,"2,250.00",Indirect Employees,Training,Strategy & Governance,Human Resources,
BAAF Registered Charity,03918076,04/08/2010,"2,227.00",Supplies and Services,Services,Chilren & Young People's Trust,Area Integrated Working,
BAAF Registered Charity,03927313,06/08/2010,"1,709.79",Supplies and Services,Miscellaneous Expenses,Chilren & Young People's Trust,Area Integrated Working,
Baby Ducks Playgroup,03912043,04/08/2010,"2,000.00",Third Party Payments,Other Establishments,Chilren & Young People's Trust,Area Integrated Working,
Baby Ducks Playgroup,UL01417773,04/08/2010,"2,909.00",Supplies and Services,Grants and Subscriptions,Chilren & Young People's Trust,Area Integrated Working,
Baby Ducks Playgroup,UL01437394,20/08/2010,"1,128.00",Third Party Payments,Other Establishments,Chilren & Young People's Trust,Learning Schools & Skills,
Bakers Personal Injury Solicitors,03952485,17/08/2010,"4,000.00",Supplies and Services,Miscellaneous Expenses,Finance & Resources,Insurance Premiums,
Bakers Personal Injury Solicitors,03952511,17/08/2010,"10,000.00",Supplies and Services,Miscellaneous Expenses,Finance & Resources,Insurance Premiums,
Ballater House,CF01423143,11/08/2010,-71.15,Customer and Client Receipts,Fees and Charges,Section 75 Adult Social Care,Contrib to S31 Partnership,
Ballater House,CF01423143,11/08/2010,"1,995.00",Third Party Payments,Other Establishments,Section 75 Adult Social Care,Contrib to S31 Partnership,
Ballater House,CF01423144,11/08/2010,-71.15,Customer and Client Receipts,Fees and Charges,Section 75 Adult Social Care,Contrib to S31 Partnership,
Ballater House,CF01423144,11/08/2010,"1,995.00",Third Party Payments,Other Establishments,Section 75 Adult Social Care,Contrib to S31 Partnership,
Ballater House,CF01423145,11/08/2010,-71.15,Customer and Client Receipts,Fees and Charges,Section 75 Adult Social Care,Contrib to S31 Partnership,
Ballater House,CF01423145,11/08/2010,"1,995.00",Third Party Payments,Other Establishments,Section 75 Adult Social Care,Contrib to S31 Partnership,
Ballater House,CF01423146,11/08/2010,-71.15,Customer and Client Receipts,Fees and Charges,Section 75 Adult Social Care,Contrib to S31 Partnership,
Ballater House,CF01423146,11/08/2010,"1,995.00",Third Party Payments,Other Establishments,Section 75 Adult Social Care,Contrib to S31 Partnership,
BAM Agency Ltd,03918979,04/08/2010,600.00,Supplies and Services,Miscellaneous Expenses,Environment,Waste,
Payment to Individual,0038575,13/08/2010,560.00,Premises Related,Rents Payable,"Housing, Culture & Capital",Housing Strategy,
Barbara Miller Consultancy Limited,03975527,25/08/2010,500.00,Supplies and Services,Services,Chilren & Young People's Trust,Learning Schools & Skills,
Payment to Individual,0038839,20/08/2010,765.00,Premises Related,Rents Payable,"Housing, Culture & Capital",Housing Strategy,
Payment to Individual,0038840,20/08/2010,615.00,Premises Related,Rents Payable,"Housing, Culture & Capital",Housing Strategy,
Payment to Individual,0038841,20/08/2010,915.00,Premises Related,Rents Payable,"Housing, Culture & Capital",Housing Strategy,
Payment to Individual,0038842,20/08/2010,615.00,Premises Related,Rents Payable,"Housing, Culture & Capital",Housing Strategy,
Barchester Healthcare Homes Ltd,CF01434213,20/08/2010,-141.43,Customer and Client Receipts,Fees and Charges,Adult Social Care,Adult Social Care,
Barchester Healthcare Homes Ltd,CF01434213,20/08/2010,"1,078.92",Third Party Payments,Other Establishments,Adult Social Care,Adult Social Care,
Barchester Healthcare Homes Ltd,CF01434214,20/08/2010,-141.43,Customer and Client Receipts,Fees and Charges,Adult Social Care,Adult Social Care,
Barchester Healthcare Homes Ltd,CF01434214,20/08/2010,"1,078.92",Third Party Payments,Other Establishments,Adult Social Care,Adult Social Care,
Barchester Healthcare Homes Ltd,CF01434215,20/08/2010,-141.43,Customer and Client Receipts,Fees and Charges,Adult Social Care,Adult Social Care,
Barchester Healthcare Homes Ltd,CF01434215,20/08/2010,"1,078.92",Third Party Payments,Other Establishments,Adult Social Care,Adult Social Care,
Barchester Healthcare Homes Ltd,CF01434216,20/08/2010,-141.43,Customer and Client Receipts,Fees and Charges,Adult Social Care,Adult Social Care,
Barchester Healthcare Homes Ltd,CF01434216,20/08/2010,"1,078.92",Third Party Payments,Other Establishments,Adult Social Care,Adult Social Care,
Barchester Healthcare t/a Dudwell St Mary,CF01442405,27/08/2010,-352.96,Customer and Client Receipts,Fees and Charges,Section 75 Sussex Partnership,Contrib to S31 Partnership,
Barchester Healthcare t/a Dudwell St Mary,CF01442405,27/08/2010,891.40,Third Party Payments,Other Establishments,Section 75 Sussex Partnership,Contrib to S31 Partnership,
Barchester Healthcare t/a Dudwell St Mary,CF01442406,27/08/2010,-352.96,Customer and Client Receipts,Fees and Charges,Section 75 Sussex Partnership,Contrib to S31 Partnership,
Barchester Healthcare t/a Dudwell St Mary,CF01442406,27/08/2010,891.40,Third Party Payments,Other Establishments,Section 75 Sussex Partnership,Contrib to S31 Partnership,
Barchester Healthcare t/a Dudwell St Mary,CF01442407,27/08/2010,-352.96,Customer and Client Receipts,Fees and Charges,Section 75 Sussex Partnership,Contrib to S31 Partnership,
Barchester Healthcare t/a Dudwell St Mary,CF01442407,27/08/2010,891.40,Third Party Payments,Other Establishments,Section 75 Sussex Partnership,Contrib to S31 Partnership,
Barchester Healthcare t/a Dudwell St Mary,CF01442408,27/08/2010,-352.96,Customer and Client Receipts,Fees and Charges,Section 75 Sussex Partnership,Contrib to S31 Partnership,
Barchester Healthcare t/a Dudwell St Mary,CF01442408,27/08/2010,891.40,Third Party Payments,Other Establishments,Section 75 Sussex Partnership,Contrib to S31 Partnership,
Baron Management Ltd,03927533,03/08/2010,650.00,Third Party Payments,Other Establishments,"Housing, Culture & Capital",Housing Strategy,
Payment to Individual,03922428,04/08/2010,777.23,Third Party Payments,Other Establishments,Chilren & Young People's Trust,Area Integrated Working,
Bartlett Mechanical Services Ltd,03940387,11/08/2010,"2,918.00",Direct Employees,Salaries,Finance & Resources,Property & Design,
Bartlett Mechanical Services Ltd,03948703,18/08/2010,"2,918.00",Direct Employees,Salaries,Finance & Resources,Property & Design,
Bartram Mowers Limited,03971521,25/08/2010,"1,031.19",Transport Related,Direct Transport Costs,Environment,Quality of Life & Green Spaces,
Bay Media Ltd,03878420,04/08/2010,"2,400.00",Supplies and Services,Miscellaneous Expenses,"Housing, Culture & Capital",Tourism & Venues,
Bay Media Ltd,03878446,04/08/2010,"1,200.00",Supplies and Services,Miscellaneous Expenses,"Housing, Culture & Capital",Tourism & Venues,
Bay Media Ltd,03878488,04/08/2010,"1,200.00",Supplies and Services,Miscellaneous Expenses,"Housing, Culture & Capital",Tourism & Venues,
Beach House Kingsdown Ltd,CF01418241,04/08/2010,-71.15,Customer and Client Receipts,Fees and Charges,Section 75 Adult Social Care,Contrib to S31 Partnership,
Beach House Kingsdown Ltd,CF01418241,04/08/2010,814.98,Third Party Payments,Other Establishments,Section 75 Adult Social Care,Contrib to S31 Partnership,
Beach House Kingsdown Ltd,CF01418242,04/08/2010,-71.15,Customer and Client Receipts,Fees and Charges,Section 75 Adult Social Care,Contrib to S31 Partnership,
Beach House Kingsdown Ltd,CF01418242,04/08/2010,814.98,Third Party Payments,Other Establishments,Section 75 Adult Social Care,Contrib to S31 Partnership,
Beach House Kingsdown Ltd,CF01418243,04/08/2010,-71.15,Customer and Client Receipts,Fees and Charges,Section 75 Adult Social Care,Contrib to S31 Partnership,
Beach House Kingsdown Ltd,CF01418243,04/08/2010,814.98,Third Party Payments,Other Establishments,Section 75 Adult Social Care,Contrib to S31 Partnership,
Beach House Kingsdown Ltd,CF01418244,04/08/2010,-71.15,Customer and Client Receipts,Fees and Charges,Section 75 Adult Social Care,Contrib to S31 Partnership,
Beach House Kingsdown Ltd,CF01418244,04/08/2010,814.98,Third Party Payments,Other Establishments,Section 75 Adult Social Care,Contrib to S31 Partnership,
BeCCA Playgroup,UL01417748,04/08/2010,691.00,Supplies and Services,Grants and Subscriptions,Chilren & Young People's Trust,Area Integrated Working,
BeCCA Playgroup,UL01437369,20/08/2010,538.00,Third Party Payments,Other Establishments,Chilren & Young People's Trust,Learning Schools & Skills,
Beech Lodge,CF01423363,11/08/2010,-84.10,Customer and Client Receipts,Fees and Charges,Section 75 Adult Social Care,Contrib to S31 Partnership,
Beech Lodge,CF01423363,11/08/2010,"1,594.93",Third Party Payments,Other Establishments,Section 75 Adult Social Care,Contrib to S31 Partnership,
Beech Lodge,CF01423364,11/08/2010,-84.10,Customer and Client Receipts,Fees and Charges,Section 75 Adult Social Care,Contrib to S31 Partnership,
Beech Lodge,CF01423364,11/08/2010,"1,594.93",Third Party Payments,Other Establishments,Section 75 Adult Social Care,Contrib to S31 Partnership,
Beech Lodge,CF01423365,11/08/2010,-84.10,Customer and Client Receipts,Fees and Charges,Section 75 Adult Social Care,Contrib to S31 Partnership,
Beech Lodge,CF01423365,11/08/2010,"1,594.93",Third Party Payments,Other Establishments,Section 75 Adult Social Care,Contrib to S31 Partnership,
Beech Lodge,CF01423366,11/08/2010,-84.10,Customer and Client Receipts,Fees and Charges,Section 75 Adult Social Care,Contrib to S31 Partnership,
Beech Lodge,CF01423366,11/08/2010,"1,594.93",Third Party Payments,Other Establishments,Section 75 Adult Social Care,Contrib to S31 Partnership,
Beech Lodge,CF01423367,11/08/2010,-84.10,Customer and Client Receipts,Fees and Charges,Section 75 Adult Social Care,Contrib to S31 Partnership,
Beech Lodge,CF01423367,11/08/2010,"1,594.93",Third Party Payments,Other Establishments,Section 75 Adult Social Care,Contrib to S31 Partnership,
Payment to Individual,0039047,27/08/2010,825.00,Premises Related,Rents Payable,"Housing, Culture & Capital",Housing Strategy,
Berry Marketing Services Limited,03967357,20/08/2010,895.00,Supplies and Services,Miscellaneous Expenses,"Housing, Culture & Capital",Tourism & Venues,
Payment to Individual,03977499,25/08/2010,"1,255.70",Transfer Payments,Other Transfer Payments,Chilren & Young People's Trust,Area Integrated Working,
BHAFC Albion in the Community,03921403,04/08/2010,"2,500.00",Capital Grants,,Chilren & Young People's Trust,Area Integrated Working,
BHAFC Albion in the Community,03958081,18/08/2010,"3,290.15",Supplies and Services,Miscellaneous Expenses,"Housing, Culture & Capital",Culture & Economy,
BHASVIC,03972083,25/08/2010,"4,850.00",Indirect Employees,Training,Chilren & Young People's Trust,Learning Schools & Skills,
B & H Business Community Partnership,03977457,25/08/2010,"2,940.00",Third Party Payments,Other Establishments,Chilren & Young People's Trust,Learning Schools & Skills,
B&H Operatic Society t/a City Youth Theatre Co,03920446,04/08/2010,"4,000.00",Capital Grants,,Chilren & Young People's Trust,Area Integrated Working,
B&H Operatic Society t/a City Youth Theatre Co,03982727,27/08/2010,"1,000.00",Supplies and Services,Grants and Subscriptions,Chilren & Young People's Trust,Area Integrated Working,
Birchgrove Healthcare (Sussex) Ltd,CF01433352,20/08/2010,591.20,Third Party Payments,Other Establishments,Section 75 Sussex Partnership,Contrib to S31 Partnership,
Birchgrove Healthcare (Sussex) Ltd,CF01433353,20/08/2010,591.20,Third Party Payments,Other Establishments,Section 75 Sussex Partnership,Contrib to S31 Partnership,
Birchgrove Healthcare (Sussex) Ltd,CF01433354,20/08/2010,591.20,Third Party Payments,Other Establishments,Section 75 Sussex Partnership,Contrib to S31 Partnership,
Birchgrove Healthcare (Sussex) Ltd,CF01433355,20/08/2010,591.20,Third Party Payments,Other Establishments,Section 75 Sussex Partnership,Contrib to S31 Partnership,
Birchgrove Healthcare (Sussex) Ltd,CF01433360,20/08/2010,516.30,Third Party Payments,Other Establishments,Adult Social Care,Adult Social Care,
Birchgrove Healthcare (Sussex) Ltd,CF01433361,20/08/2010,516.30,Third Party Payments,Other Establishments,Adult Social Care,Adult Social Care,
Birchgrove Healthcare (Sussex) Ltd,CF01433362,20/08/2010,516.30,Third Party Payments,Other Establishments,Adult Social Care,Adult Social Care,
Birchgrove Healthcare (Sussex) Ltd,CF01433363,20/08/2010,516.30,Third Party Payments,Other Establishments,Adult Social Care,Adult Social Care,
Birchgrove Healthcare (Sussex) Ltd,CF01433368,20/08/2010,594.30,Third Party Payments,Other Establishments,Section 75 Sussex Partnership,Contrib to S31 Partnership,
Birchgrove Healthcare (Sussex) Ltd,CF01433369,20/08/2010,594.30,Third Party Payments,Other Establishments,Section 75 Sussex Partnership,Contrib to S31 Partnership,
Birchgrove Healthcare (Sussex) Ltd,CF01433370,20/08/2010,594.30,Third Party Payments,Other Establishments,Section 75 Sussex Partnership,Contrib to S31 Partnership,
Birchgrove Healthcare (Sussex) Ltd,CF01433371,20/08/2010,594.30,Third Party Payments,Other Establishments,Section 75 Sussex Partnership,Contrib to S31 Partnership,
Birchgrove Healthcare (Sussex) Ltd,CF01433376,20/08/2010,720.40,Third Party Payments,Other Establishments,Adult Social Care,Adult Social Care,
Birchgrove Healthcare (Sussex) Ltd,CF01433377,20/08/2010,720.40,Third Party Payments,Other Establishments,Adult Social Care,Adult Social Care,
Birchgrove Healthcare (Sussex) Ltd,CF01433378,20/08/2010,720.40,Third Party Payments,Other Establishments,Adult Social Care,Adult Social Care,
Birchgrove Healthcare (Sussex) Ltd,CF01433379,20/08/2010,720.40,Third Party Payments,Other Establishments,Adult Social Care,Adult Social Care,
Birchgrove Healthcare (Sussex) Ltd,CF01433383,20/08/2010,549.40,Third Party Payments,Other Establishments,Section 75 Sussex Partnership,Contrib to S31 Partnership,
Birchgrove Healthcare (Sussex) Ltd,CF01433384,20/08/2010,549.40,Third Party Payments,Other Establishments,Section 75 Sussex Partnership,Contrib to S31 Partnership,
Birchgrove Healthcare (Sussex) Ltd,CF01433385,20/08/2010,549.40,Third Party Payments,Other Establishments,Section 75 Sussex Partnership,Contrib to S31 Partnership,
Birchgrove Healthcare (Sussex) Ltd,CF01433386,20/08/2010,549.40,Third Party Payments,Other Establishments,Section 75 Sussex Partnership,Contrib to S31 Partnership,
Birchgrove Healthcare (Sussex) Ltd,CF01433395,20/08/2010,552.40,Third Party Payments,Other Establishments,Section 75 Sussex Partnership,Contrib to S31 Partnership,
Birchgrove Healthcare (Sussex) Ltd,CF01433396,20/08/2010,552.40,Third Party Payments,Other Establishments,Section 75 Sussex Partnership,Contrib to S31 Partnership,
Birchgrove Healthcare (Sussex) Ltd,CF01433397,20/08/2010,552.40,Third Party Payments,Other Establishments,Section 75 Sussex Partnership,Contrib to S31 Partnership,
Birchgrove Healthcare (Sussex) Ltd,CF01433398,20/08/2010,552.40,Third Party Payments,Other Establishments,Section 75 Sussex Partnership,Contrib to S31 Partnership,
Birchgrove Healthcare (Sussex) Ltd,CF01433399,20/08/2010,559.30,Third Party Payments,Other Establishments,Section 75 Sussex Partnership,Contrib to S31 Partnership,
Birchgrove Healthcare (Sussex) Ltd,CF01433400,20/08/2010,559.30,Third Party Payments,Other Establishments,Section 75 Sussex Partnership,Contrib to S31 Partnership,
Birchgrove Healthcare (Sussex) Ltd,CF01433401,20/08/2010,559.30,Third Party Payments,Other Establishments,Section 75 Sussex Partnership,Contrib to S31 Partnership,
Birchgrove Healthcare (Sussex) Ltd,CF01433402,20/08/2010,559.30,Third Party Payments,Other Establishments,Section 75 Sussex Partnership,Contrib to S31 Partnership,
Birchgrove Healthcare (Sussex) Ltd,CF01433415,20/08/2010,897.00,Third Party Payments,Other Establishments,Section 75 Adult Social Care,Contrib to S31 Partnership,
Birchgrove Healthcare (Sussex) Ltd,CF01433416,20/08/2010,897.00,Third Party Payments,Other Establishments,Section 75 Adult Social Care,Contrib to S31 Partnership,
Birchgrove Healthcare (Sussex) Ltd,CF01433417,20/08/2010,897.00,Third Party Payments,Other Establishments,Section 75 Adult Social Care,Contrib to S31 Partnership,
Birchgrove Healthcare (Sussex) Ltd,CF01433418,20/08/2010,897.00,Third Party Payments,Other Establishments,Section 75 Adult Social Care,Contrib to S31 Partnership,
Birchgrove Healthcare (Sussex) Ltd,CF01433419,20/08/2010,"1,045.00",Third Party Payments,Other Establishments,Section 75 Adult Social Care,Contrib to S31 Partnership,
Birchgrove Healthcare (Sussex) Ltd,CF01433420,20/08/2010,"1,045.00",Third Party Payments,Other Establishments,Section 75 Adult Social Care,Contrib to S31 Partnership,
Birchgrove Healthcare (Sussex) Ltd,CF01433421,20/08/2010,"1,045.00",Third Party Payments,Other Establishments,Section 75 Adult Social Care,Contrib to S31 Partnership,
Birchgrove Healthcare (Sussex) Ltd,CF01433422,20/08/2010,"1,045.00",Third Party Payments,Other Establishments,Section 75 Adult Social Care,Contrib to S31 Partnership,
Birchgrove Healthcare (Sussex) Ltd,CF01433431,20/08/2010,995.00,Third Party Payments,Other Establishments,Section 75 Adult Social Care,Contrib to S31 Partnership,
Birchgrove Healthcare (Sussex) Ltd,CF01433432,20/08/2010,995.00,Third Party Payments,Other Establishments,Section 75 Adult Social Care,Contrib to S31 Partnership,
Birchgrove Healthcare (Sussex) Ltd,CF01433433,20/08/2010,995.00,Third Party Payments,Other Establishments,Section 75 Adult Social Care,Contrib to S31 Partnership,
Birchgrove Healthcare (Sussex) Ltd,CF01433434,20/08/2010,995.00,Third Party Payments,Other Establishments,Section 75 Adult Social Care,Contrib to S31 Partnership,
Birchgrove Healthcare (Sussex) Ltd,CF01433455,20/08/2010,559.30,Third Party Payments,Other Establishments,Section 75 Sussex Partnership,Contrib to S31 Partnership,
Birchgrove Healthcare (Sussex) Ltd,CF01433456,20/08/2010,559.30,Third Party Payments,Other Establishments,Section 75 Sussex Partnership,Contrib to S31 Partnership,
Birchgrove Healthcare (Sussex) Ltd,CF01433457,20/08/2010,559.30,Third Party Payments,Other Establishments,Section 75 Sussex Partnership,Contrib to S31 Partnership,
Birchgrove Healthcare (Sussex) Ltd,CF01433458,20/08/2010,559.30,Third Party Payments,Other Establishments,Section 75 Sussex Partnership,Contrib to S31 Partnership,
Birchgrove Healthcare (Sussex) Ltd,CF01433459,20/08/2010,-89.50,Customer and Client Receipts,Fees and Charges,Adult Social Care,Adult Social Care,
Birchgrove Healthcare (Sussex) Ltd,CF01433459,20/08/2010,597.06,Third Party Payments,Other Establishments,Adult Social Care,Adult Social Care,
Birchgrove Healthcare (Sussex) Ltd,CF01433460,20/08/2010,-89.50,Customer and Client Receipts,Fees and Charges,Adult Social Care,Adult Social Care,
Birchgrove Healthcare (Sussex) Ltd,CF01433460,20/08/2010,597.06,Third Party Payments,Other Establishments,Adult Social Care,Adult Social Care,
Birchgrove Healthcare (Sussex) Ltd,CF01433461,20/08/2010,-89.50,Customer and Client Receipts,Fees and Charges,Adult Social Care,Adult Social Care,
Birchgrove Healthcare (Sussex) Ltd,CF01433461,20/08/2010,597.06,Third Party Payments,Other Establishments,Adult Social Care,Adult Social Care,
Birchgrove Healthcare (Sussex) Ltd,CF01433462,20/08/2010,-89.50,Customer and Client Receipts,Fees and Charges,Adult Social Care,Adult Social Care,
Birchgrove Healthcare (Sussex) Ltd,CF01433462,20/08/2010,597.06,Third Party Payments,Other Establishments,Adult Social Care,Adult Social Care,
Birchwood Grove Nursing Home,CF01423201,11/08/2010,-110.30,Customer and Client Receipts,Fees and Charges,Adult Social Care,Adult Social Care,
Birchwood Grove Nursing Home,CF01423201,11/08/2010,613.30,Third Party Payments,Other Establishments,Adult Social Care,Adult Social Care,
Birchwood Grove Nursing Home,CF01423202,11/08/2010,-110.30,Customer and Client Receipts,Fees and Charges,Adult Social Care,Adult Social Care,
Birchwood Grove Nursing Home,CF01423202,11/08/2010,613.30,Third Party Payments,Other Establishments,Adult Social Care,Adult Social Care,
Birchwood Grove Nursing Home,CF01423203,11/08/2010,-110.30,Customer and Client Receipts,Fees and Charges,Adult Social Care,Adult Social Care,
Birchwood Grove Nursing Home,CF01423203,11/08/2010,613.30,Third Party Payments,Other Establishments,Adult Social Care,Adult Social Care,
Birchwood Grove Nursing Home,CF01423204,11/08/2010,-110.30,Customer and Client Receipts,Fees and Charges,Adult Social Care,Adult Social Care,
Birchwood Grove Nursing Home,CF01423204,11/08/2010,613.30,Third Party Payments,Other Establishments,Adult Social Care,Adult Social Care,
Birchwood Grove Nursing Home,CF01423205,11/08/2010,571.40,Third Party Payments,Other Establishments,Section 75 Sussex Partnership,Contrib to S31 Partnership,
Birchwood Grove Nursing Home,CF01423206,11/08/2010,571.40,Third Party Payments,Other Establishments,Section 75 Sussex Partnership,Contrib to S31 Partnership,
Birchwood Grove Nursing Home,CF01423207,11/08/2010,571.40,Third Party Payments,Other Establishments,Section 75 Sussex Partnership,Contrib to S31 Partnership,
Birchwood Grove Nursing Home,CF01423208,11/08/2010,571.40,Third Party Payments,Other Establishments,Section 75 Sussex Partnership,Contrib to S31 Partnership,
Birchwood Grove Nursing Home,CF01423225,11/08/2010,707.30,Third Party Payments,Other Establishments,Section 75 Sussex Partnership,Contrib to S31 Partnership,
Birchwood Grove Nursing Home,CF01423226,11/08/2010,707.30,Third Party Payments,Other Establishments,Section 75 Sussex Partnership,Contrib to S31 Partnership,
Birchwood Grove Nursing Home,CF01423227,11/08/2010,707.30,Third Party Payments,Other Establishments,Section 75 Sussex Partnership,Contrib to S31 Partnership,
Birchwood Grove Nursing Home,CF01423228,11/08/2010,707.30,Third Party Payments,Other Establishments,Section 75 Sussex Partnership,Contrib to S31 Partnership,
Birmingham City Council,03919460,04/08/2010,910.00,Supplies and Services,Print Stationery & General Office Expenses,Finance & Resources,Audit and Business Risk,
Bishops Printers Ltd,03913657,04/08/2010,960.00,Supplies and Services,Miscellaneous Expenses,"Housing, Culture & Capital",Tourism & Venues,
Bishops Printers Ltd,03938205,11/08/2010,"1,350.00",Supplies and Services,Miscellaneous Expenses,"Housing, Culture & Capital",Tourism & Venues,
Bishops Printers Ltd,03938302,11/08/2010,785.00,Supplies and Services,Miscellaneous Expenses,"Housing, Culture & Capital",Tourism & Venues,
B & J G Richardson Business Account,CF01438958,25/08/2010,"-1,054.82",Customer and Client Receipts,Fees and Charges,Adult Social Care,Adult Social Care,
B & J G Richardson Business Account,CF01438958,25/08/2010,"1,827.53",Third Party Payments,Other Establishments,Adult Social Care,Adult Social Care,
B & J G Richardson Business Account,CF01438959,25/08/2010,"-1,054.82",Customer and Client Receipts,Fees and Charges,Adult Social Care,Adult Social Care,
B & J G Richardson Business Account,CF01438959,25/08/2010,"1,827.53",Third Party Payments,Other Establishments,Adult Social Care,Adult Social Care,
B & J G Richardson Business Account,CF01438960,25/08/2010,"-1,054.82",Customer and Client Receipts,Fees and Charges,Adult Social Care,Adult Social Care,
B & J G Richardson Business Account,CF01438960,25/08/2010,"1,827.53",Third Party Payments,Other Establishments,Adult Social Care,Adult Social Care,
B & J G Richardson Business Account,CF01438961,25/08/2010,"-1,054.82",Customer and Client Receipts,Fees and Charges,Adult Social Care,Adult Social Care,
B & J G Richardson Business Account,CF01438961,25/08/2010,"1,827.53",Third Party Payments,Other Establishments,Adult Social Care,Adult Social Care,
Blackburns Metals Ltd,03931189,11/08/2010,640.80,Supplies and Services,Equipment Furniture and Materials,Strategy & Governance,Communications,
Blackburns Metals Ltd,03931192,13/08/2010,595.10,Supplies and Services,Equipment Furniture and Materials,Strategy & Governance,Communications,
Blackburns Metals Ltd,03967564,20/08/2010,842.80,Supplies and Services,Equipment Furniture and Materials,Strategy & Governance,Communications,
BLB Surveyors Ltd,03916586,04/08/2010,"1,170.00",New Construction and Conversion,,"Housing, Culture & Capital",Housing Management,
BLB Surveyors Ltd,03932971,11/08/2010,850.00,New Construction and Conversion,,"Housing, Culture & Capital",Housing Management,
BLB Surveyors Ltd,03933064,11/08/2010,"1,487.34",New Construction and Conversion,,"Housing, Culture & Capital",Housing Management,
Blueberry Nursery & Early Learning Organisation Ld,UL01417713,04/08/2010,"7,902.00",Supplies and Services,Grants and Subscriptions,Chilren & Young People's Trust,Area Integrated Working,
Blueberry Nursery & Early Learning Organisation Ld,UL01437334,20/08/2010,"3,613.00",Third Party Payments,Other Establishments,Chilren & Young People's Trust,Learning Schools & Skills,
Blue Sky Fostering Limited,CF01421418,11/08/2010,"1,159.00",Third Party Payments,Other Establishments,Chilren & Young People's Trust,Commissioning & Governance,
Blue Sky Fostering Limited,CF01421419,11/08/2010,811.30,Third Party Payments,Other Establishments,Chilren & Young People's Trust,Commissioning & Governance,
Blue Sky Fostering Limited,CF01421420,11/08/2010,811.30,Third Party Payments,Other Establishments,Chilren & Young People's Trust,Commissioning & Governance,
Blue Sky Fostering Limited,CF01421421,11/08/2010,811.30,Third Party Payments,Other Establishments,Chilren & Young People's Trust,Commissioning & Governance,
Blue Sky Fostering Limited,CF01421422,11/08/2010,"1,159.00",Third Party Payments,Other Establishments,Chilren & Young People's Trust,Commissioning & Governance,
Blue Sky Fostering Limited,CF01421423,11/08/2010,811.30,Third Party Payments,Other Establishments,Chilren & Young People's Trust,Commissioning & Governance,
Blue Sky Fostering Limited,CF01421424,11/08/2010,811.30,Third Party Payments,Other Establishments,Chilren & Young People's Trust,Commissioning & Governance,
Blue Sky Fostering Limited,CF01421425,11/08/2010,811.30,Third Party Payments,Other Establishments,Chilren & Young People's Trust,Commissioning & Governance,
Bolton Carpentry,03948224,18/08/2010,914.00,New Construction and Conversion,,Adult Social Care,Housing Strategy,
Bond International t/a TeamSpirit Software Limited,03946637,27/08/2010,"4,996.35",Supplies and Services,Communications and Computing,Strategy & Governance,Human Resources,
Boomerang Kids,UL01417749,04/08/2010,"5,736.00",Supplies and Services,Grants and Subscriptions,Chilren & Young People's Trust,Area Integrated Working,
Boomerang Kids,UL01437370,20/08/2010,"2,312.00",Third Party Payments,Other Establishments,Chilren & Young People's Trust,Learning Schools & Skills,
Bramber Nursing Home Ltd,CF01431472,20/08/2010,676.40,Third Party Payments,Other Establishments,Section 75 Sussex Partnership,Contrib to S31 Partnership,
Bramber Nursing Home Ltd,CF01431473,20/08/2010,676.40,Third Party Payments,Other Establishments,Section 75 Sussex Partnership,Contrib to S31 Partnership,
Bramber Nursing Home Ltd,CF01431474,20/08/2010,676.40,Third Party Payments,Other Establishments,Section 75 Sussex Partnership,Contrib to S31 Partnership,
Bramber Nursing Home Ltd,CF01431475,20/08/2010,676.40,Third Party Payments,Other Establishments,Section 75 Sussex Partnership,Contrib to S31 Partnership,
Bramble Care Homes Ltd,CF01431480,20/08/2010,-118.70,Customer and Client Receipts,Fees and Charges,Adult Social Care,Adult Social Care,
Bramble Care Homes Ltd,CF01431480,20/08/2010,635.00,Third Party Payments,Other Establishments,Adult Social Care,Adult Social Care,
Bramble Care Homes Ltd,CF01431481,20/08/2010,-118.70,Customer and Client Receipts,Fees and Charges,Adult Social Care,Adult Social Care,
Bramble Care Homes Ltd,CF01431481,20/08/2010,635.00,Third Party Payments,Other Establishments,Adult Social Care,Adult Social Care,
Bramble Care Homes Ltd,CF01431482,20/08/2010,-118.70,Customer and Client Receipts,Fees and Charges,Adult Social Care,Adult Social Care,
Bramble Care Homes Ltd,CF01431482,20/08/2010,635.00,Third Party Payments,Other Establishments,Adult Social Care,Adult Social Care,
Bramble Care Homes Ltd,CF01431483,20/08/2010,-118.70,Customer and Client Receipts,Fees and Charges,Adult Social Care,Adult Social Care,
Bramble Care Homes Ltd,CF01431483,20/08/2010,635.00,Third Party Payments,Other Establishments,Adult Social Care,Adult Social Care,
Bridge Community Education Centre,03958256,18/08/2010,680.05,Supplies and Services,Miscellaneous Expenses,"Housing, Culture & Capital",Culture & Economy,
Brighter Futures Foster Care Ltd,CF01418132,04/08/2010,"1,085.71",Third Party Payments,Other Establishments,Chilren & Young People's Trust,Commissioning & Governance,
Brighter Futures Foster Care Ltd,CF01418133,04/08/2010,760.00,Third Party Payments,Other Establishments,Chilren & Young People's Trust,Commissioning & Governance,
Brighter Futures Foster Care Ltd,CF01418134,04/08/2010,760.00,Third Party Payments,Other Establishments,Chilren & Young People's Trust,Commissioning & Governance,
Brighter Futures Foster Care Ltd,CF01418135,04/08/2010,760.00,Third Party Payments,Other Establishments,Chilren & Young People's Trust,Commissioning & Governance,
Brighter Futures Foster Care Ltd,CF01418138,04/08/2010,"1,085.71",Third Party Payments,Other Establishments,Chilren & Young People's Trust,Commissioning & Governance,
Brighter Futures Foster Care Ltd,CF01418139,04/08/2010,760.00,Third Party Payments,Other Establishments,Chilren & Young People's Trust,Commissioning & Governance,
Brighter Futures Foster Care Ltd,CF01418140,04/08/2010,760.00,Third Party Payments,Other Establishments,Chilren & Young People's Trust,Commissioning & Governance,
Brighter Futures Foster Care Ltd,CF01418141,04/08/2010,760.00,Third Party Payments,Other Establishments,Chilren & Young People's Trust,Commissioning & Governance,
Brighter Futures Foster Care Ltd,CF01418142,04/08/2010,"1,303.57",Third Party Payments,Other Establishments,Chilren & Young People's Trust,Commissioning & Governance,
Brighter Futures Foster Care Ltd,CF01418143,04/08/2010,860.00,Third Party Payments,Other Establishments,Chilren & Young People's Trust,Commissioning & Governance,
Brighter Futures Foster Care Ltd,CF01418144,04/08/2010,860.00,Third Party Payments,Other Establishments,Chilren & Young People's Trust,Commissioning & Governance,
Brighter Futures Foster Care Ltd,CF01418145,04/08/2010,860.00,Third Party Payments,Other Establishments,Chilren & Young People's Trust,Commissioning & Governance,
Brighter Futures Foster Care Ltd,CF01418146,04/08/2010,886.69,Third Party Payments,Other Establishments,Chilren & Young People's Trust,Commissioning & Governance,
Brighter Futures Foster Care Ltd,CF01418147,04/08/2010,620.66,Third Party Payments,Other Establishments,Chilren & Young People's Trust,Commissioning & Governance,
Brighter Futures Foster Care Ltd,CF01418148,04/08/2010,620.66,Third Party Payments,Other Establishments,Chilren & Young People's Trust,Commissioning & Governance,
Brighter Futures Foster Care Ltd,CF01418149,04/08/2010,620.66,Third Party Payments,Other Establishments,Chilren & Young People's Trust,Commissioning & Governance,
Brighter Futures Foster Care Ltd,CF01418150,04/08/2010,886.68,Third Party Payments,Other Establishments,Chilren & Young People's Trust,Commissioning & Governance,
Brighter Futures Foster Care Ltd,CF01418151,04/08/2010,620.66,Third Party Payments,Other Establishments,Chilren & Young People's Trust,Commissioning & Governance,
Brighter Futures Foster Care Ltd,CF01418152,04/08/2010,620.66,Third Party Payments,Other Establishments,Chilren & Young People's Trust,Commissioning & Governance,
Brighter Futures Foster Care Ltd,CF01418153,04/08/2010,620.66,Third Party Payments,Other Establishments,Chilren & Young People's Trust,Commissioning & Governance,
Brighter Futures Foster Care Ltd,CF01418154,04/08/2010,886.69,Third Party Payments,Other Establishments,Chilren & Young People's Trust,Commissioning & Governance,
Brighter Futures Foster Care Ltd,CF01418155,04/08/2010,620.66,Third Party Payments,Other Establishments,Chilren & Young People's Trust,Commissioning & Governance,
Brighter Futures Foster Care Ltd,CF01418156,04/08/2010,620.66,Third Party Payments,Other Establishments,Chilren & Young People's Trust,Commissioning & Governance,
Brighter Futures Foster Care Ltd,CF01418157,04/08/2010,620.66,Third Party Payments,Other Establishments,Chilren & Young People's Trust,Commissioning & Governance,
Brighter Futures Foster Care Ltd,CF01418158,04/08/2010,886.68,Third Party Payments,Other Establishments,Chilren & Young People's Trust,Commissioning & Governance,
Brighter Futures Foster Care Ltd,CF01418159,04/08/2010,620.66,Third Party Payments,Other Establishments,Chilren & Young People's Trust,Commissioning & Governance,
Brighter Futures Foster Care Ltd,CF01418160,04/08/2010,620.66,Third Party Payments,Other Establishments,Chilren & Young People's Trust,Commissioning & Governance,
Brighter Futures Foster Care Ltd,CF01418161,04/08/2010,620.66,Third Party Payments,Other Establishments,Chilren & Young People's Trust,Commissioning & Governance,
Brighter Futures Foster Care Ltd,CF01418162,04/08/2010,886.69,Third Party Payments,Other Establishments,Chilren & Young People's Trust,Commissioning & Governance,
Brighter Futures Foster Care Ltd,CF01418163,04/08/2010,620.66,Third Party Payments,Other Establishments,Chilren & Young People's Trust,Commissioning & Governance,
Brighter Futures Foster Care Ltd,CF01418164,04/08/2010,620.66,Third Party Payments,Other Establishments,Chilren & Young People's Trust,Commissioning & Governance,
Brighter Futures Foster Care Ltd,CF01418165,04/08/2010,620.66,Third Party Payments,Other Establishments,Chilren & Young People's Trust,Commissioning & Governance,
Brighter Futures Foster Care Ltd,CF01418166,04/08/2010,886.69,Third Party Payments,Other Establishments,Chilren & Young People's Trust,Commissioning & Governance,
Brighter Futures Foster Care Ltd,CF01418167,04/08/2010,620.66,Third Party Payments,Other Establishments,Chilren & Young People's Trust,Commissioning & Governance,
Brighter Futures Foster Care Ltd,CF01418168,04/08/2010,620.66,Third Party Payments,Other Establishments,Chilren & Young People's Trust,Commissioning & Governance,
Brighter Futures Foster Care Ltd,CF01418169,04/08/2010,620.66,Third Party Payments,Other Establishments,Chilren & Young People's Trust,Commissioning & Governance,
Brighthelm Church & Community Centre Trust Ltd,UL01417681,04/08/2010,590.00,Supplies and Services,Grants and Subscriptions,Chilren & Young People's Trust,Area Integrated Working,
Brighton BID Limited,03957079,18/08/2010,"74,508.50",Third Party Payments,Other Establishments,Finance & Resources,To Be Advised,
Brighton Carnival,03941551,13/08/2010,"2,000.00",Supplies and Services,Grants and Subscriptions,Strategy & Governance,Communities & Equality,
Brighton Carrier Service,03983360,27/08/2010,638.60,Supplies and Services,Services,"Housing, Culture & Capital",Libraries & Information Servic,
Brighton City Table Tennis Club,03926356,06/08/2010,"2,000.00",Capital Grants,,Chilren & Young People's Trust,Area Integrated Working,
Brighton City Table Tennis Club,03983108,27/08/2010,"5,000.00",Supplies and Services,Grants and Subscriptions,Chilren & Young People's Trust,Area Integrated Working,
Brighton College,UL01417722,04/08/2010,"5,763.00",Supplies and Services,Grants and Subscriptions,Chilren & Young People's Trust,Area Integrated Working,
Brighton College,UL01437343,20/08/2010,"2,728.00",Third Party Payments,Other Establishments,Chilren & Young People's Trust,Learning Schools & Skills,
Brighton Day Nursery,UL01417745,04/08/2010,877.00,Supplies and Services,Grants and Subscriptions,Chilren & Young People's Trust,Area Integrated Working,
Brighton Day Nursery,UL01437366,20/08/2010,772.00,Third Party Payments,Other Establishments,Chilren & Young People's Trust,Learning Schools & Skills,
Brighton Design Associates Ltd,03973859,25/08/2010,690.00,Supplies and Services,Miscellaneous Expenses,"Housing, Culture & Capital",Tourism & Venues,
Brighton Dome & Festival Ltd,03919554,04/08/2010,"1,000.00",Supplies and Services,Miscellaneous Expenses,"Housing, Culture & Capital",Culture & Economy,
Brighton Dome & Festival (Trading) Ltd,03958625,18/08/2010,924.63,Supplies and Services,Miscellaneous Expenses,"Housing, Culture & Capital",Culture & Economy,
Brighton Dome & Festival (Trading) Ltd,03958638,18/08/2010,750.00,Supplies and Services,Miscellaneous Expenses,"Housing, Culture & Capital",Culture & Economy,
Brighton Homes,03963681,18/08/2010,"1,350.00",Third Party Payments,Other Establishments,"Housing, Culture & Capital",Housing Strategy,
Brighton Housing Trust,CS01425975,11/08/2010,"2,631.30",Transfer Payments,Supporting People,"Housing, Culture & Capital",Housing Strategy,
Brighton Housing Trust,CS01425976,11/08/2010,"2,631.30",Transfer Payments,Supporting People,"Housing, Culture & Capital",Housing Strategy,
Brighton Housing Trust,CS01425977,11/08/2010,"2,631.30",Transfer Payments,Supporting People,"Housing, Culture & Capital",Housing Strategy,
Brighton Housing Trust,CS01425978,11/08/2010,"2,631.30",Transfer Payments,Supporting People,"Housing, Culture & Capital",Housing Strategy,
Brighton Housing Trust,CS01425979,11/08/2010,"3,774.26",Transfer Payments,Supporting People,"Housing, Culture & Capital",Housing Strategy,
Brighton Housing Trust,CS01425980,11/08/2010,"3,774.26",Transfer Payments,Supporting People,"Housing, Culture & Capital",Housing Strategy,
Brighton Housing Trust,CS01425981,11/08/2010,"3,774.26",Transfer Payments,Supporting People,"Housing, Culture & Capital",Housing Strategy,
Brighton Housing Trust,CS01425982,11/08/2010,"3,774.26",Transfer Payments,Supporting People,"Housing, Culture & Capital",Housing Strategy,
Brighton Housing Trust,CS01425995,11/08/2010,"2,055.34",Transfer Payments,Supporting People,"Housing, Culture & Capital",Housing Strategy,
Brighton Housing Trust,CS01425996,11/08/2010,"2,055.34",Transfer Payments,Supporting People,"Housing, Culture & Capital",Housing Strategy,
Brighton Housing Trust,CS01425997,11/08/2010,"2,055.34",Transfer Payments,Supporting People,"Housing, Culture & Capital",Housing Strategy,
Brighton Housing Trust,CS01425998,11/08/2010,"2,055.34",Transfer Payments,Supporting People,"Housing, Culture & Capital",Housing Strategy,
Brighton Housing Trust,CS01425999,11/08/2010,"10,015.60",Transfer Payments,Supporting People,"Housing, Culture & Capital",Housing Strategy,
Brighton Housing Trust,CS01426000,11/08/2010,"10,015.60",Transfer Payments,Supporting People,"Housing, Culture & Capital",Housing Strategy,
Brighton Housing Trust,CS01426001,11/08/2010,"10,015.60",Transfer Payments,Supporting People,"Housing, Culture & Capital",Housing Strategy,
Brighton Housing Trust,CS01426002,11/08/2010,"10,015.60",Transfer Payments,Supporting People,"Housing, Culture & Capital",Housing Strategy,
Brighton Housing Trust,CS01426003,11/08/2010,"1,807.40",Transfer Payments,Supporting People,"Housing, Culture & Capital",Housing Strategy,
Brighton Housing Trust,CS01426004,11/08/2010,"1,807.40",Transfer Payments,Supporting People,"Housing, Culture & Capital",Housing Strategy,
Brighton Housing Trust,CS01426005,11/08/2010,"1,807.40",Transfer Payments,Supporting People,"Housing, Culture & Capital",Housing Strategy,
Brighton Housing Trust,CS01426006,11/08/2010,"1,807.40",Transfer Payments,Supporting People,"Housing, Culture & Capital",Housing Strategy,
Brighton Housing Trust,CS01426007,11/08/2010,"1,342.46",Transfer Payments,Supporting People,"Housing, Culture & Capital",Housing Strategy,
Brighton Housing Trust,CS01426008,11/08/2010,"1,342.46",Transfer Payments,Supporting People,"Housing, Culture & Capital",Housing Strategy,
Brighton Housing Trust,CS01426009,11/08/2010,"1,342.46",Transfer Payments,Supporting People,"Housing, Culture & Capital",Housing Strategy,
Brighton Housing Trust,CS01426010,11/08/2010,"1,342.46",Transfer Payments,Supporting People,"Housing, Culture & Capital",Housing Strategy,
Brighton Housing Trust,CS01426011,11/08/2010,"1,984.99",Transfer Payments,Supporting People,"Housing, Culture & Capital",Housing Strategy,
Brighton Housing Trust,CS01426012,11/08/2010,"1,984.99",Transfer Payments,Supporting People,"Housing, Culture & Capital",Housing Strategy,
Brighton Housing Trust,CS01426013,11/08/2010,"1,984.99",Transfer Payments,Supporting People,"Housing, Culture & Capital",Housing Strategy,
Brighton Housing Trust,CS01426014,11/08/2010,"1,984.99",Transfer Payments,Supporting People,"Housing, Culture & Capital",Housing Strategy,
Brighton Housing Trust,CS01426015,11/08/2010,"10,162.88",Transfer Payments,Supporting People,"Housing, Culture & Capital",Housing Strategy,
Brighton Housing Trust,CS01426016,11/08/2010,"10,162.88",Transfer Payments,Supporting People,"Housing, Culture & Capital",Housing Strategy,
Brighton Housing Trust,CS01426017,11/08/2010,"10,162.88",Transfer Payments,Supporting People,"Housing, Culture & Capital",Housing Strategy,
Brighton Housing Trust,CS01426018,11/08/2010,"10,162.88",Transfer Payments,Supporting People,"Housing, Culture & Capital",Housing Strategy,
Brighton Housing Trust,CS01426019,11/08/2010,"8,821.89",Transfer Payments,Supporting People,"Housing, Culture & Capital",Housing Strategy,
Brighton Housing Trust,CS01426020,11/08/2010,"8,821.89",Transfer Payments,Supporting People,"Housing, Culture & Capital",Housing Strategy,
Brighton Housing Trust,CS01426021,11/08/2010,"8,821.89",Transfer Payments,Supporting People,"Housing, Culture & Capital",Housing Strategy,
Brighton Housing Trust,CS01426022,11/08/2010,"8,821.89",Transfer Payments,Supporting People,"Housing, Culture & Capital",Housing Strategy,
Brighton & Hove Arts Council,03922509,04/08/2010,"1,000.00",Supplies and Services,Grants and Subscriptions,Strategy & Governance,Communities & Equality,
Brighton & Hove Bus & Coach Co Ltd,03918157,04/08/2010,784.00,Transport Related,Contract Hire and Operating Leases,Environment,Waste,
Brighton & Hove Bus & Coach Co Ltd,03934830,11/08/2010,586.00,Transport Related,Public Transport,"Housing, Culture & Capital",Housing Strategy,
Brighton & Hove Bus & Coach Co Ltd,03937879,11/08/2010,"2,275.15",Transport Related,Car Allowances,Chilren & Young People's Trust,Learning Schools & Skills,
Brighton & Hove Bus & Coach Co Ltd,03938263,11/08/2010,"3,285.50",Supplies and Services,Goods for Resale,"Housing, Culture & Capital",Royal Pavilion & Museums,
Brighton & Hove Bus & Coach Co Ltd,03941506,13/08/2010,843.25,Third Party Payments,Other Establishments,Chilren & Young People's Trust,Area Integrated Working,
Brighton & Hove Bus & Coach Co Ltd,03949980,18/08/2010,"7,762.88",Third Party Payments,Private Contractors,Finance & Resources,Strategic Finance Procurement,
Brighton & Hove Bus & Coach Co Ltd,03950872,18/08/2010,784.00,Transport Related,Contract Hire and Operating Leases,Environment,Waste,
Brighton & Hove Bus & Coach Co Ltd,03951415,18/08/2010,"14,221.00",Third Party Payments,Private Contractors,Environment,Sustainable Transport&Planning,
Brighton & Hove Bus & Coach Co Ltd,03951509,18/08/2010,"1,120.00",Third Party Payments,Private Contractors,Environment,Sustainable Transport&Planning,
Brighton & Hove Bus & Coach Co Ltd,03951554,18/08/2010,"1,247.00",Transport Related,Public Transport,Chilren & Young People's Trust,Area Integrated Working,
Brighton & Hove Bus & Coach Co Ltd,03953468,18/08/2010,696.75,Transfer Payments,Other Transfer Payments,Chilren & Young People's Trust,Area Integrated Working,
Brighton & Hove Bus & Coach Co Ltd,03958049,18/08/2010,"85,013.22",Third Party Payments,Private Contractors,Environment,Sustainable Transport&Planning,
Brighton & Hove Bus & Coach Co Ltd,03966426,20/08/2010,"1,155.00",Third Party Payments,Other Establishments,Chilren & Young People's Trust,Area Integrated Working,
Brighton & Hove Chamber of Commerce,03952744,18/08/2010,"5,950.00",Supplies and Services,Miscellaneous Expenses,"Housing, Culture & Capital",Culture & Economy,
Brighton & Hove Chamber of Commerce,03952760,18/08/2010,"4,250.00",Supplies and Services,Miscellaneous Expenses,"Housing, Culture & Capital",Culture & Economy,
Brighton & Hove City Council,03924879,06/08/2010,884.13,Supplies and Services,Services,Finance & Resources,To Be Advised,
Brighton Hove & District Early Childhood Project,03922606,04/08/2010,"4,000.00",Supplies and Services,Grants and Subscriptions,Strategy & Governance,Communities & Equality,
Brighton & Hove Federation of Disabled People ,03930575,06/08/2010,"1,000.00",Supplies and Services,Grants and Subscriptions,Strategy & Governance,Communities & Equality,
Brighton & Hove Federation of Disabled People ,03957464,18/08/2010,"3,750.00",Supplies and Services,Miscellaneous Expenses,"Housing, Culture & Capital",Culture & Economy,
Brighton & Hove Food Partnership,03957781,18/08/2010,816.70,Supplies and Services,Miscellaneous Expenses,"Housing, Culture & Capital",Culture & Economy,
Brighton & Hove High School- Junior Dept,UL01417742,04/08/2010,"3,288.00",Supplies and Services,Grants and Subscriptions,Chilren & Young People's Trust,Area Integrated Working,
Brighton & Hove High School- Junior Dept,UL01437363,20/08/2010,"1,968.00",Third Party Payments,Other Establishments,Chilren & Young People's Trust,Learning Schools & Skills,
Brighton & Hove Impetus,03914478,04/08/2010,"7,453.50",Supplies and Services,Grants and Subscriptions,Strategy & Governance,Communities & Equality,
Brighton & Hove Impetus,03939068,11/08/2010,"7,175.00",Third Party Payments,Voluntary Associations,Adult Social Care,Adult Social Care,
Brighton & Hove Inclusion Project,03920404,04/08/2010,"4,403.00",Capital Grants,,Chilren & Young People's Trust,Area Integrated Working,
Brighton & Hove Inclusion Project,03926055,06/08/2010,835.00,Supplies and Services,Grants and Subscriptions,Chilren & Young People's Trust,Area Integrated Working,
Brighton & Hove Inclusion Project,03965841,20/08/2010,"5,841.50",Third Party Payments,Other Establishments,Chilren & Young People's Trust,Learning Schools & Skills,
Brighton & Hove Mencap,CS01425305,11/08/2010,"3,613.96",Transfer Payments,Supporting People,"Housing, Culture & Capital",Housing Strategy,
Brighton & Hove Mencap,CS01425306,11/08/2010,"3,613.96",Transfer Payments,Supporting People,"Housing, Culture & Capital",Housing Strategy,
Brighton & Hove Mencap,CS01425307,11/08/2010,"3,613.96",Transfer Payments,Supporting People,"Housing, Culture & Capital",Housing Strategy,
Brighton & Hove Mencap,CS01425308,11/08/2010,"3,613.96",Transfer Payments,Supporting People,"Housing, Culture & Capital",Housing Strategy,
Brighton & Hove Montessori School,UL01417728,04/08/2010,"4,194.00",Supplies and Services,Grants and Subscriptions,Chilren & Young People's Trust,Area Integrated Working,
Brighton & Hove Montessori School,UL01437349,20/08/2010,"1,947.00",Third Party Payments,Other Establishments,Chilren & Young People's Trust,Learning Schools & Skills,
Brighton & Hove Radio Cabs Ltd,03925836,06/08/2010,"1,896.60",Transport Related,Other Transport Costs,Chilren & Young People's Trust,Learning Schools & Skills,
Brighton & Hove Radio Cabs Ltd,03951075,18/08/2010,664.20,Transport Related,Public Transport,"Housing, Culture & Capital",Tourism & Venues,
Brighton & Hove Radio Cabs Ltd,03951583,18/08/2010,"9,357.40",Transport Related,Other Transport Costs,Chilren & Young People's Trust,Learning Schools & Skills,
Brighton & Hove Radio Cabs Ltd,03951677,18/08/2010,649.10,Transport Related,Other Transport Costs,Chilren & Young People's Trust,Learning Schools & Skills,
Brighton & Hove Streamline Taxis Ltd,03930025,06/08/2010,"19,390.88",Transport Related,Other Transport Costs,Chilren & Young People's Trust,Learning Schools & Skills,
Brighton & Hove Streamline Taxis Ltd,03930038,06/08/2010,"18,999.68",Transport Related,Other Transport Costs,Chilren & Young People's Trust,Learning Schools & Skills,
Brighton & Hove Streamline Taxis Ltd,03933792,11/08/2010,"3,273.30",Transport Related,Other Transport Costs,Chilren & Young People's Trust,Learning Schools & Skills,
Brighton & Hove Streamline Taxis Ltd,03937808,11/08/2010,956.00,Transfer Payments,Pupils and Students,Chilren & Young People's Trust,Learning Schools & Skills,
Brighton & Hove Streamline Taxis Ltd,03940905,11/08/2010,"14,258.75",Transport Related,Other Transport Costs,Chilren & Young People's Trust,Learning Schools & Skills,
Brighton & Hove Streamline Taxis Ltd,03953099,18/08/2010,989.23,Transport Related,Public Transport,Adult Social Care,Housing Management,
Brighton & Hove Streamline Taxis Ltd,03962527,20/08/2010,"1,683.00",Transport Related,Public Transport,Finance & Resources,Corporate Management,
Brighton Peace & Environment Centre,03983182,27/08/2010,650.00,Indirect Employees,Training,Chilren & Young People's Trust,Learning Schools & Skills,
Brighton Quaker Meeting,03932748,11/08/2010,536.00,Premises Related,Rents Payable,Chilren & Young People's Trust,Area Integrated Working,
Brighton Steiner School Ltd,UL01417779,04/08/2010,"3,379.00",Supplies and Services,Grants and Subscriptions,Chilren & Young People's Trust,Area Integrated Working,
Brighton Steiner School Ltd,UL01437400,20/08/2010,"1,452.00",Third Party Payments,Other Establishments,Chilren & Young People's Trust,Learning Schools & Skills,
Brighton & Sussex University Hospitals NHS Trust,03957613,18/08/2010,"30,000.00",Supplies and Services,Miscellaneous Expenses,"Housing, Culture & Capital",Culture & Economy,
Brighton & Sussex University Hospitals NHS Trust,UL01417680,04/08/2010,"2,893.00",Supplies and Services,Grants and Subscriptions,Chilren & Young People's Trust,Area Integrated Working,
Brighton & Sussex University Hospitals NHS Trust,UL01437301,20/08/2010,"1,436.00",Third Party Payments,Other Establishments,Chilren & Young People's Trust,Learning Schools & Skills,
Brighton Tornado`s Taekwondo,03921377,04/08/2010,"2,500.00",Capital Grants,,Chilren & Young People's Trust,Area Integrated Working,
Brighton Tornado`s Taekwondo,03983140,27/08/2010,"3,000.00",Supplies and Services,Grants and Subscriptions,Chilren & Young People's Trust,Area Integrated Working,
Brighton Unemployed Ctr Families Project,03948062,18/08/2010,"6,667.00",Third Party Payments,Other Establishments,Chilren & Young People's Trust,Learning Schools & Skills,
Brighton Unemployed Ctr Families Project,03962776,27/08/2010,"5,612.50",Third Party Payments,Other Establishments,Chilren & Young People's Trust,Area Integrated Working,
Brighton Unemployed Ctr Families Project,03962792,27/08/2010,"5,612.50",Third Party Payments,Other Establishments,Chilren & Young People's Trust,Area Integrated Working,
Brighton YMCA,CS01425863,11/08/2010,584.71,Transfer Payments,Supporting People,"Housing, Culture & Capital",Housing Strategy,
Brighton YMCA,CS01425864,11/08/2010,584.71,Transfer Payments,Supporting People,"Housing, Culture & Capital",Housing Strategy,
Brighton YMCA,CS01425865,11/08/2010,584.71,Transfer Payments,Supporting People,"Housing, Culture & Capital",Housing Strategy,
Brighton YMCA,CS01425866,11/08/2010,584.71,Transfer Payments,Supporting People,"Housing, Culture & Capital",Housing Strategy,
Brighton YMCA,CS01425867,11/08/2010,"1,176.28",Transfer Payments,Supporting People,"Housing, Culture & Capital",Housing Strategy,
Brighton YMCA,CS01425868,11/08/2010,"1,176.28",Transfer Payments,Supporting People,"Housing, Culture & Capital",Housing Strategy,
Brighton YMCA,CS01425869,11/08/2010,"1,176.28",Transfer Payments,Supporting People,"Housing, Culture & Capital",Housing Strategy,
Brighton YMCA,CS01425870,11/08/2010,"1,176.28",Transfer Payments,Supporting People,"Housing, Culture & Capital",Housing Strategy,
Brighton YMCA,CS01425871,11/08/2010,"1,932.35",Transfer Payments,Supporting People,"Housing, Culture & Capital",Housing Strategy,
Brighton YMCA,CS01425872,11/08/2010,"1,932.35",Transfer Payments,Supporting People,"Housing, Culture & Capital",Housing Strategy,
Brighton YMCA,CS01425873,11/08/2010,"1,932.35",Transfer Payments,Supporting People,"Housing, Culture & Capital",Housing Strategy,
Brighton YMCA,CS01425874,11/08/2010,"1,932.35",Transfer Payments,Supporting People,"Housing, Culture & Capital",Housing Strategy,
Brighton YMCA,CS01425875,11/08/2010,"1,066.03",Transfer Payments,Supporting People,"Housing, Culture & Capital",Housing Strategy,
Brighton YMCA,CS01425876,11/08/2010,"1,066.03",Transfer Payments,Supporting People,"Housing, Culture & Capital",Housing Strategy,
Brighton YMCA,CS01425877,11/08/2010,"1,066.03",Transfer Payments,Supporting People,"Housing, Culture & Capital",Housing Strategy,
Brighton YMCA,CS01425878,11/08/2010,"1,066.03",Transfer Payments,Supporting People,"Housing, Culture & Capital",Housing Strategy,
Brighton YMCA,CS01425879,11/08/2010,"1,139.53",Transfer Payments,Supporting People,"Housing, Culture & Capital",Housing Strategy,
Brighton YMCA,CS01425880,11/08/2010,"1,139.53",Transfer Payments,Supporting People,"Housing, Culture & Capital",Housing Strategy,
Brighton YMCA,CS01425881,11/08/2010,"1,139.53",Transfer Payments,Supporting People,"Housing, Culture & Capital",Housing Strategy,
Brighton YMCA,CS01425882,11/08/2010,"1,139.53",Transfer Payments,Supporting People,"Housing, Culture & Capital",Housing Strategy,
Brighton YMCA,CS01425883,11/08/2010,"5,462.03",Transfer Payments,Supporting People,"Housing, Culture & Capital",Housing Strategy,
Brighton YMCA,CS01425884,11/08/2010,"5,462.03",Transfer Payments,Supporting People,"Housing, Culture & Capital",Housing Strategy,
Brighton YMCA,CS01425885,11/08/2010,"5,462.03",Transfer Payments,Supporting People,"Housing, Culture & Capital",Housing Strategy,
Brighton YMCA,CS01425886,11/08/2010,"5,462.03",Transfer Payments,Supporting People,"Housing, Culture & Capital",Housing Strategy,
Brighton YMCA,CS01425887,11/08/2010,"1,932.35",Transfer Payments,Supporting People,"Housing, Culture & Capital",Housing Strategy,
Brighton YMCA,CS01425888,11/08/2010,"1,932.35",Transfer Payments,Supporting People,"Housing, Culture & Capital",Housing Strategy,
Brighton YMCA,CS01425889,11/08/2010,"1,932.35",Transfer Payments,Supporting People,"Housing, Culture & Capital",Housing Strategy,
Brighton YMCA,CS01425890,11/08/2010,"1,932.35",Transfer Payments,Supporting People,"Housing, Culture & Capital",Housing Strategy,
Brighton YMCA,CS01425891,11/08/2010,514.57,Transfer Payments,Supporting People,"Housing, Culture & Capital",Housing Strategy,
Brighton YMCA,CS01425892,11/08/2010,514.57,Transfer Payments,Supporting People,"Housing, Culture & Capital",Housing Strategy,
Brighton YMCA,CS01425893,11/08/2010,514.57,Transfer Payments,Supporting People,"Housing, Culture & Capital",Housing Strategy,
Brighton YMCA,CS01425894,11/08/2010,514.57,Transfer Payments,Supporting People,"Housing, Culture & Capital",Housing Strategy,
Brighton Youth Centre,03924358,04/08/2010,"2,750.00",Supplies and Services,Contributions to Provisions,Chilren & Young People's Trust,Area Integrated Working,
Brighton Youth Centre,03927643,06/08/2010,"2,000.00",Capital Grants,,Chilren & Young People's Trust,Area Integrated Working,
Brighton Youth Centre,03927708,06/08/2010,"2,000.00",Capital Grants,,Chilren & Young People's Trust,Area Integrated Working,
Brighton Youth Centre,03983072,27/08/2010,"2,000.00",Supplies and Services,Grants and Subscriptions,Chilren & Young People's Trust,Area Integrated Working,
Brighton Youth Centre,03983085,27/08/2010,"4,000.00",Supplies and Services,Grants and Subscriptions,Chilren & Young People's Trust,Area Integrated Working,
British Gas Business,03917462,04/08/2010,"3,470.30",Premises Related,Energy Costs,Environment,Sustainable Transport&Planning,
British Gas Business,03917488,04/08/2010,"1,865.04",Premises Related,Energy Costs,Environment,Sustainable Transport&Planning,
British Gas Business,03937769,11/08/2010,588.86,Premises Related,Energy Costs,"Housing, Culture & Capital",Housing Strategy,
British Safety Council,03947063,18/08/2010,550.00,Indirect Employees,Training,Strategy & Governance,Human Resources,
British Sky Broadcasting Ltd,03955806,27/08/2010,525.00,Supplies and Services,Services,Finance & Resources,Audit and Business Risk,
British Telecommunications Plc,03917420,04/08/2010,"1,887.47",Supplies and Services,Communications and Computing,Adult Social Care,Adult Social Care,
British Telecommunications Plc,03930229,06/08/2010,"1,253.81",Supplies and Services,Communications and Computing,Adult Social Care,Housing Management,
British Telecommunications Plc,03944312,13/08/2010,"20,562.96",Supplies and Services,Communications and Computing,Finance & Resources,ICT,
British Telecommunications Plc,03959284,18/08/2010,"1,205.63",Supplies and Services,Communications and Computing,Environment,Sustainable Transport&Planning,
British Thornton ESF Ltd,03975857,25/08/2010,"9,958.00",Plant Machinery and Equipment,,Chilren & Young People's Trust,Director Childrens Services,
Broxap Ltd,03930876,06/08/2010,650.00,New Construction and Conversion,,Environment,Sustainable Transport&Planning,
Broxap Ltd,03932654,11/08/2010,750.00,New Construction and Conversion,,Environment,Sustainable Transport&Planning,
Broxap Ltd,03976306,25/08/2010,"2,533.00",Supplies and Services,Equipment Furniture and Materials,Environment,Quality of Life & Green Spaces,
Brunswick Festival Group,03941564,13/08/2010,"1,500.00",Supplies and Services,Grants and Subscriptions,Strategy & Governance,Communities & Equality,
Payment to Individual,0038577,13/08/2010,575.00,Premises Related,Rents Payable,"Housing, Culture & Capital",Housing Strategy,
Bryn Melyn Care Ltd,CF01264533,04/08/2010,"2,008.49",Third Party Payments,Other Establishments,Chilren & Young People's Trust,Commissioning & Governance,
B S Russell Commercials Limited,03910702,11/08/2010,772.57,Transport Related,Direct Transport Costs,Environment,Waste,
Bton & Hove City Schools Services Ltd,03957914,18/08/2010,"160,536.33",Supplies and Services,Services,Chilren & Young People's Trust,Director Childrens Services,
Bton & Hove City Schools Services Ltd,03957930,18/08/2010,"246,509.64",Supplies and Services,Services,Chilren & Young People's Trust,Director Childrens Services,
BTR Brakes (Sussex) Ltd,03974269,25/08/2010,513.00,Transport Related,Direct Transport Costs,Environment,Waste,
BTR Brakes (Sussex) Ltd,03981236,27/08/2010,641.23,Transport Related,Direct Transport Costs,Environment,Waste,
Buckinghamshire County Council,03975514,25/08/2010,"1,197.24",Supplies and Services,Services,Chilren & Young People's Trust,Learning Schools & Skills,
Building Solutions Consultants Ltd,03957192,19/08/2010,"5,921.77",Capital Grants,,"Housing, Culture & Capital",Housing Strategy,
Bupa Care Homes,CF01427743,13/08/2010,-110.30,Customer and Client Receipts,Fees and Charges,Adult Social Care,Adult Social Care,
Bupa Care Homes,CF01427743,13/08/2010,674.53,Third Party Payments,Other Establishments,Adult Social Care,Adult Social Care,
Bupa Care Homes,CF01427744,13/08/2010,-110.30,Customer and Client Receipts,Fees and Charges,Adult Social Care,Adult Social Care,
Bupa Care Homes,CF01427744,13/08/2010,674.53,Third Party Payments,Other Establishments,Adult Social Care,Adult Social Care,
Bupa Care Homes,CF01427745,13/08/2010,-110.30,Customer and Client Receipts,Fees and Charges,Adult Social Care,Adult Social Care,
Bupa Care Homes,CF01427745,13/08/2010,674.53,Third Party Payments,Other Establishments,Adult Social Care,Adult Social Care,
Bupa Care Homes,CF01427746,13/08/2010,-110.30,Customer and Client Receipts,Fees and Charges,Adult Social Care,Adult Social Care,
Bupa Care Homes,CF01427746,13/08/2010,674.53,Third Party Payments,Other Establishments,Adult Social Care,Adult Social Care,
BUPA Care Services,CF01432024,20/08/2010,824.40,Third Party Payments,Other Establishments,Adult Social Care,Adult Social Care,
BUPA Care Services,CF01432025,20/08/2010,824.40,Third Party Payments,Other Establishments,Adult Social Care,Adult Social Care,
BUPA Care Services,CF01432026,20/08/2010,824.40,Third Party Payments,Other Establishments,Adult Social Care,Adult Social Care,
BUPA Care Services,CF01432027,20/08/2010,824.40,Third Party Payments,Other Establishments,Adult Social Care,Adult Social Care,
Business Community Partnership,CS01425963,11/08/2010,"1,916.81",Transfer Payments,Supporting People,"Housing, Culture & Capital",Housing Strategy,
Business Community Partnership,CS01425964,11/08/2010,"1,916.81",Transfer Payments,Supporting People,"Housing, Culture & Capital",Housing Strategy,
Business Community Partnership,CS01425965,11/08/2010,"1,916.81",Transfer Payments,Supporting People,"Housing, Culture & Capital",Housing Strategy,
Business Community Partnership,CS01425966,11/08/2010,"1,916.81",Transfer Payments,Supporting People,"Housing, Culture & Capital",Housing Strategy,
Butterfly Bay Ltd t/a The Play Station ,UL01417744,04/08/2010,"1,792.00",Supplies and Services,Grants and Subscriptions,Chilren & Young People's Trust,Area Integrated Working,
Butterfly Bay Ltd t/a The Play Station ,UL01437365,20/08/2010,"1,177.00",Third Party Payments,Other Establishments,Chilren & Young People's Trust,Learning Schools & Skills,
Butterfly Nursery,UL01417766,04/08/2010,"2,460.00",Supplies and Services,Grants and Subscriptions,Chilren & Young People's Trust,Area Integrated Working,
Butterfly Nursery,UL01437387,20/08/2010,"1,292.00",Third Party Payments,Other Establishments,Chilren & Young People's Trust,Learning Schools & Skills,
C A Goodwin Limited,03913071,04/08/2010,"1,100.00",Premises Related,Repair Maint and Alterations,Adult Social Care,Housing Management,
C A Goodwin Limited,03915710,04/08/2010,"3,405.54",Premises Related,Repair Maint and Alterations,Finance & Resources,Property & Design,
C A Goodwin Limited,03926097,06/08/2010,"1,493.80",Premises Related,Repair Maint and Alterations,Finance & Resources,Property & Design,
C A Goodwin Limited,03932515,11/08/2010,"1,650.00",Premises Related,Repair Maint and Alterations,Finance & Resources,Property & Design,
C A Goodwin Limited,03934568,11/08/2010,"1,510.99",Premises Related,Repair Maint and Alterations,Finance & Resources,Property & Design,
C A Goodwin Limited,03947694,18/08/2010,"2,905.00",Premises Related,Repair Maint and Alterations,"Housing, Culture & Capital",Tourism & Venues,
C A Goodwin Limited,03958683,18/08/2010,"2,661.60",Premises Related,Repair Maint and Alterations,Finance & Resources,Property & Design,
C A Goodwin Limited,03958861,18/08/2010,"1,650.00",Premises Related,Repair Maint and Alterations,Finance & Resources,Property & Design,
C A Goodwin Limited,03963979,20/08/2010,"14,559.04",Premises Related,Repair Maint and Alterations,Adult Social Care,Housing Management,
C A Goodwin Limited,03964635,20/08/2010,"31,909.55",Premises Related,Repair Maint and Alterations,Finance & Resources,Property & Design,
C A Goodwin Limited,03964994,20/08/2010,"3,686.15",Premises Related,Repair Maint and Alterations,Finance & Resources,Property & Design,
Calor Gas Ltd,03937264,11/08/2010,"2,763.09",Premises Related,Energy Costs,Environment,Public Safety,
Camelot Property Management Ltd,03966057,20/08/2010,506.62,Supplies and Services,Services,Finance & Resources,Property & Design,
CAM Management Solutions,03936278,11/08/2010,"1,230.00",Supplies and Services,Equipment Furniture and Materials,"Housing, Culture & Capital",Housing Strategy,
CAM Management Solutions,03936281,11/08/2010,"1,000.00",Supplies and Services,Equipment Furniture and Materials,"Housing, Culture & Capital",Housing Strategy,
Campbell Associates Ltd,03941797,13/08/2010,510.00,Supplies and Services,Communications and Computing,Environment,Public Safety,
Canterbury Oast Trust Ltd,CF01418213,04/08/2010,-71.15,Customer and Client Receipts,Fees and Charges,Section 75 Adult Social Care,Contrib to S31 Partnership,
Canterbury Oast Trust Ltd,CF01418213,04/08/2010,"1,590.75",Third Party Payments,Other Establishments,Section 75 Adult Social Care,Contrib to S31 Partnership,
Canterbury Oast Trust Ltd,CF01418214,04/08/2010,-71.15,Customer and Client Receipts,Fees and Charges,Section 75 Adult Social Care,Contrib to S31 Partnership,
Canterbury Oast Trust Ltd,CF01418214,04/08/2010,"1,590.75",Third Party Payments,Other Establishments,Section 75 Adult Social Care,Contrib to S31 Partnership,
Canterbury Oast Trust Ltd,CF01418215,04/08/2010,-71.15,Customer and Client Receipts,Fees and Charges,Section 75 Adult Social Care,Contrib to S31 Partnership,
Canterbury Oast Trust Ltd,CF01418215,04/08/2010,"1,590.75",Third Party Payments,Other Establishments,Section 75 Adult Social Care,Contrib to S31 Partnership,
Canterbury Oast Trust Ltd,CF01418216,04/08/2010,-71.15,Customer and Client Receipts,Fees and Charges,Section 75 Adult Social Care,Contrib to S31 Partnership,
Canterbury Oast Trust Ltd,CF01418216,04/08/2010,"1,590.75",Third Party Payments,Other Establishments,Section 75 Adult Social Care,Contrib to S31 Partnership,
Canterbury Oast Trust Ltd,CF01418245,04/08/2010,-71.15,Customer and Client Receipts,Fees and Charges,Section 75 Adult Social Care,Contrib to S31 Partnership,
Canterbury Oast Trust Ltd,CF01418245,04/08/2010,"1,590.75",Third Party Payments,Other Establishments,Section 75 Adult Social Care,Contrib to S31 Partnership,
Canterbury Oast Trust Ltd,CF01418246,04/08/2010,-71.15,Customer and Client Receipts,Fees and Charges,Section 75 Adult Social Care,Contrib to S31 Partnership,
Canterbury Oast Trust Ltd,CF01418246,04/08/2010,"1,590.75",Third Party Payments,Other Establishments,Section 75 Adult Social Care,Contrib to S31 Partnership,
Canterbury Oast Trust Ltd,CF01418247,04/08/2010,-71.15,Customer and Client Receipts,Fees and Charges,Section 75 Adult Social Care,Contrib to S31 Partnership,
Canterbury Oast Trust Ltd,CF01418247,04/08/2010,"1,590.75",Third Party Payments,Other Establishments,Section 75 Adult Social Care,Contrib to S31 Partnership,
Canterbury Oast Trust Ltd,CF01418248,04/08/2010,-71.15,Customer and Client Receipts,Fees and Charges,Section 75 Adult Social Care,Contrib to S31 Partnership,
Canterbury Oast Trust Ltd,CF01418248,04/08/2010,"1,590.75",Third Party Payments,Other Establishments,Section 75 Adult Social Care,Contrib to S31 Partnership,
Capita Business Services Ltd,03924361,04/08/2010,278.37,Direct Employees,Salaries,Chilren & Young People's Trust,Learning Schools & Skills,
Capita Business Services Ltd,03924361,04/08/2010,"4,390.00",Indirect Employees,Retirement Awards,Chilren & Young People's Trust,Learning Schools & Skills,
Capita Business Services Ltd,03924361,04/08/2010,92.79,Supplies and Services,Miscellaneous Expenses,Chilren & Young People's Trust,Learning Schools & Skills,
Capita IT Services Ltd,03934474,25/08/2010,"1,700.00",Supplies and Services,Communications and Computing,Finance & Resources,ICT,
Capital Hygiene/Capital Cleaning,03923715,04/08/2010,"1,439.89",Premises Related,Cleaning and Domestic Supplies,Chilren & Young People's Trust,Learning Schools & Skills,
Capital Hygiene/Capital Cleaning,03932065,11/08/2010,"1,842.70",Premises Related,Cleaning and Domestic Supplies,Chilren & Young People's Trust,Learning Schools & Skills,
Capita Symonds Ltd,03956562,27/08/2010,"2,375.00",Direct Employees,Salaries,Environment,Sustainable Transport&Planning,
Care Co-operatives Ltd,03919703,04/08/2010,"1,000.00",Supplies and Services,Miscellaneous Expenses,"Housing, Culture & Capital",Culture & Economy,
Care Co-operatives Ltd,03920585,04/08/2010,"4,525.00",Third Party Payments,Other Establishments,Section 75 Adult Social Care,Contrib to S31 Partnership,
Care Co-operatives Ltd,03956753,18/08/2010,"1,250.00",Supplies and Services,Miscellaneous Expenses,"Housing, Culture & Capital",Culture & Economy,
Care Co-operatives Ltd,CS01425289,11/08/2010,"1,367.10",Transfer Payments,Supporting People,"Housing, Culture & Capital",Housing Strategy,
Care Co-operatives Ltd,CS01425290,11/08/2010,"1,367.10",Transfer Payments,Supporting People,"Housing, Culture & Capital",Housing Strategy,
Care Co-operatives Ltd,CS01425291,11/08/2010,"1,367.10",Transfer Payments,Supporting People,"Housing, Culture & Capital",Housing Strategy,
Care Co-operatives Ltd,CS01425292,11/08/2010,"1,367.10",Transfer Payments,Supporting People,"Housing, Culture & Capital",Housing Strategy,
Care Outlook,CF01422210,11/08/2010,537.08,Third Party Payments,Other Establishments,Adult Social Care,Adult Social Care,
Care Outlook,CF01422211,11/08/2010,537.08,Third Party Payments,Other Establishments,Adult Social Care,Adult Social Care,
Care Outlook,CF01422212,11/08/2010,537.08,Third Party Payments,Other Establishments,Adult Social Care,Adult Social Care,
Carers Centre for Brighton & Hove Ltd,03924756,06/08/2010,634.50,Third Party Payments,Other Establishments,Adult Social Care,Adult Social Care,
Carers Centre for Brighton & Hove Ltd,03929968,06/08/2010,"33,654.25",Third Party Payments,Other Establishments,Adult Social Care,Adult Social Care,
Carers Centre for Brighton & Hove Ltd,03930766,06/08/2010,"33,654.25",Third Party Payments,Other Establishments,Adult Social Care,Adult Social Care,
Carers Centre for Brighton & Hove Ltd,03949074,18/08/2010,"1,539.79",Third Party Payments,Other Establishments,Adult Social Care,Adult Social Care,
Carers Centre for Brighton & Hove Ltd,03949090,18/08/2010,"7,688.00",Third Party Payments,Other Establishments,Adult Social Care,Adult Social Care,
Carers Centre for Brighton & Hove Ltd,03949100,18/08/2010,"6,796.50",Third Party Payments,Other Establishments,Adult Social Care,Adult Social Care,
Care UK Children`s Services,CF01404883,04/08/2010,772.21,Third Party Payments,Other Establishments,Chilren & Young People's Trust,Commissioning & Governance,
Care UK Children`s Services,CF01404884,04/08/2010,772.21,Third Party Payments,Other Establishments,Chilren & Young People's Trust,Commissioning & Governance,
Care UK Children`s Services,CF01404885,04/08/2010,772.21,Third Party Payments,Other Establishments,Chilren & Young People's Trust,Commissioning & Governance,
Care UK Children`s Services,CF01404886,04/08/2010,772.21,Third Party Payments,Other Establishments,Chilren & Young People's Trust,Commissioning & Governance,
Care UK Community Partnerships Ltd,CF01430945,18/08/2010,786.40,Third Party Payments,Other Establishments,Section 75 Sussex Partnership,Contrib to S31 Partnership,
Care UK Community Partnerships Ltd,CF01430946,18/08/2010,786.40,Third Party Payments,Other Establishments,Section 75 Sussex Partnership,Contrib to S31 Partnership,
Care UK Community Partnerships Ltd,CF01430947,18/08/2010,786.40,Third Party Payments,Other Establishments,Section 75 Sussex Partnership,Contrib to S31 Partnership,
Care UK Community Partnerships Ltd,CF01430948,18/08/2010,786.40,Third Party Payments,Other Establishments,Section 75 Sussex Partnership,Contrib to S31 Partnership,
Care UK Homecare,CF01442742,27/08/2010,637.84,Third Party Payments,Other Establishments,Adult Social Care,Adult Social Care,
Care UK Homecare,CF01442743,27/08/2010,637.84,Third Party Payments,Other Establishments,Adult Social Care,Adult Social Care,
Care UK Homecare,CF01442744,27/08/2010,637.84,Third Party Payments,Other Establishments,Adult Social Care,Adult Social Care,
Carlisle Staffing Plc,UL01404867,06/08/2010,"13,529.92",Direct Employees,Salaries,Adult Social Care,Adult Social Care,
Carlisle Staffing Plc,UL01404867,06/08/2010,"11,410.01",Direct Employees,Salaries,Adult Social Care,Housing Management,
Carlisle Staffing Plc,UL01404867,06/08/2010,"1,194.96",Direct Employees,Salaries,Adult Social Care,Housing Strategy,
Carlisle Staffing Plc,UL01404867,06/08/2010,"22,443.20",Direct Employees,Salaries,Chilren & Young People's Trust,Area Integrated Working,
Carlisle Staffing Plc,UL01404867,06/08/2010,314.28,Direct Employees,Salaries,Chilren & Young People's Trust,Commissioning & Governance,
Carlisle Staffing Plc,UL01404867,06/08/2010,533.73,Direct Employees,Salaries,Chilren & Young People's Trust,Director Childrens Services,
Carlisle Staffing Plc,UL01404867,06/08/2010,"5,059.98",Direct Employees,Salaries,Chilren & Young People's Trust,Learning Schools & Skills,
Carlisle Staffing Plc,UL01404867,06/08/2010,419.70,Direct Employees,Salaries,Environment,City Planning,
Carlisle Staffing Plc,UL01404867,06/08/2010,"2,177.62",Direct Employees,Salaries,Environment,Public Safety,
Carlisle Staffing Plc,UL01404867,06/08/2010,"2,445.77",Direct Employees,Salaries,Environment,Quality of Life & Green Spaces,
Carlisle Staffing Plc,UL01404867,06/08/2010,"5,777.22",Direct Employees,Salaries,Environment,Sustainable Transport&Planning,
Carlisle Staffing Plc,UL01404867,06/08/2010,"2,795.61",Direct Employees,Salaries,Environment,Waste,
Carlisle Staffing Plc,UL01404867,06/08/2010,421.50,Direct Employees,Salaries,Finance & Resources,Audit and Business Risk,
Carlisle Staffing Plc,UL01404867,06/08/2010,"4,966.73",Direct Employees,Salaries,Finance & Resources,Customer Services,
Carlisle Staffing Plc,UL01404867,06/08/2010,"3,120.14",Direct Employees,Salaries,Finance & Resources,Financial Services,
Carlisle Staffing Plc,UL01404867,06/08/2010,"3,571.61",Direct Employees,Salaries,Finance & Resources,ICT,
Carlisle Staffing Plc,UL01404867,06/08/2010,170.13,Direct Employees,Salaries,Finance & Resources,Property & Design,
Carlisle Staffing Plc,UL01404867,06/08/2010,307.89,Direct Employees,Salaries,"Housing, Culture & Capital",Cul & Ent Directors Office,
Carlisle Staffing Plc,UL01404867,06/08/2010,"12,630.71",Direct Employees,Salaries,"Housing, Culture & Capital",Housing Strategy,
Carlisle Staffing Plc,UL01404867,06/08/2010,320.83,Direct Employees,Salaries,"Housing, Culture & Capital",Royal Pavilion & Museums,
Carlisle Staffing Plc,UL01404867,06/08/2010,"2,884.91",Direct Employees,Salaries,Section 75 Adult Social Care,Contrib to S31 Partnership,
Carlisle Staffing Plc,UL01404867,06/08/2010,665.96,Direct Employees,Salaries,Section 75 South Downs Health,Contrib to S31 Partnership,
Carlisle Staffing Plc,UL01404867,06/08/2010,"3,474.73",Direct Employees,Salaries,Section 75 Sussex Partnership,Contrib to S31 Partnership,
Carlisle Staffing Plc,UL01404867,06/08/2010,845.24,Direct Employees,Salaries,Strategy & Governance,Communications,
Carlisle Staffing Plc,UL01404867,06/08/2010,66.43,Direct Employees,Salaries,Strategy & Governance,Executive Office,
Carlisle Staffing Plc,UL01404867,06/08/2010,"13,312.04",Direct Employees,Salaries,Strategy & Governance,Human Resources,
Carlisle Staffing Plc,UL01404867,06/08/2010,"4,736.43",Direct Employees,Salaries,Strategy & Governance,Legal and Democratic Services,
Carlisle Staffing Plc,UL01404867,06/08/2010,376.29,Direct Employees,Salaries,Strategy & Governance,Performance & Analysis,
Carlisle Staffing Plc,UL01404867,06/08/2010,377.89,Direct Employees,Salaries,Strategy & Governance,Strategy & Governance,
Carlisle Staffing Plc,UL01404867,06/08/2010,435.29,Direct Employees,Wages,"Housing, Culture & Capital",Tourism & Venues,
Carlisle Staffing Plc,UL01404867,06/08/2010,463.42,New Construction and Conversion,,"Housing, Culture & Capital",Housing Strategy,
Carlisle Staffing Plc,UL01404868,13/08/2010,"13,626.32",Direct Employees,Salaries,Adult Social Care,Adult Social Care,
Carlisle Staffing Plc,UL01404868,13/08/2010,"11,357.82",Direct Employees,Salaries,Adult Social Care,Housing Management,
Carlisle Staffing Plc,UL01404868,13/08/2010,"19,223.38",Direct Employees,Salaries,Chilren & Young People's Trust,Area Integrated Working,
Carlisle Staffing Plc,UL01404868,13/08/2010,311.45,Direct Employees,Salaries,Chilren & Young People's Trust,Commissioning & Governance,
Carlisle Staffing Plc,UL01404868,13/08/2010,478.17,Direct Employees,Salaries,Chilren & Young People's Trust,Director Childrens Services,
Carlisle Staffing Plc,UL01404868,13/08/2010,"2,937.78",Direct Employees,Salaries,Chilren & Young People's Trust,Learning Schools & Skills,
Carlisle Staffing Plc,UL01404868,13/08/2010,370.01,Direct Employees,Salaries,Environment,City Planning,
Carlisle Staffing Plc,UL01404868,13/08/2010,"14,349.45",Direct Employees,Salaries,Environment,Public Safety,
Carlisle Staffing Plc,UL01404868,13/08/2010,"2,251.13",Direct Employees,Salaries,Environment,Quality of Life & Green Spaces,
Carlisle Staffing Plc,UL01404868,13/08/2010,"4,949.87",Direct Employees,Salaries,Environment,Sustainable Transport&Planning,
Carlisle Staffing Plc,UL01404868,13/08/2010,"2,811.19",Direct Employees,Salaries,Environment,Waste,
Carlisle Staffing Plc,UL01404868,13/08/2010,311.81,Direct Employees,Salaries,Finance & Resources,Audit and Business Risk,
Carlisle Staffing Plc,UL01404868,13/08/2010,"4,618.30",Direct Employees,Salaries,Finance & Resources,Customer Services,
Carlisle Staffing Plc,UL01404868,13/08/2010,"3,236.46",Direct Employees,Salaries,Finance & Resources,Financial Services,
Carlisle Staffing Plc,UL01404868,13/08/2010,"3,352.92",Direct Employees,Salaries,Finance & Resources,ICT,
Carlisle Staffing Plc,UL01404868,13/08/2010,909.45,Direct Employees,Salaries,Finance & Resources,Property & Design,
Carlisle Staffing Plc,UL01404868,13/08/2010,415.86,Direct Employees,Salaries,"Housing, Culture & Capital",Cul & Ent Directors Office,
Carlisle Staffing Plc,UL01404868,13/08/2010,"12,594.90",Direct Employees,Salaries,"Housing, Culture & Capital",Housing Strategy,
Carlisle Staffing Plc,UL01404868,13/08/2010,401.25,Direct Employees,Salaries,"Housing, Culture & Capital",Royal Pavilion & Museums,
Carlisle Staffing Plc,UL01404868,13/08/2010,"3,093.41",Direct Employees,Salaries,Section 75 Adult Social Care,Contrib to S31 Partnership,
Carlisle Staffing Plc,UL01404868,13/08/2010,747.54,Direct Employees,Salaries,Section 75 South Downs Health,Contrib to S31 Partnership,
Carlisle Staffing Plc,UL01404868,13/08/2010,"7,048.97",Direct Employees,Salaries,Section 75 Sussex Partnership,Contrib to S31 Partnership,
Carlisle Staffing Plc,UL01404868,13/08/2010,824.37,Direct Employees,Salaries,Strategy & Governance,Communications,
Carlisle Staffing Plc,UL01404868,13/08/2010,"2,131.54",Direct Employees,Salaries,Strategy & Governance,Human Resources,
Carlisle Staffing Plc,UL01404868,13/08/2010,"4,747.30",Direct Employees,Salaries,Strategy & Governance,Legal and Democratic Services,
Carlisle Staffing Plc,UL01404868,13/08/2010,381.38,Direct Employees,Salaries,Strategy & Governance,Performance & Analysis,
Carlisle Staffing Plc,UL01404868,13/08/2010,508.22,Direct Employees,Salaries,Strategy & Governance,Strategy & Governance,
Carlisle Staffing Plc,UL01404868,13/08/2010,"4,711.08",Direct Employees,Wages,"Housing, Culture & Capital",Housing Strategy,
Carlisle Staffing Plc,UL01404868,13/08/2010,741.78,Direct Employees,Wages,"Housing, Culture & Capital",Tourism & Venues,
Carlisle Staffing Plc,UL01404868,13/08/2010,1.75,New Construction and Conversion,,Environment,Sustainable Transport&Planning,
Carlisle Staffing Plc,UL01425118,20/08/2010,"10,139.37",Direct Employees,Salaries,Adult Social Care,Adult Social Care,
Carlisle Staffing Plc,UL01425118,20/08/2010,"15,239.05",Direct Employees,Salaries,Adult Social Care,Housing Management,
Carlisle Staffing Plc,UL01425118,20/08/2010,"21,870.87",Direct Employees,Salaries,Chilren & Young People's Trust,Area Integrated Working,
Carlisle Staffing Plc,UL01425118,20/08/2010,225.43,Direct Employees,Salaries,Chilren & Young People's Trust,Commissioning & Governance,
Carlisle Staffing Plc,UL01425118,20/08/2010,433.03,Direct Employees,Salaries,Chilren & Young People's Trust,Director Childrens Services,
Carlisle Staffing Plc,UL01425118,20/08/2010,"2,857.90",Direct Employees,Salaries,Chilren & Young People's Trust,Learning Schools & Skills,
Carlisle Staffing Plc,UL01425118,20/08/2010,424.58,Direct Employees,Salaries,Environment,City Planning,
Carlisle Staffing Plc,UL01425118,20/08/2010,506.34,Direct Employees,Salaries,Environment,Public Safety,
Carlisle Staffing Plc,UL01425118,20/08/2010,"2,142.70",Direct Employees,Salaries,Environment,Quality of Life & Green Spaces,
Carlisle Staffing Plc,UL01425118,20/08/2010,"6,035.71",Direct Employees,Salaries,Environment,Sustainable Transport&Planning,
Carlisle Staffing Plc,UL01425118,20/08/2010,"2,233.71",Direct Employees,Salaries,Environment,Waste,
Carlisle Staffing Plc,UL01425118,20/08/2010,415.88,Direct Employees,Salaries,Finance & Resources,Audit and Business Risk,
Carlisle Staffing Plc,UL01425118,20/08/2010,"8,995.40",Direct Employees,Salaries,Finance & Resources,Customer Services,
Carlisle Staffing Plc,UL01425118,20/08/2010,"3,505.93",Direct Employees,Salaries,Finance & Resources,Financial Services,
Carlisle Staffing Plc,UL01425118,20/08/2010,"2,529.60",Direct Employees,Salaries,Finance & Resources,ICT,
Carlisle Staffing Plc,UL01425118,20/08/2010,"1,124.55",Direct Employees,Salaries,Finance & Resources,Property & Design,
Carlisle Staffing Plc,UL01425118,20/08/2010,526.48,Direct Employees,Salaries,"Housing, Culture & Capital",Cul & Ent Directors Office,
Carlisle Staffing Plc,UL01425118,20/08/2010,"11,261.53",Direct Employees,Salaries,"Housing, Culture & Capital",Housing Strategy,
Carlisle Staffing Plc,UL01425118,20/08/2010,324.46,Direct Employees,Salaries,"Housing, Culture & Capital",Royal Pavilion & Museums,
Carlisle Staffing Plc,UL01425118,20/08/2010,"2,605.48",Direct Employees,Salaries,Section 75 Adult Social Care,Contrib to S31 Partnership,
Carlisle Staffing Plc,UL01425118,20/08/2010,"1,020.71",Direct Employees,Salaries,Section 75 South Downs Health,Contrib to S31 Partnership,
Carlisle Staffing Plc,UL01425118,20/08/2010,"5,002.78",Direct Employees,Salaries,Section 75 Sussex Partnership,Contrib to S31 Partnership,
Carlisle Staffing Plc,UL01425118,20/08/2010,834.80,Direct Employees,Salaries,Strategy & Governance,Communications,
Carlisle Staffing Plc,UL01425118,20/08/2010,18.98,Direct Employees,Salaries,Strategy & Governance,Executive Office,
Carlisle Staffing Plc,UL01425118,20/08/2010,"3,023.26",Direct Employees,Salaries,Strategy & Governance,Human Resources,
Carlisle Staffing Plc,UL01425118,20/08/2010,"4,536.41",Direct Employees,Salaries,Strategy & Governance,Legal and Democratic Services,
Carlisle Staffing Plc,UL01425118,20/08/2010,305.10,Direct Employees,Salaries,Strategy & Governance,Performance & Analysis,
Carlisle Staffing Plc,UL01425118,20/08/2010,522.93,Direct Employees,Salaries,Strategy & Governance,Strategy & Governance,
Carlisle Staffing Plc,UL01425118,20/08/2010,407.68,Direct Employees,Wages,Finance & Resources,Customer Services,
Carlisle Staffing Plc,UL01425118,20/08/2010,3.88,Direct Employees,Wages,"Housing, Culture & Capital",Royal Pavilion & Museums,
Carlisle Staffing Plc,UL01425118,20/08/2010,303.70,Direct Employees,Wages,"Housing, Culture & Capital",Tourism & Venues,
Carlisle Staffing Plc,UL01425118,20/08/2010,460.27,New Construction and Conversion,,"Housing, Culture & Capital",Housing Strategy,
Carlisle Staffing Plc,UL01425119,27/08/2010,"44,547.30",Direct Employees,Salaries,Adult Social Care,Adult Social Care,
Carlisle Staffing Plc,UL01425119,27/08/2010,"12,909.03",Direct Employees,Salaries,Adult Social Care,Housing Management,
Carlisle Staffing Plc,UL01425119,27/08/2010,"17,782.93",Direct Employees,Salaries,Chilren & Young People's Trust,Area Integrated Working,
Carlisle Staffing Plc,UL01425119,27/08/2010,323.06,Direct Employees,Salaries,Chilren & Young People's Trust,Commissioning & Governance,
Carlisle Staffing Plc,UL01425119,27/08/2010,356.63,Direct Employees,Salaries,Chilren & Young People's Trust,Director Childrens Services,
Carlisle Staffing Plc,UL01425119,27/08/2010,"3,504.37",Direct Employees,Salaries,Chilren & Young People's Trust,Learning Schools & Skills,
Carlisle Staffing Plc,UL01425119,27/08/2010,418.14,Direct Employees,Salaries,Environment,City Planning,
Carlisle Staffing Plc,UL01425119,27/08/2010,"1,610.39",Direct Employees,Salaries,Environment,Public Safety,
Carlisle Staffing Plc,UL01425119,27/08/2010,"3,627.43",Direct Employees,Salaries,Environment,Quality of Life & Green Spaces,
Carlisle Staffing Plc,UL01425119,27/08/2010,"5,506.17",Direct Employees,Salaries,Environment,Sustainable Transport&Planning,
Carlisle Staffing Plc,UL01425119,27/08/2010,"3,595.01",Direct Employees,Salaries,Environment,Waste,
Carlisle Staffing Plc,UL01425119,27/08/2010,409.13,Direct Employees,Salaries,Finance & Resources,Audit and Business Risk,
Carlisle Staffing Plc,UL01425119,27/08/2010,"3,938.37",Direct Employees,Salaries,Finance & Resources,Customer Services,
Carlisle Staffing Plc,UL01425119,27/08/2010,"2,393.60",Direct Employees,Salaries,Finance & Resources,Financial Services,
Carlisle Staffing Plc,UL01425119,27/08/2010,"4,156.16",Direct Employees,Salaries,Finance & Resources,ICT,
Carlisle Staffing Plc,UL01425119,27/08/2010,"1,051.99",Direct Employees,Salaries,Finance & Resources,Property & Design,
Carlisle Staffing Plc,UL01425119,27/08/2010,306.13,Direct Employees,Salaries,"Housing, Culture & Capital",Cul & Ent Directors Office,
Carlisle Staffing Plc,UL01425119,27/08/2010,"9,932.17",Direct Employees,Salaries,"Housing, Culture & Capital",Housing Strategy,
Carlisle Staffing Plc,UL01425119,27/08/2010,324.39,Direct Employees,Salaries,"Housing, Culture & Capital",Royal Pavilion & Museums,
Carlisle Staffing Plc,UL01425119,27/08/2010,"7,422.76",Direct Employees,Salaries,Section 75 Adult Social Care,Contrib to S31 Partnership,
Carlisle Staffing Plc,UL01425119,27/08/2010,528.02,Direct Employees,Salaries,Section 75 South Downs Health,Contrib to S31 Partnership,
Carlisle Staffing Plc,UL01425119,27/08/2010,"6,371.78",Direct Employees,Salaries,Section 75 Sussex Partnership,Contrib to S31 Partnership,
Carlisle Staffing Plc,UL01425119,27/08/2010,709.58,Direct Employees,Salaries,Strategy & Governance,Communications,
Carlisle Staffing Plc,UL01425119,27/08/2010,"2,163.96",Direct Employees,Salaries,Strategy & Governance,Human Resources,
Carlisle Staffing Plc,UL01425119,27/08/2010,"3,365.22",Direct Employees,Salaries,Strategy & Governance,Legal and Democratic Services,
Carlisle Staffing Plc,UL01425119,27/08/2010,294.93,Direct Employees,Salaries,Strategy & Governance,Performance & Analysis,
Carlisle Staffing Plc,UL01425119,27/08/2010,503.46,Direct Employees,Salaries,Strategy & Governance,Strategy & Governance,
Carlisle Staffing Plc,UL01425119,27/08/2010,522.34,Direct Employees,Wages,Finance & Resources,Customer Services,
Carlisle Staffing Plc,UL01425119,27/08/2010,381.96,Direct Employees,Wages,"Housing, Culture & Capital",Housing Strategy,
Carlisle Staffing Plc,UL01425119,27/08/2010,3.88,Direct Employees,Wages,"Housing, Culture & Capital",Royal Pavilion & Museums,
Carlisle Staffing Plc,UL01425119,27/08/2010,94.42,Direct Employees,Wages,"Housing, Culture & Capital",Tourism & Venues,
Carlisle Staffing Plc,UL01425119,27/08/2010,447.66,New Construction and Conversion,,"Housing, Culture & Capital",Housing Strategy,
Payment to Individual,CF01418904,04/08/2010,928.00,Third Party Payments,Other Establishments,Chilren & Young People's Trust,Learning Schools & Skills,
Payment to Individual,CF01424529,11/08/2010,778.00,Third Party Payments,Other Establishments,Chilren & Young People's Trust,Learning Schools & Skills,
Payment to Individual,CF01430687,18/08/2010,778.00,Third Party Payments,Other Establishments,Chilren & Young People's Trust,Learning Schools & Skills,
Payment to Individual,03923087,04/08/2010,595.00,Transfer Payments,Other Transfer Payments,Chilren & Young People's Trust,Area Integrated Working,
Caspari Ltd,03925755,06/08/2010,520.34,Supplies and Services,Goods for Resale,"Housing, Culture & Capital",Royal Pavilion & Museums,
Caspari Ltd,03948525,18/08/2010,665.96,Supplies and Services,Goods for Resale,"Housing, Culture & Capital",Royal Pavilion & Museums,
Caspari Ltd,03965320,20/08/2010,749.87,Supplies and Services,Goods for Resale,"Housing, Culture & Capital",Royal Pavilion & Museums,
Castlebeck Care (Teesdale) Ltd,CF01423383,11/08/2010,-71.15,Customer and Client Receipts,Fees and Charges,Section 75 Adult Social Care,Contrib to S31 Partnership,
Castlebeck Care (Teesdale) Ltd,CF01423383,11/08/2010,"2,034.09",Third Party Payments,Other Establishments,Section 75 Adult Social Care,Contrib to S31 Partnership,
Castlebeck Care (Teesdale) Ltd,CF01423384,11/08/2010,-71.15,Customer and Client Receipts,Fees and Charges,Section 75 Adult Social Care,Contrib to S31 Partnership,
Castlebeck Care (Teesdale) Ltd,CF01423384,11/08/2010,"2,034.09",Third Party Payments,Other Establishments,Section 75 Adult Social Care,Contrib to S31 Partnership,
Castlebeck Care (Teesdale) Ltd,CF01423385,11/08/2010,-71.15,Customer and Client Receipts,Fees and Charges,Section 75 Adult Social Care,Contrib to S31 Partnership,
Castlebeck Care (Teesdale) Ltd,CF01423385,11/08/2010,"2,034.09",Third Party Payments,Other Establishments,Section 75 Adult Social Care,Contrib to S31 Partnership,
Castlebeck Care (Teesdale) Ltd,CF01423386,11/08/2010,-71.15,Customer and Client Receipts,Fees and Charges,Section 75 Adult Social Care,Contrib to S31 Partnership,
Castlebeck Care (Teesdale) Ltd,CF01423386,11/08/2010,"2,034.09",Third Party Payments,Other Establishments,Section 75 Adult Social Care,Contrib to S31 Partnership,
Catercraft Supplies Ltd,03919457,04/08/2010,600.00,Supplies and Services,Equipment Furniture and Materials,Section 75 Adult Social Care,Contrib to S31 Partnership,
Catercraft Supplies Ltd,03964130,20/08/2010,"5,010.00",Supplies and Services,Equipment Furniture and Materials,Chilren & Young People's Trust,Learning Schools & Skills,
My Holiday Let,03978951,25/08/2010,695.00,Third Party Payments,Other Establishments,Chilren & Young People's Trust,Area Integrated Working,
Payment to Individual,0038972,27/08/2010,800.00,Premises Related,Rents Payable,"Housing, Culture & Capital",Housing Strategy,
CA Traffic Ltd,03925043,06/08/2010,"3,535.00",Supplies and Services,Services,Environment,Sustainable Transport&Planning,
Cbabiesafe,03912195,04/08/2010,"2,000.00",Third Party Payments,Other Establishments,Chilren & Young People's Trust,Area Integrated Working,
Cbabiesafe,UL01417763,04/08/2010,"3,848.00",Supplies and Services,Grants and Subscriptions,Chilren & Young People's Trust,Area Integrated Working,
Cbabiesafe,UL01437384,20/08/2010,"1,582.00",Third Party Payments,Other Establishments,Chilren & Young People's Trust,Learning Schools & Skills,
C Brewer & Sons Ltd,03935842,18/08/2010,661.95,Premises Related,Repair Maint and Alterations,"Housing, Culture & Capital",Tourism & Venues,
C Brewer & Sons Ltd,03949003,18/08/2010,557.28,Premises Related,Repair Maint and Alterations,"Housing, Culture & Capital",Tourism & Venues,
CB Richard Ellis Limited,03970205,25/08/2010,"5,000.00",Supplies and Services,Services,Adult Social Care,Housing Management,
CCLA Investment Management Ltd,03959297,18/08/2010,"125,000.00",Long Term Investments,Specific Long Term Investments,Finance & Resources,To Be Advised,
Central Law Training Ltd,03918827,04/08/2010,650.00,Indirect Employees,Training,Strategy & Governance,Legal and Democratic Services,
Central Sussex College,03929340,18/08/2010,"2,200.00",Indirect Employees,Training,Strategy & Governance,Human Resources,
Cerrig Camu Ltd,CF01434217,20/08/2010,-71.15,Customer and Client Receipts,Fees and Charges,Section 75 Adult Social Care,Contrib to S31 Partnership,
Cerrig Camu Ltd,CF01434217,20/08/2010,"1,267.86",Third Party Payments,Other Establishments,Section 75 Adult Social Care,Contrib to S31 Partnership,
Cerrig Camu Ltd,CF01434218,20/08/2010,-71.15,Customer and Client Receipts,Fees and Charges,Section 75 Adult Social Care,Contrib to S31 Partnership,
Cerrig Camu Ltd,CF01434218,20/08/2010,"1,267.86",Third Party Payments,Other Establishments,Section 75 Adult Social Care,Contrib to S31 Partnership,
Cerrig Camu Ltd,CF01434219,20/08/2010,-71.15,Customer and Client Receipts,Fees and Charges,Section 75 Adult Social Care,Contrib to S31 Partnership,
Cerrig Camu Ltd,CF01434219,20/08/2010,"1,267.86",Third Party Payments,Other Establishments,Section 75 Adult Social Care,Contrib to S31 Partnership,
Cerrig Camu Ltd,CF01434220,20/08/2010,-71.15,Customer and Client Receipts,Fees and Charges,Section 75 Adult Social Care,Contrib to S31 Partnership,
Cerrig Camu Ltd,CF01434220,20/08/2010,"1,267.86",Third Party Payments,Other Establishments,Section 75 Adult Social Care,Contrib to S31 Partnership,
Chailey Heritage School,03935091,11/08/2010,"10,180.00",Third Party Payments,Other Agencies,Chilren & Young People's Trust,Learning Schools & Skills,
Challenge Packaging Ltd,03912548,06/08/2010,"2,349.75",Supplies and Services,Equipment Furniture and Materials,Finance & Resources,Property & Design,
Chandlers Limited,03962996,20/08/2010,561.00,Supplies and Services,Services,Finance & Resources,Customer Services,
Payment to Individual,0038483,11/08/2010,750.00,Premises Related,Rents Payable,"Housing, Culture & Capital",Housing Strategy,
Channels & Choices,CF01439615,25/08/2010,"2,014.33",Third Party Payments,Other Establishments,Chilren & Young People's Trust,Commissioning & Governance,
Channels & Choices,CF01439616,25/08/2010,"4,700.00",Third Party Payments,Other Establishments,Chilren & Young People's Trust,Commissioning & Governance,
Channels & Choices,CF01439617,25/08/2010,"4,700.00",Third Party Payments,Other Establishments,Chilren & Young People's Trust,Commissioning & Governance,
Channels & Choices,CF01439618,25/08/2010,"4,700.00",Third Party Payments,Other Establishments,Chilren & Young People's Trust,Commissioning & Governance,
Channels & Choices,CF01439619,25/08/2010,"4,700.00",Third Party Payments,Other Establishments,Chilren & Young People's Trust,Commissioning & Governance,
Payment to Individual,0038974,27/08/2010,775.00,Premises Related,Rents Payable,"Housing, Culture & Capital",Housing Strategy,
Charlie Brown Tennis Coaching,03977033,25/08/2010,640.00,Supplies and Services,Services,Environment,Leisure,
Payment to Individual,CF01435832,20/08/2010,712.34,Third Party Payments,Other Establishments,Adult Social Care,Adult Social Care,
Payment to Individual,CF01435833,20/08/2010,712.34,Third Party Payments,Other Establishments,Adult Social Care,Adult Social Care,
Payment to Individual,CF01435834,20/08/2010,712.34,Third Party Payments,Other Establishments,Adult Social Care,Adult Social Care,
Payment to Individual,CF01435835,20/08/2010,712.34,Third Party Payments,Other Establishments,Adult Social Care,Adult Social Care,
Chartered Institute of Enviromental Health,03915969,13/08/2010,"2,000.00",Supplies and Services,Services,Finance & Resources,To Be Advised,
Chattri Memorial Group ,03982992,27/08/2010,"1,500.00",Supplies and Services,Miscellaneous Expenses,Strategy & Governance,Strategy & Governance,
Chelfham Priory,03964761,20/08/2010,"78,117.77",Third Party Payments,Other Agencies,Chilren & Young People's Trust,Learning Schools & Skills,
Payment to Individual,03942275,13/08/2010,137.99,Supplies and Services,Expenses,"Housing, Culture & Capital",Culture & Economy,
Payment to Individual,03942275,13/08/2010,396.03,Transport Related,Public Transport,"Housing, Culture & Capital",Culture & Economy,
Choices Letting Agents,03942369,13/08/2010,"2,192.25",Transfer Payments,Other Transfer Payments,Chilren & Young People's Trust,Area Integrated Working,
Christian Arabic Club,03922499,04/08/2010,"3,000.00",Supplies and Services,Grants and Subscriptions,Strategy & Governance,Communities & Equality,
Payment to Individual,0038857,25/08/2010,750.00,Premises Related,Rents Payable,"Housing, Culture & Capital",Housing Strategy,
Payment to Individual,0038908,25/08/2010,875.00,Premises Related,Rents Payable,"Housing, Culture & Capital",Housing Strategy,
Payment to Individual,0038426,06/08/2010,775.00,Premises Related,Rents Payable,"Housing, Culture & Capital",Housing Strategy,
Payment to Individual,0039040,27/08/2010,800.00,Premises Related,Rents Payable,"Housing, Culture & Capital",Housing Strategy,
Church Hill Playgroup,UL01417757,04/08/2010,"1,098.00",Supplies and Services,Grants and Subscriptions,Chilren & Young People's Trust,Area Integrated Working,
Church Hill Playgroup,UL01437378,20/08/2010,848.00,Third Party Payments,Other Establishments,Chilren & Young People's Trust,Learning Schools & Skills,
CIPFA Business Ltd,03929094,06/08/2010,620.00,Indirect Employees,Training,Finance & Resources,Financial Services,
Circus Pre-School,UL01417719,04/08/2010,"1,890.00",Supplies and Services,Grants and Subscriptions,Chilren & Young People's Trust,Area Integrated Working,
Circus Pre-School,UL01437340,20/08/2010,"1,054.00",Third Party Payments,Other Establishments,Chilren & Young People's Trust,Learning Schools & Skills,
Cirrus Communications Systems Ltd,03917116,04/08/2010,517.36,New Construction and Conversion,,"Housing, Culture & Capital",Housing Management,
Cirrus Communications Systems Ltd,03934979,11/08/2010,"1,608.60",Supplies and Services,Equipment Furniture and Materials,Adult Social Care,Housing Management,
Cirrus Communications Systems Ltd,03934982,11/08/2010,"3,409.68",Supplies and Services,Equipment Furniture and Materials,Adult Social Care,Housing Management,
City Car Club,03946501,13/08/2010,670.73,Transport Related,Other Transport Costs,Environment,City Planning,
City Car Club,03946514,13/08/2010,827.08,Transport Related,Other Transport Costs,Environment,City Planning,
City College Brighton and Hove,03889671,06/08/2010,"34,379.00",Indirect Employees,Training,Chilren & Young People's Trust,Learning Schools & Skills,
City College Brighton and Hove,03919473,04/08/2010,"3,000.00",Supplies and Services,Miscellaneous Expenses,"Housing, Culture & Capital",Culture & Economy,
City College Brighton and Hove,03919486,04/08/2010,"4,000.00",Supplies and Services,Miscellaneous Expenses,"Housing, Culture & Capital",Culture & Economy,
City College Brighton and Hove,03919509,04/08/2010,750.00,Supplies and Services,Miscellaneous Expenses,"Housing, Culture & Capital",Culture & Economy,
City College Brighton and Hove,03939165,20/08/2010,"21,838.30",Premises Related,Energy Costs,Environment,Leisure,
City College Brighton and Hove,03948240,25/08/2010,"4,230.00",Third Party Payments,Other Establishments,Chilren & Young People's Trust,Learning Schools & Skills,
City College Brighton and Hove,03951716,20/08/2010,"11,065.00",Third Party Payments,Other Establishments,Chilren & Young People's Trust,Area Integrated Working,
City College Brighton and Hove,03951729,20/08/2010,"11,065.00",Third Party Payments,Other Establishments,Chilren & Young People's Trust,Area Integrated Working,
City College Brighton and Hove,03956957,18/08/2010,"6,250.00",Supplies and Services,Miscellaneous Expenses,"Housing, Culture & Capital",Culture & Economy,
City College Brighton and Hove,03981812,27/08/2010,"1,108.00",Transfer Payments,Other Transfer Payments,Chilren & Young People's Trust,Area Integrated Working,
City Electrical Factors Ltd,03981540,27/08/2010,598.00,Supplies and Services,Equipment Furniture and Materials,Adult Social Care,Housing Management,
City Pest Control,03921445,04/08/2010,"1,390.00",Premises Related,Repair Maint and Alterations,Adult Social Care,Housing Management,
Payment to Individual,0038517,11/08/2010,750.00,Premises Related,Rents Payable,"Housing, Culture & Capital",Housing Strategy,
C J Thorne & Co Ltd,03915341,04/08/2010,"2,135.26",Premises Related,Repair Maint and Alterations,Environment,Sustainable Transport&Planning,
C J Thorne & Co Ltd,03918351,04/08/2010,"11,564.43",Premises Related,Repair Maint and Alterations,Environment,Sustainable Transport&Planning,
C J Thorne & Co Ltd,03921610,04/08/2010,"41,166.93",Premises Related,Repair Maint and Alterations,Environment,Sustainable Transport&Planning,
C J Thorne & Co Ltd,03929997,06/08/2010,"17,736.52",Premises Related,Repair Maint and Alterations,Environment,Sustainable Transport&Planning,
C J Thorne & Co Ltd,03932230,11/08/2010,"3,310.48",Premises Related,Repair Maint and Alterations,Environment,Sustainable Transport&Planning,
C J Thorne & Co Ltd,03932900,11/08/2010,"8,676.90",Premises Related,Repair Maint and Alterations,Environment,Sustainable Transport&Planning,
C J Thorne & Co Ltd,03934720,11/08/2010,"1,171.33",Premises Related,Repair Maint and Alterations,Environment,Sustainable Transport&Planning,
C J Thorne & Co Ltd,03934733,11/08/2010,"1,997.34",Premises Related,Repair Maint and Alterations,Environment,Sustainable Transport&Planning,
C J Thorne & Co Ltd,03934759,11/08/2010,"3,552.25",Premises Related,Repair Maint and Alterations,Environment,Sustainable Transport&Planning,
C J Thorne & Co Ltd,03934762,11/08/2010,"4,982.11",Premises Related,Repair Maint and Alterations,Environment,Sustainable Transport&Planning,
C J Thorne & Co Ltd,03937206,11/08/2010,"6,250.00",Premises Related,Repair Maint and Alterations,Environment,Leisure,
Clapham Properties,03984521,26/08/2010,"2,000.00",Capital Grants,,"Housing, Culture & Capital",Housing Strategy,
Payment to Individual,0038894,25/08/2010,"1,100.00",Premises Related,Rents Payable,"Housing, Culture & Capital",Housing Strategy,
Payment to Individual,03978809,25/08/2010,"2,290.49",Supplies and Services,Services,"Housing, Culture & Capital",Royal Pavilion & Museums,
Clarke Court Residents Association,03922431,04/08/2010,628.05,Supplies and Services,Grants and Subscriptions,Adult Social Care,Housing Management,
Class Of Their Own Ltd,03925302,06/08/2010,"5,145.00",Supplies and Services,Grants and Subscriptions,Chilren & Young People's Trust,Area Integrated Working,
Class Of Their Own Ltd,03935509,11/08/2010,"5,100.00",Supplies and Services,Grants and Subscriptions,Chilren & Young People's Trust,Area Integrated Working,
Class Of Their Own Ltd,03950597,18/08/2010,593.00,Third Party Payments,Other Establishments,Chilren & Young People's Trust,Area Integrated Working,
Class Of Their Own Ltd,03977583,25/08/2010,624.00,Supplies and Services,Grants and Subscriptions,Chilren & Young People's Trust,Area Integrated Working,
Cleansing Service Group Ltd,03954852,25/08/2010,"2,184.00",Premises Related,Repair Maint and Alterations,Environment,Quality of Life & Green Spaces,
Cleansing Service Group Ltd,03974926,27/08/2010,550.00,Premises Related,Water Services,Environment,Public Safety,
Clear Channel UK Ltd,03939518,18/08/2010,"7,000.00",New Construction and Conversion,,Environment,Sustainable Transport&Planning,
Clearwell Mobility Ltd,03929065,06/08/2010,"1,224.00",Supplies and Services,Equipment Furniture and Materials,Section 75 South Downs Health,Contrib to S31 Partnership,
Clearwell Mobility Ltd,03952155,18/08/2010,"1,446.50",Supplies and Services,Equipment Furniture and Materials,Section 75 South Downs Health,Contrib to S31 Partnership,
Clearwell Mobility Ltd,03952168,18/08/2010,577.50,Supplies and Services,Equipment Furniture and Materials,Section 75 South Downs Health,Contrib to S31 Partnership,
Clearwell Mobility Ltd,03973943,25/08/2010,985.50,Supplies and Services,Equipment Furniture and Materials,Section 75 South Downs Health,Contrib to S31 Partnership,
Cliffords Catering Limited,03922648,04/08/2010,"1,618.95",Supplies and Services,Catering,Chilren & Young People's Trust,Learning Schools & Skills,
Climate Energy Ltd,03925137,06/08/2010,"4,309.43",Capital Grants,,"Housing, Culture & Capital",Housing Strategy,
Climate Energy Ltd,03925153,06/08/2010,"4,101.51",Capital Grants,,"Housing, Culture & Capital",Housing Strategy,
Climate Energy Ltd,03927546,06/08/2010,"3,500.00",Capital Grants,,"Housing, Culture & Capital",Housing Strategy,
Climate Energy Ltd,03927575,06/08/2010,"2,657.81",Capital Grants,,"Housing, Culture & Capital",Housing Strategy,
Climate Energy Ltd,03927601,06/08/2010,"3,292.35",Capital Grants,,"Housing, Culture & Capital",Housing Strategy,
Climate Energy Ltd,03948444,18/08/2010,573.24,Capital Grants,,"Housing, Culture & Capital",Housing Strategy,
Climate Energy Ltd,03948457,18/08/2010,"1,500.00",Capital Grants,,"Housing, Culture & Capital",Housing Strategy,
Climate Energy Ltd,03948473,18/08/2010,"1,500.00",Capital Grants,,"Housing, Culture & Capital",Housing Strategy,
Climate Energy Ltd,03948486,18/08/2010,"3,998.61",Capital Grants,,"Housing, Culture & Capital",Housing Strategy,
Climate Energy Ltd,03948512,18/08/2010,"4,309.20",Capital Grants,,"Housing, Culture & Capital",Housing Strategy,
Climate Energy Ltd,03976678,25/08/2010,"3,500.00",Capital Grants,,"Housing, Culture & Capital",Housing Strategy,
Climate Energy Ltd,03976759,25/08/2010,"3,500.00",Capital Grants,,"Housing, Culture & Capital",Housing Strategy,
Climate Energy Ltd,03976762,25/08/2010,"3,500.00",Capital Grants,,"Housing, Culture & Capital",Housing Strategy,
Climate Energy Ltd,03977635,25/08/2010,548.36,Capital Grants,,"Housing, Culture & Capital",Housing Strategy,
Climate Energy Ltd,03977910,25/08/2010,"4,660.97",Capital Grants,,"Housing, Culture & Capital",Housing Strategy,
Climate Energy Ltd,03977923,25/08/2010,800.00,Capital Grants,,"Housing, Culture & Capital",Housing Strategy,
Climate Energy Ltd,03977965,25/08/2010,"4,646.25",Capital Grants,,"Housing, Culture & Capital",Housing Strategy,
Climate Energy Ltd,03977994,25/08/2010,"3,757.95",Capital Grants,,"Housing, Culture & Capital",Housing Strategy,
Climate Energy Ltd,03978032,25/08/2010,765.14,Capital Grants,,"Housing, Culture & Capital",Housing Strategy,
Climate Energy Ltd,03978249,25/08/2010,"1,500.00",Capital Grants,,"Housing, Culture & Capital",Housing Strategy,
Climate Energy Ltd,03978265,25/08/2010,"1,500.00",Capital Grants,,"Housing, Culture & Capital",Housing Strategy,
Climate Energy Ltd,03978317,25/08/2010,"4,840.50",Capital Grants,,"Housing, Culture & Capital",Housing Strategy,
Climate Energy Ltd,03978375,25/08/2010,587.50,Capital Grants,,"Housing, Culture & Capital",Housing Strategy,
Clivet Aircon Ltd,03954768,18/08/2010,"3,228.00",Premises Related,Repair Maint and Alterations,Finance & Resources,Property & Design,
Cluttons,03929492,06/08/2010,500.00,Premises Related,Departmental Administration,Finance & Resources,To Be Advised,
Cluttons,03937604,11/08/2010,"2,500.00",Supplies and Services,Services,Finance & Resources,Property & Design,
Cluttons,03964664,20/08/2010,"26,432.20",Third Party Payments,Independent Units of Council,Finance & Resources,Property & Design,
Cluttons LLP (Service Charges/Rent/Imprests),03919305,04/08/2010,"5,895.00",Customer and Client Receipts,Rents,Finance & Resources,Property & Design,
CMG Limited,CF01421700,11/08/2010,-71.15,Customer and Client Receipts,Fees and Charges,Section 75 Adult Social Care,Contrib to S31 Partnership,
CMG Limited,CF01421700,11/08/2010,"1,470.84",Third Party Payments,Other Establishments,Section 75 Adult Social Care,Contrib to S31 Partnership,
CMG Limited,CF01421701,11/08/2010,-71.15,Customer and Client Receipts,Fees and Charges,Section 75 Adult Social Care,Contrib to S31 Partnership,
CMG Limited,CF01421701,11/08/2010,"1,470.84",Third Party Payments,Other Establishments,Section 75 Adult Social Care,Contrib to S31 Partnership,
CMG Limited,CF01421702,11/08/2010,-71.15,Customer and Client Receipts,Fees and Charges,Section 75 Adult Social Care,Contrib to S31 Partnership,
CMG Limited,CF01421702,11/08/2010,"1,470.84",Third Party Payments,Other Establishments,Section 75 Adult Social Care,Contrib to S31 Partnership,
CMG Limited,CF01421703,11/08/2010,-71.15,Customer and Client Receipts,Fees and Charges,Section 75 Adult Social Care,Contrib to S31 Partnership,
CMG Limited,CF01421703,11/08/2010,"1,470.84",Third Party Payments,Other Establishments,Section 75 Adult Social Care,Contrib to S31 Partnership,
CMG Limited,CF01421711,11/08/2010,-71.15,Customer and Client Receipts,Fees and Charges,Section 75 Adult Social Care,Contrib to S31 Partnership,
CMG Limited,CF01421711,11/08/2010,"1,535.94",Third Party Payments,Other Establishments,Section 75 Adult Social Care,Contrib to S31 Partnership,
CMG Limited,CF01421712,11/08/2010,-71.15,Customer and Client Receipts,Fees and Charges,Section 75 Adult Social Care,Contrib to S31 Partnership,
CMG Limited,CF01421712,11/08/2010,"1,535.94",Third Party Payments,Other Establishments,Section 75 Adult Social Care,Contrib to S31 Partnership,
CMG Limited,CF01421713,11/08/2010,-71.15,Customer and Client Receipts,Fees and Charges,Section 75 Adult Social Care,Contrib to S31 Partnership,
CMG Limited,CF01421713,11/08/2010,"1,535.94",Third Party Payments,Other Establishments,Section 75 Adult Social Care,Contrib to S31 Partnership,
CMG Limited,CF01421714,11/08/2010,-71.15,Customer and Client Receipts,Fees and Charges,Section 75 Adult Social Care,Contrib to S31 Partnership,
CMG Limited,CF01421714,11/08/2010,"1,535.94",Third Party Payments,Other Establishments,Section 75 Adult Social Care,Contrib to S31 Partnership,
CMG Limited,CF01421715,11/08/2010,-71.15,Customer and Client Receipts,Fees and Charges,Section 75 Adult Social Care,Contrib to S31 Partnership,
CMG Limited,CF01421715,11/08/2010,"1,578.96",Third Party Payments,Other Establishments,Section 75 Adult Social Care,Contrib to S31 Partnership,
CMG Limited,CF01421716,11/08/2010,-71.15,Customer and Client Receipts,Fees and Charges,Section 75 Adult Social Care,Contrib to S31 Partnership,
CMG Limited,CF01421716,11/08/2010,"1,578.96",Third Party Payments,Other Establishments,Section 75 Adult Social Care,Contrib to S31 Partnership,
CMG Limited,CF01421717,11/08/2010,-71.15,Customer and Client Receipts,Fees and Charges,Section 75 Adult Social Care,Contrib to S31 Partnership,
CMG Limited,CF01421717,11/08/2010,"1,578.96",Third Party Payments,Other Establishments,Section 75 Adult Social Care,Contrib to S31 Partnership,
CMG Limited,CF01421718,11/08/2010,-71.15,Customer and Client Receipts,Fees and Charges,Section 75 Adult Social Care,Contrib to S31 Partnership,
CMG Limited,CF01421718,11/08/2010,"1,578.96",Third Party Payments,Other Establishments,Section 75 Adult Social Care,Contrib to S31 Partnership,
CMG Limited,CF01421719,11/08/2010,"2,065.25",Third Party Payments,Other Establishments,Section 75 Adult Social Care,Contrib to S31 Partnership,
CMG Limited,CF01421720,11/08/2010,"2,065.25",Third Party Payments,Other Establishments,Section 75 Adult Social Care,Contrib to S31 Partnership,
CMG Limited,CF01421721,11/08/2010,"2,065.25",Third Party Payments,Other Establishments,Section 75 Adult Social Care,Contrib to S31 Partnership,
CMG Limited,CF01421722,11/08/2010,"2,065.25",Third Party Payments,Other Establishments,Section 75 Adult Social Care,Contrib to S31 Partnership,
CMG Limited,CF01421723,11/08/2010,-84.10,Customer and Client Receipts,Fees and Charges,Section 75 Adult Social Care,Contrib to S31 Partnership,
CMG Limited,CF01421723,11/08/2010,"1,149.54",Third Party Payments,Other Establishments,Section 75 Adult Social Care,Contrib to S31 Partnership,
CMG Limited,CF01421724,11/08/2010,-84.10,Customer and Client Receipts,Fees and Charges,Section 75 Adult Social Care,Contrib to S31 Partnership,
CMG Limited,CF01421724,11/08/2010,"1,149.54",Third Party Payments,Other Establishments,Section 75 Adult Social Care,Contrib to S31 Partnership,
CMG Limited,CF01421725,11/08/2010,-84.10,Customer and Client Receipts,Fees and Charges,Section 75 Adult Social Care,Contrib to S31 Partnership,
CMG Limited,CF01421725,11/08/2010,"1,149.54",Third Party Payments,Other Establishments,Section 75 Adult Social Care,Contrib to S31 Partnership,
CMG Limited,CF01421726,11/08/2010,-84.10,Customer and Client Receipts,Fees and Charges,Section 75 Adult Social Care,Contrib to S31 Partnership,
CMG Limited,CF01421726,11/08/2010,"1,149.54",Third Party Payments,Other Establishments,Section 75 Adult Social Care,Contrib to S31 Partnership,
CMG Limited,CF01421727,11/08/2010,-71.15,Customer and Client Receipts,Fees and Charges,Section 75 Adult Social Care,Contrib to S31 Partnership,
CMG Limited,CF01421727,11/08/2010,"1,958.89",Third Party Payments,Other Establishments,Section 75 Adult Social Care,Contrib to S31 Partnership,
CMG Limited,CF01421728,11/08/2010,-71.15,Customer and Client Receipts,Fees and Charges,Section 75 Adult Social Care,Contrib to S31 Partnership,
CMG Limited,CF01421728,11/08/2010,"1,958.89",Third Party Payments,Other Establishments,Section 75 Adult Social Care,Contrib to S31 Partnership,
CMG Limited,CF01421729,11/08/2010,-71.15,Customer and Client Receipts,Fees and Charges,Section 75 Adult Social Care,Contrib to S31 Partnership,
CMG Limited,CF01421729,11/08/2010,"1,958.89",Third Party Payments,Other Establishments,Section 75 Adult Social Care,Contrib to S31 Partnership,
CMG Limited,CF01421730,11/08/2010,-71.15,Customer and Client Receipts,Fees and Charges,Section 75 Adult Social Care,Contrib to S31 Partnership,
CMG Limited,CF01421730,11/08/2010,"1,958.89",Third Party Payments,Other Establishments,Section 75 Adult Social Care,Contrib to S31 Partnership,
CMG Limited,CF01421731,11/08/2010,-71.15,Customer and Client Receipts,Fees and Charges,Section 75 Adult Social Care,Contrib to S31 Partnership,
CMG Limited,CF01421731,11/08/2010,"1,958.26",Third Party Payments,Other Establishments,Section 75 Adult Social Care,Contrib to S31 Partnership,
CMG Limited,CF01421732,11/08/2010,-71.15,Customer and Client Receipts,Fees and Charges,Section 75 Adult Social Care,Contrib to S31 Partnership,
CMG Limited,CF01421732,11/08/2010,"1,958.26",Third Party Payments,Other Establishments,Section 75 Adult Social Care,Contrib to S31 Partnership,
CMG Limited,CF01421733,11/08/2010,-71.15,Customer and Client Receipts,Fees and Charges,Section 75 Adult Social Care,Contrib to S31 Partnership,
CMG Limited,CF01421733,11/08/2010,"1,958.26",Third Party Payments,Other Establishments,Section 75 Adult Social Care,Contrib to S31 Partnership,
CMG Limited,CF01421734,11/08/2010,-71.15,Customer and Client Receipts,Fees and Charges,Section 75 Adult Social Care,Contrib to S31 Partnership,
CMG Limited,CF01421734,11/08/2010,"1,958.26",Third Party Payments,Other Establishments,Section 75 Adult Social Care,Contrib to S31 Partnership,
CMG Limited,CF01421735,11/08/2010,-71.15,Customer and Client Receipts,Fees and Charges,Section 75 Adult Social Care,Contrib to S31 Partnership,
CMG Limited,CF01421735,11/08/2010,"1,805.88",Third Party Payments,Other Establishments,Section 75 Adult Social Care,Contrib to S31 Partnership,
CMG Limited,CF01421736,11/08/2010,-71.15,Customer and Client Receipts,Fees and Charges,Section 75 Adult Social Care,Contrib to S31 Partnership,
CMG Limited,CF01421736,11/08/2010,"1,805.88",Third Party Payments,Other Establishments,Section 75 Adult Social Care,Contrib to S31 Partnership,
CMG Limited,CF01421737,11/08/2010,-71.15,Customer and Client Receipts,Fees and Charges,Section 75 Adult Social Care,Contrib to S31 Partnership,
CMG Limited,CF01421737,11/08/2010,"1,805.88",Third Party Payments,Other Establishments,Section 75 Adult Social Care,Contrib to S31 Partnership,
CMG Limited,CF01421738,11/08/2010,-71.15,Customer and Client Receipts,Fees and Charges,Section 75 Adult Social Care,Contrib to S31 Partnership,
CMG Limited,CF01421738,11/08/2010,"1,805.88",Third Party Payments,Other Establishments,Section 75 Adult Social Care,Contrib to S31 Partnership,
CMG Limited,CF01421753,11/08/2010,-71.15,Customer and Client Receipts,Fees and Charges,Section 75 Adult Social Care,Contrib to S31 Partnership,
CMG Limited,CF01421753,11/08/2010,"1,800.30",Third Party Payments,Other Establishments,Section 75 Adult Social Care,Contrib to S31 Partnership,
CMG Limited,CF01421754,11/08/2010,-71.15,Customer and Client Receipts,Fees and Charges,Section 75 Adult Social Care,Contrib to S31 Partnership,
CMG Limited,CF01421754,11/08/2010,"1,800.30",Third Party Payments,Other Establishments,Section 75 Adult Social Care,Contrib to S31 Partnership,
CMG Limited,CF01421755,11/08/2010,-71.15,Customer and Client Receipts,Fees and Charges,Section 75 Adult Social Care,Contrib to S31 Partnership,
CMG Limited,CF01421755,11/08/2010,"1,800.30",Third Party Payments,Other Establishments,Section 75 Adult Social Care,Contrib to S31 Partnership,
CMG Limited,CF01421756,11/08/2010,-71.15,Customer and Client Receipts,Fees and Charges,Section 75 Adult Social Care,Contrib to S31 Partnership,
CMG Limited,CF01421756,11/08/2010,"1,800.30",Third Party Payments,Other Establishments,Section 75 Adult Social Care,Contrib to S31 Partnership,
CMG Limited,CF01421765,11/08/2010,-71.15,Customer and Client Receipts,Fees and Charges,Section 75 Adult Social Care,Contrib to S31 Partnership,
CMG Limited,CF01421765,11/08/2010,"1,507.56",Third Party Payments,Other Establishments,Section 75 Adult Social Care,Contrib to S31 Partnership,
CMG Limited,CF01421766,11/08/2010,-71.15,Customer and Client Receipts,Fees and Charges,Section 75 Adult Social Care,Contrib to S31 Partnership,
CMG Limited,CF01421766,11/08/2010,"1,507.56",Third Party Payments,Other Establishments,Section 75 Adult Social Care,Contrib to S31 Partnership,
CMG Limited,CF01421767,11/08/2010,-71.15,Customer and Client Receipts,Fees and Charges,Section 75 Adult Social Care,Contrib to S31 Partnership,
CMG Limited,CF01421767,11/08/2010,"1,507.56",Third Party Payments,Other Establishments,Section 75 Adult Social Care,Contrib to S31 Partnership,
CMG Limited,CF01421768,11/08/2010,-71.15,Customer and Client Receipts,Fees and Charges,Section 75 Adult Social Care,Contrib to S31 Partnership,
CMG Limited,CF01421768,11/08/2010,"1,507.56",Third Party Payments,Other Establishments,Section 75 Adult Social Care,Contrib to S31 Partnership,
CMG Limited,CF01421769,11/08/2010,-84.10,Customer and Client Receipts,Fees and Charges,Section 75 Adult Social Care,Contrib to S31 Partnership,
CMG Limited,CF01421769,11/08/2010,"1,318.86",Third Party Payments,Other Establishments,Section 75 Adult Social Care,Contrib to S31 Partnership,
CMG Limited,CF01421770,11/08/2010,-84.10,Customer and Client Receipts,Fees and Charges,Section 75 Adult Social Care,Contrib to S31 Partnership,
CMG Limited,CF01421770,11/08/2010,"1,318.86",Third Party Payments,Other Establishments,Section 75 Adult Social Care,Contrib to S31 Partnership,
CMG Limited,CF01421771,11/08/2010,-84.10,Customer and Client Receipts,Fees and Charges,Section 75 Adult Social Care,Contrib to S31 Partnership,
CMG Limited,CF01421771,11/08/2010,"1,318.86",Third Party Payments,Other Establishments,Section 75 Adult Social Care,Contrib to S31 Partnership,
CMG Limited,CF01421772,11/08/2010,-84.10,Customer and Client Receipts,Fees and Charges,Section 75 Adult Social Care,Contrib to S31 Partnership,
CMG Limited,CF01421772,11/08/2010,"1,318.86",Third Party Payments,Other Establishments,Section 75 Adult Social Care,Contrib to S31 Partnership,
CMG Limited,CF01421773,11/08/2010,-71.15,Customer and Client Receipts,Fees and Charges,Section 75 Adult Social Care,Contrib to S31 Partnership,
CMG Limited,CF01421773,11/08/2010,"1,305.60",Third Party Payments,Other Establishments,Section 75 Adult Social Care,Contrib to S31 Partnership,
CMG Limited,CF01421774,11/08/2010,-71.15,Customer and Client Receipts,Fees and Charges,Section 75 Adult Social Care,Contrib to S31 Partnership,
CMG Limited,CF01421774,11/08/2010,"1,305.60",Third Party Payments,Other Establishments,Section 75 Adult Social Care,Contrib to S31 Partnership,
CMG Limited,CF01421775,11/08/2010,-71.15,Customer and Client Receipts,Fees and Charges,Section 75 Adult Social Care,Contrib to S31 Partnership,
CMG Limited,CF01421775,11/08/2010,"1,305.60",Third Party Payments,Other Establishments,Section 75 Adult Social Care,Contrib to S31 Partnership,
CMG Limited,CF01421776,11/08/2010,-71.15,Customer and Client Receipts,Fees and Charges,Section 75 Adult Social Care,Contrib to S31 Partnership,
CMG Limited,CF01421776,11/08/2010,"1,305.60",Third Party Payments,Other Establishments,Section 75 Adult Social Care,Contrib to S31 Partnership,
CMG Limited,CF01421816,11/08/2010,-110.30,Customer and Client Receipts,Fees and Charges,Section 75 Adult Social Care,Contrib to S31 Partnership,
CMG Limited,CF01421816,11/08/2010,"1,451.86",Third Party Payments,Other Establishments,Section 75 Adult Social Care,Contrib to S31 Partnership,
CMG Limited,CF01421817,11/08/2010,-110.30,Customer and Client Receipts,Fees and Charges,Section 75 Adult Social Care,Contrib to S31 Partnership,
CMG Limited,CF01421817,11/08/2010,"1,451.86",Third Party Payments,Other Establishments,Section 75 Adult Social Care,Contrib to S31 Partnership,
CMG Limited,CF01421818,11/08/2010,-110.30,Customer and Client Receipts,Fees and Charges,Section 75 Adult Social Care,Contrib to S31 Partnership,
CMG Limited,CF01421818,11/08/2010,"1,451.86",Third Party Payments,Other Establishments,Section 75 Adult Social Care,Contrib to S31 Partnership,
CMG Limited,CF01421819,11/08/2010,-110.30,Customer and Client Receipts,Fees and Charges,Section 75 Adult Social Care,Contrib to S31 Partnership,
CMG Limited,CF01421819,11/08/2010,"1,451.86",Third Party Payments,Other Establishments,Section 75 Adult Social Care,Contrib to S31 Partnership,
CMG Limited,CF01421820,11/08/2010,-71.15,Customer and Client Receipts,Fees and Charges,Section 75 Adult Social Care,Contrib to S31 Partnership,
CMG Limited,CF01421820,11/08/2010,"1,820.00",Third Party Payments,Other Establishments,Section 75 Adult Social Care,Contrib to S31 Partnership,
CMG Limited,CF01421821,11/08/2010,-71.15,Customer and Client Receipts,Fees and Charges,Section 75 Adult Social Care,Contrib to S31 Partnership,
CMG Limited,CF01421821,11/08/2010,"1,820.00",Third Party Payments,Other Establishments,Section 75 Adult Social Care,Contrib to S31 Partnership,
CMG Limited,CF01421822,11/08/2010,-71.15,Customer and Client Receipts,Fees and Charges,Section 75 Adult Social Care,Contrib to S31 Partnership,
CMG Limited,CF01421822,11/08/2010,"1,820.00",Third Party Payments,Other Establishments,Section 75 Adult Social Care,Contrib to S31 Partnership,
CMG Limited,CF01421823,11/08/2010,-71.15,Customer and Client Receipts,Fees and Charges,Section 75 Adult Social Care,Contrib to S31 Partnership,
CMG Limited,CF01421823,11/08/2010,"1,820.00",Third Party Payments,Other Establishments,Section 75 Adult Social Care,Contrib to S31 Partnership,
CMG Limited,CF01421918,11/08/2010,-110.30,Customer and Client Receipts,Fees and Charges,Section 75 Adult Social Care,Contrib to S31 Partnership,
CMG Limited,CF01421918,11/08/2010,"1,060.80",Third Party Payments,Other Establishments,Section 75 Adult Social Care,Contrib to S31 Partnership,
CMG Limited,CF01421919,11/08/2010,-110.30,Customer and Client Receipts,Fees and Charges,Section 75 Adult Social Care,Contrib to S31 Partnership,
CMG Limited,CF01421919,11/08/2010,"1,060.80",Third Party Payments,Other Establishments,Section 75 Adult Social Care,Contrib to S31 Partnership,
CMG Limited,CF01421920,11/08/2010,-110.30,Customer and Client Receipts,Fees and Charges,Section 75 Adult Social Care,Contrib to S31 Partnership,
CMG Limited,CF01421920,11/08/2010,"1,060.80",Third Party Payments,Other Establishments,Section 75 Adult Social Care,Contrib to S31 Partnership,
CMG Limited,CF01421921,11/08/2010,-110.30,Customer and Client Receipts,Fees and Charges,Section 75 Adult Social Care,Contrib to S31 Partnership,
CMG Limited,CF01421921,11/08/2010,"1,060.80",Third Party Payments,Other Establishments,Section 75 Adult Social Care,Contrib to S31 Partnership,
CMG Limited,CF01421922,11/08/2010,-71.15,Customer and Client Receipts,Fees and Charges,Section 75 Adult Social Care,Contrib to S31 Partnership,
CMG Limited,CF01421922,11/08/2010,"1,060.80",Third Party Payments,Other Establishments,Section 75 Adult Social Care,Contrib to S31 Partnership,
CMG Limited,CF01421923,11/08/2010,-71.15,Customer and Client Receipts,Fees and Charges,Section 75 Adult Social Care,Contrib to S31 Partnership,
CMG Limited,CF01421923,11/08/2010,"1,060.80",Third Party Payments,Other Establishments,Section 75 Adult Social Care,Contrib to S31 Partnership,
CMG Limited,CF01421924,11/08/2010,-71.15,Customer and Client Receipts,Fees and Charges,Section 75 Adult Social Care,Contrib to S31 Partnership,
CMG Limited,CF01421924,11/08/2010,"1,060.80",Third Party Payments,Other Establishments,Section 75 Adult Social Care,Contrib to S31 Partnership,
CMG Limited,CF01421925,11/08/2010,-71.15,Customer and Client Receipts,Fees and Charges,Section 75 Adult Social Care,Contrib to S31 Partnership,
CMG Limited,CF01421925,11/08/2010,"1,060.80",Third Party Payments,Other Establishments,Section 75 Adult Social Care,Contrib to S31 Partnership,
CMG Limited,CF01422756,11/08/2010,941.00,Third Party Payments,Other Establishments,Section 75 Adult Social Care,Contrib to S31 Partnership,
CMG Limited,CF01422757,11/08/2010,941.00,Third Party Payments,Other Establishments,Section 75 Adult Social Care,Contrib to S31 Partnership,
CMG Limited,CF01422758,11/08/2010,941.00,Third Party Payments,Other Establishments,Section 75 Adult Social Care,Contrib to S31 Partnership,
CMG Limited,CF01422759,11/08/2010,941.00,Third Party Payments,Other Establishments,Section 75 Adult Social Care,Contrib to S31 Partnership,
CMG Limited,CF01422770,11/08/2010,"1,383.94",Third Party Payments,Other Establishments,Section 75 Adult Social Care,Contrib to S31 Partnership,
CMG Limited,CF01422771,11/08/2010,"1,383.94",Third Party Payments,Other Establishments,Section 75 Adult Social Care,Contrib to S31 Partnership,
CMG Limited,CF01422772,11/08/2010,"1,383.94",Third Party Payments,Other Establishments,Section 75 Adult Social Care,Contrib to S31 Partnership,
CMG Limited,CF01422773,11/08/2010,"1,383.94",Third Party Payments,Other Establishments,Section 75 Adult Social Care,Contrib to S31 Partnership,
CMG Limited,CF01422774,11/08/2010,"1,266.43",Third Party Payments,Other Establishments,Section 75 Adult Social Care,Contrib to S31 Partnership,
CMG Limited,CF01422775,11/08/2010,"1,266.43",Third Party Payments,Other Establishments,Section 75 Adult Social Care,Contrib to S31 Partnership,
CMG Limited,CF01422776,11/08/2010,"1,266.43",Third Party Payments,Other Establishments,Section 75 Adult Social Care,Contrib to S31 Partnership,
